{"text_format":"1","workbook":"xlsx","n_sheets":1,"sheets":["Day9"],"not_rendered":{"charts":0,"images":0,"macros":1,"external_links":0,"defined_names":0,"comments":0,"pivot_tables":0},"unopened":[],"bounds":{"document_bytes":16777216,"sheet_cells":100000,"rows_first":2000,"rows_last":500,"rows_between":2000,"halvings":0,"cell_chars":16384,"cell_head_chars":4096},"cells_cut":0,"cells_raw":0,"read":"whole","date_system":"1900"}

{"sheet":"Day9","index":0,"n_rows":214,"n_cols":311,"rows_kept":214,"cut":false,"hidden":false,"merged":[]}
[null,null,{"$f":"SUM(DD3:GY102)","v":448},null,null,1,2,3,4,5,6,7,8,9,10,11,12,13,14,15,16,17,18,19,20,21,22,23,24,25,26,27,28,29,30,31,32,33,34,35,36,37,38,39,40,41,42,43,44,45,46,47,48,49,50,51,52,53,54,55,56,57,58,59,60,61,62,63,64,65,66,67,68,69,70,71,72,73,74,75,76,77,78,79,80,81,82,83,84,85,86,87,88,89,90,91,92,93,94,95,96,97,98,99,100,null,null,null,null,null,null,null,null,null,null,null,null,null,null,null,null,null,null,null,null,null,null,null,null,null,null,null,null,null,null,null,null,null,null,null,null,null,null,null,null,null,null,null,null,null,null,null,null,null,null,null,null,null,null,null,null,null,null,null,null,null,null,null,null,null,null,null,null,null,null,null,null,null,null,null,null,null,null,null,null,null,null,null,null,null,null,null,null,null,null,null,null,null,null,null,null,null,null,null,null,null,null,null,null,null,null,null,null,null,null,null,null,null,null,null,null,null,null,null,null,null,null,null,null,null,null,null,null,null,null,null,null,null,null,null,null,null,null,null,null,null,null,null,null,null,null,null,null,null,null,null,null,null,null,null,null,null,null,null,null,null,null,null,null,null,null,null,null,null,null,null,null,null,null,null,null,null,null,null,null,null,null,null,null,null,null,null,null,null,null,null,null,null,null,null,null,null,null,null,null,null,null,null,null,1,{"$f":"COUNTIF($HA$3:$KV$102, KX1)","v":62}]
[null,null,{"$f":"INDEX(_xlfn._xlws.SORT(KY:KY, 1,-1), 1)*INDEX(_xlfn._xlws.SORT(KY:KY, 1,-1), 2)*INDEX(_xlfn._xlws.SORT(KY:KY, 1,-1), 3)","v":1417248},null,10,10,10,10,10,10,10,10,10,10,10,10,10,10,10,10,10,10,10,10,10,10,10,10,10,10,10,10,10,10,10,10,10,10,10,10,10,10,10,10,10,10,10,10,10,10,10,10,10,10,10,10,10,10,10,10,10,10,10,10,10,10,10,10,10,10,10,10,10,10,10,10,10,10,10,10,10,10,10,10,10,10,10,10,10,10,10,10,10,10,10,10,10,10,10,10,10,10,10,10,10,10,null,null,null,null,null,null,null,null,null,null,null,null,null,null,null,null,null,null,null,null,null,null,null,null,null,null,null,null,null,null,null,null,null,null,null,null,null,null,null,null,null,null,null,null,null,null,null,null,null,null,null,null,null,null,null,null,null,null,null,null,null,null,null,null,null,null,null,null,null,null,null,null,null,null,null,null,null,null,null,null,null,null,null,null,null,null,null,null,null,null,null,null,null,null,null,null,null,null,null,null,null,null,null,null,null,null,null,null,null,null,null,null,null,null,null,null,null,null,null,null,null,null,null,null,null,null,null,null,null,null,null,null,null,null,null,null,null,null,null,null,null,null,null,null,null,null,null,null,null,null,null,null,null,null,null,null,null,null,null,null,null,null,null,null,null,null,null,null,null,null,null,null,null,null,null,null,null,null,null,null,null,null,null,null,null,null,null,null,null,null,null,null,null,null,null,null,null,null,null,null,null,null,null,2,4]
["5457889101989999876543210123598932197856889569898943293299789965432998765467954321986569876545679101",null,null,null,10,{"$f":"_xlfn.NUMBERVALUE(MID($A3, F$1, 1))","v":5},{"$f":"_xlfn.NUMBERVALUE(MID($A3, G$1, 1))","v":4},{"$f":"_xlfn.NUMBERVALUE(MID($A3, H$1, 1))","v":5},7,8,8,9,1,0,1,9,8,9,9,9,9,8,7,6,5,4,3,2,1,0,1,2,3,5,9,8,9,3,2,1,9,7,8,5,6,8,8,9,5,6,9,8,9,8,9,4,3,2,9,3,2,9,9,7,8,9,9,6,5,4,3,{"$f":"_xlfn.NUMBERVALUE(MID($A3, BT$1, 1))","v":2},9,9,8,7,6,5,4,6,7,9,5,4,3,2,1,9,8,6,5,{"$f":"_xlfn.NUMBERVALUE(MID($A3, CN$1, 1))","v":6},{"$f":"_xlfn.NUMBERVALUE(MID($A3, CO$1, 1))","v":9},{"$f":"_xlfn.NUMBERVALUE(MID($A3, CP$1, 1))","v":8},7,6,5,4,5,6,7,9,1,0,{"$f":"_xlfn.NUMBERVALUE(MID($A3, DA$1, 1))","v":1},10,null,{"$f":"IF(AND(F3<G3, F3<F4, F3<E3, F3<F2), F3+1, \"\")","v":""},{"$f":"IF(AND(G3<H3, G3<G4, G3<F3, G3<G2), G3+1, \"\")","v":""},"","","","","","",1,"","","","","","","","","","","","","","","",1,"","","","","","","","","",2,"","","","","","","","",6,"","","","","","","","",3,"","",3,"","","","","","","","","",{"$f":"IF(AND(BS3<BT3, BS3<BS4, BS3<BR3, BS3<BS2), BS3+1, \"\")","v":""},3,"","","","","","","","","","","","","","","","","","","","","","","","","","","","","","","",1,"",null,1,1,1,1,1,1,null,2,2,2,null,3,null,null,null,null,4,4,4,4,4,4,4,4,4,4,4,4,4,null,4,null,5,5,5,null,6,6,6,6,6,6,null,7,7,null,8,null,8,null,9,9,9,null,10,10,null,null,11,11,null,null,12,12,12,12,12,null,null,13,13,13,13,13,13,13,null,14,14,14,14,14,null,15,15,15,15,null,16,16,16,16,16,16,16,16,null,17,17,17,null,3,53]
["4345678919879898989874322234567894396545679698767899989987678899549899878357895210975498765434589213",null,null,null,10,{"$f":"_xlfn.NUMBERVALUE(MID($A4, F$1, 1))","v":4},3,4,5,6,7,8,9,1,9,8,7,9,8,9,8,9,8,9,8,7,4,3,2,2,2,3,4,5,6,7,8,9,4,3,9,6,5,4,5,6,7,9,6,9,8,7,6,7,8,9,9,9,8,9,9,8,7,6,7,8,8,9,9,5,4,9,8,9,9,8,7,8,3,5,7,8,9,5,2,1,0,9,7,5,4,{"$f":"_xlfn.NUMBERVALUE(MID($A4, CN$1, 1))","v":9},8,7,6,5,4,3,4,5,8,9,2,1,3,10,null,{"$f":"IF(AND(F4<G4, F4<F5, F4<E4, F4<F3), F4+1, \"\")","v":""},"","","","","","","","","","","","","","","","","","","","","","","","","","","","","","","","","","","","","","","","","","","","","","","","","","","","","","","","","","","","","","","","","","","","","","","","",4,"","","","","","","",1,"","","","","","","","","","",4,"","","","","","","",null,1,1,1,1,1,1,1,null,2,null,3,3,null,3,null,3,null,4,null,4,4,4,4,4,4,4,4,4,4,4,4,4,null,5,5,null,6,6,6,6,6,6,null,7,null,8,8,8,8,8,null,null,null,18,null,null,11,11,11,11,11,11,null,null,12,12,null,19,null,null,13,13,13,13,13,13,13,null,14,14,14,14,null,15,15,15,null,16,16,16,16,16,16,16,16,16,null,17,17,17,null,4,59]
["3234589998764767998765433795688975985432798999545678978976567678998789989456976329864329886545678924",null,null,null,10,3,2,{"$f":"_xlfn.NUMBERVALUE(MID($A5, H$1, 1))","v":3},4,5,8,9,9,9,8,7,6,4,7,6,7,9,9,8,7,6,5,4,3,3,7,9,5,6,8,8,9,7,5,9,8,5,4,3,2,7,9,8,9,9,9,5,4,5,6,7,8,9,7,8,9,7,6,5,6,7,6,7,8,9,9,8,7,8,9,9,8,9,4,5,6,9,7,6,3,2,9,8,6,4,3,2,9,8,8,6,5,4,5,6,7,8,9,2,4,10,null,"","","","","","","","","","","","","","","","","","","","","","","","","","","","","","","","","","","","","","","","","","","","","","","","","","","","","","","","","","","","","","","","","","","","","","","","","","","","","","","","","","","","","","","","","","","","","","","","","","","","",null,1,1,1,1,1,1,null,null,null,3,3,3,3,3,3,3,null,null,4,4,4,4,4,4,4,4,null,4,4,4,4,null,5,5,null,6,6,6,6,6,6,null,6,null,null,null,8,8,8,8,8,8,null,18,18,null,11,11,11,11,11,11,11,11,null,null,19,19,19,null,null,13,null,13,13,13,null,14,14,14,14,null,15,15,15,15,15,null,16,16,16,16,16,16,16,16,16,null,17,17,null,5,7]
["2123459987653459899887654689789899876521287789637889767895434567897699896567899439643212987656789545",null,null,null,10,2,1,2,3,4,5,9,9,8,7,6,5,3,4,5,9,8,9,9,8,8,7,6,5,4,6,8,9,7,8,9,8,9,9,8,7,6,5,2,1,2,8,7,7,8,9,6,3,7,8,8,9,7,6,7,8,9,5,4,3,4,5,6,7,8,9,7,6,9,9,8,9,6,5,6,7,8,9,9,4,3,9,6,4,3,2,1,2,9,8,7,6,5,6,7,8,9,5,4,5,10,null,"","","","","","","","","","","","","","","","","","","","","","","","","","","","","","","","","","","","","","","","","","","","","","","","","","","","","","","","","","","","","","","","",{"$f":"IF(AND(BR6<BS6, BR6<BR7, BR6<BQ6, BR6<BR5), BR6+1, \"\")","v":""},"","","","","","","","","","","","","","","","","","","","","","","","","","","","","","","","","","","",null,1,1,1,1,1,1,null,null,3,3,3,3,3,3,3,null,20,null,null,4,4,4,4,4,4,4,4,null,4,4,null,21,null,null,6,6,6,6,6,6,6,6,6,6,6,null,8,8,8,8,8,null,18,18,18,18,null,11,11,11,11,11,11,11,11,null,19,19,null,null,22,null,13,13,13,13,13,null,null,14,14,null,15,15,15,15,15,15,null,16,16,16,16,16,16,16,null,17,17,17,null,6,74]
["4012348998432398776998765799898779765430345678923999858954323458924598798679978998768103499967899656",null,null,null,10,4,0,1,2,3,4,8,9,9,8,4,3,2,3,9,8,7,7,6,9,9,8,7,6,5,7,9,9,8,9,8,7,7,9,7,6,5,4,3,0,3,4,5,6,7,8,9,2,3,9,9,9,8,5,8,9,5,4,3,2,3,4,5,8,9,2,4,5,9,8,7,9,8,6,7,9,9,7,8,9,9,8,7,6,8,1,0,3,4,9,9,9,6,7,8,9,9,6,5,6,10,null,"",{"$f":"IF(AND(G7<H7, G7<G8, G7<F7, G7<G6), G7+1, \"\")","v":1},{"$f":"IF(AND(H7<I7, H7<H8, H7<G7, H7<H6), H7+1, \"\")","v":""},{"$f":"IF(AND(I7<J7, I7<I8, I7<H7, I7<I6), I7+1, \"\")","v":""},{"$f":"IF(AND(J7<K7, J7<J8, J7<I7, J7<J6), J7+1, \"\")","v":""},{"$f":"IF(AND(K7<L7, K7<K8, K7<J7, K7<K6), K7+1, \"\")","v":""},{"$f":"IF(AND(L7<M7, L7<L8, L7<K7, L7<L6), L7+1, \"\")","v":""},{"$f":"IF(AND(M7<N7, M7<M8, M7<L7, M7<M6), M7+1, \"\")","v":""},{"$f":"IF(AND(N7<O7, N7<N8, N7<M7, N7<N6), N7+1, \"\")","v":""},{"$f":"IF(AND(O7<P7, O7<O8, O7<N7, O7<O6), O7+1, \"\")","v":""},{"$f":"IF(AND(P7<Q7, P7<P8, P7<O7, P7<P6), P7+1, \"\")","v":""},{"$f":"IF(AND(Q7<R7, Q7<Q8, Q7<P7, Q7<Q6), Q7+1, \"\")","v":""},{"$f":"IF(AND(R7<S7, R7<R8, R7<Q7, R7<R6), R7+1, \"\")","v":""},{"$f":"IF(AND(S7<T7, S7<S8, S7<R7, S7<S6), S7+1, \"\")","v":""},{"$f":"IF(AND(T7<U7, T7<T8, T7<S7, T7<T6), T7+1, \"\")","v":""},{"$f":"IF(AND(U7<V7, U7<U8, U7<T7, U7<U6), U7+1, \"\")","v":""},{"$f":"IF(AND(V7<W7, V7<V8, V7<U7, V7<V6), V7+1, \"\")","v":""},{"$f":"IF(AND(W7<X7, W7<W8, W7<V7, W7<W6), W7+1, \"\")","v":""},{"$f":"IF(AND(X7<Y7, X7<X8, X7<W7, X7<X6), X7+1, \"\")","v":""},{"$f":"IF(AND(Y7<Z7, Y7<Y8, Y7<X7, Y7<Y6), Y7+1, \"\")","v":""},{"$f":"IF(AND(Z7<AA7, Z7<Z8, Z7<Y7, Z7<Z6), Z7+1, \"\")","v":""},{"$f":"IF(AND(AA7<AB7, AA7<AA8, AA7<Z7, AA7<AA6), AA7+1, \"\")","v":""},{"$f":"IF(AND(AB7<AC7, AB7<AB8, AB7<AA7, AB7<AB6), AB7+1, \"\")","v":""},{"$f":"IF(AND(AC7<AD7, AC7<AC8, AC7<AB7, AC7<AC6), AC7+1, \"\")","v":""},{"$f":"IF(AND(AD7<AE7, AD7<AD8, AD7<AC7, AD7<AD6), AD7+1, \"\")","v":""},{"$f":"IF(AND(AE7<AF7, AE7<AE8, AE7<AD7, AE7<AE6), AE7+1, \"\")","v":""},{"$f":"IF(AND(AF7<AG7, AF7<AF8, AF7<AE7, AF7<AF6), AF7+1, \"\")","v":""},{"$f":"IF(AND(AG7<AH7, AG7<AG8, AG7<AF7, AG7<AG6), AG7+1, \"\")","v":""},{"$f":"IF(AND(AH7<AI7, AH7<AH8, AH7<AG7, AH7<AH6), AH7+1, \"\")","v":""},{"$f":"IF(AND(AI7<AJ7, AI7<AI8, AI7<AH7, AI7<AI6), AI7+1, \"\")","v":""},{"$f":"IF(AND(AJ7<AK7, AJ7<AJ8, AJ7<AI7, AJ7<AJ6), AJ7+1, \"\")","v":""},{"$f":"IF(AND(AK7<AL7, AK7<AK8, AK7<AJ7, AK7<AK6), AK7+1, \"\")","v":""},{"$f":"IF(AND(AL7<AM7, AL7<AL8, AL7<AK7, AL7<AL6), AL7+1, \"\")","v":""},{"$f":"IF(AND(AM7<AN7, AM7<AM8, AM7<AL7, AM7<AM6), AM7+1, \"\")","v":""},{"$f":"IF(AND(AN7<AO7, AN7<AN8, AN7<AM7, AN7<AN6), AN7+1, \"\")","v":""},{"$f":"IF(AND(AO7<AP7, AO7<AO8, AO7<AN7, AO7<AO6), AO7+1, \"\")","v":""},{"$f":"IF(AND(AP7<AQ7, AP7<AP8, AP7<AO7, AP7<AP6), AP7+1, \"\")","v":""},{"$f":"IF(AND(AQ7<AR7, AQ7<AQ8, AQ7<AP7, AQ7<AQ6), AQ7+1, \"\")","v":""},{"$f":"IF(AND(AR7<AS7, AR7<AR8, AR7<AQ7, AR7<AR6), AR7+1, \"\")","v":""},{"$f":"IF(AND(AS7<AT7, AS7<AS8, AS7<AR7, AS7<AS6), AS7+1, \"\")","v":1},{"$f":"IF(AND(AT7<AU7, AT7<AT8, AT7<AS7, AT7<AT6), AT7+1, \"\")","v":""},{"$f":"IF(AND(AU7<AV7, AU7<AU8, AU7<AT7, AU7<AU6), AU7+1, \"\")","v":""},{"$f":"IF(AND(AV7<AW7, AV7<AV8, AV7<AU7, AV7<AV6), AV7+1, \"\")","v":""},{"$f":"IF(AND(AW7<AX7, AW7<AW8, AW7<AV7, AW7<AW6), AW7+1, \"\")","v":""},{"$f":"IF(AND(AX7<AY7, AX7<AX8, AX7<AW7, AX7<AX6), AX7+1, \"\")","v":""},{"$f":"IF(AND(AY7<AZ7, AY7<AY8, AY7<AX7, AY7<AY6), AY7+1, \"\")","v":""},{"$f":"IF(AND(AZ7<BA7, AZ7<AZ8, AZ7<AY7, AZ7<AZ6), AZ7+1, \"\")","v":""},{"$f":"IF(AND(BA7<BB7, BA7<BA8, BA7<AZ7, BA7<BA6), BA7+1, \"\")","v":""},{"$f":"IF(AND(BB7<BC7, BB7<BB8, BB7<BA7, BB7<BB6), BB7+1, \"\")","v":""},{"$f":"IF(AND(BC7<BD7, BC7<BC8, BC7<BB7, BC7<BC6), BC7+1, \"\")","v":""},{"$f":"IF(AND(BD7<BE7, BD7<BD8, BD7<BC7, BD7<BD6), BD7+1, \"\")","v":""},{"$f":"IF(AND(BE7<BF7, BE7<BE8, BE7<BD7, BE7<BE6), BE7+1, \"\")","v":""},{"$f":"IF(AND(BF7<BG7, BF7<BF8, BF7<BE7, BF7<BF6), BF7+1, \"\")","v":""},{"$f":"IF(AND(BG7<BH7, BG7<BG8, BG7<BF7, BG7<BG6), BG7+1, \"\")","v":""},{"$f":"IF(AND(BH7<BI7, BH7<BH8, BH7<BG7, BH7<BH6), BH7+1, \"\")","v":""},{"$f":"IF(AND(BI7<BJ7, BI7<BI8, BI7<BH7, BI7<BI6), BI7+1, \"\")","v":""},{"$f":"IF(AND(BJ7<BK7, BJ7<BJ8, BJ7<BI7, BJ7<BJ6), BJ7+1, \"\")","v":""},{"$f":"IF(AND(BK7<BL7, BK7<BK8, BK7<BJ7, BK7<BK6), BK7+1, \"\")","v":""},{"$f":"IF(AND(BL7<BM7, BL7<BL8, BL7<BK7, BL7<BL6), BL7+1, \"\")","v":""},{"$f":"IF(AND(BM7<BN7, BM7<BM8, BM7<BL7, BM7<BM6), BM7+1, \"\")","v":""},{"$f":"IF(AND(BN7<BO7, BN7<BN8, BN7<BM7, BN7<BN6), BN7+1, \"\")","v":""},{"$f":"IF(AND(BO7<BP7, BO7<BO8, BO7<BN7, BO7<BO6), BO7+1, \"\")","v":""},{"$f":"IF(AND(BP7<BQ7, BP7<BP8, BP7<BO7, BP7<BP6), BP7+1, \"\")","v":""},{"$f":"IF(AND(BQ7<BR7, BQ7<BQ8, BQ7<BP7, BQ7<BQ6), BQ7+1, \"\")","v":""},"","","","","","","","","","","","","","","","","","","","","","",1,"","","","","","","","","","","","","",null,1,1,1,1,1,1,1,null,null,3,3,3,3,3,null,20,20,20,20,null,null,4,4,4,4,4,null,null,4,null,21,21,21,null,6,6,6,6,6,6,6,6,6,6,6,6,null,8,8,null,null,null,18,18,18,null,11,11,11,11,11,11,11,11,null,19,19,19,null,22,22,null,13,13,13,null,null,23,23,null,null,15,15,15,15,15,15,15,15,null,null,null,16,16,16,null,null,17,17,17,null,7,3]
["2123456799210987655349889892976569864321239789414896545995512388912987679789467897654215679878998769",null,null,null,10,2,1,2,3,4,5,6,7,9,9,2,1,0,9,8,7,6,5,5,3,4,9,8,8,9,8,9,2,9,7,6,5,6,9,8,6,4,3,2,1,2,3,9,7,8,9,4,1,4,8,9,6,5,4,5,9,9,5,5,1,2,3,8,8,9,{"$f":"_xlfn.NUMBERVALUE(MID($A8, BS$1, 1))","v":1},2,9,8,7,6,7,9,7,8,9,4,6,7,8,9,7,6,5,4,2,1,5,6,7,9,8,7,8,9,9,8,7,6,9,10,null,"","","","","","","","","","","","",1,"","","","","","","","","","","","","","","","","","","","","","","","","","","","","","","","","","",2,"","","","","","","","","","","",2,"","","","","",2,"","","","","","","","","","","","","","","","","","","","","","","","","","","","","","","","","","",null,1,1,1,1,1,1,1,1,null,null,3,3,3,null,20,20,20,20,20,20,20,null,4,4,null,4,null,24,null,21,21,21,21,null,6,6,6,6,6,6,6,6,null,6,6,null,8,8,8,8,null,18,18,18,18,null,null,11,11,11,11,11,11,11,null,19,19,null,22,22,22,22,null,13,13,null,23,23,23,23,null,15,15,15,15,15,15,15,15,15,null,16,16,16,null,null,17,17,17,null,null,8,43]
["3234767989629876544236999901965456975432398996325789234789623567899876569894356798785676789989999878",null,null,null,10,3,2,{"$f":"_xlfn.NUMBERVALUE(MID($A9, H$1, 1))","v":3},4,7,6,7,9,8,9,6,2,9,8,7,6,5,4,4,2,3,6,9,9,9,9,0,1,9,6,5,4,5,6,9,7,5,4,3,2,3,9,8,9,9,6,3,2,5,7,8,9,2,3,4,7,8,9,6,2,3,5,6,7,8,9,9,8,7,6,5,6,9,8,9,4,3,5,6,7,9,8,7,8,5,6,7,6,7,8,9,9,8,9,9,9,9,8,7,8,10,null,"","","","","","","","","","","","","","","","","","","","","","","","","","",1,"","","","","","","","","","","","","","","","","","","","","","","","","",3,"","","","","","","","","","","","","","","","","","","","","","","","","","","","","","","","","","","","","","","","","","","","","","","",null,1,1,1,1,1,1,1,null,3,null,3,3,null,20,20,20,20,20,20,20,20,20,null,null,null,null,24,24,null,21,21,21,21,21,null,6,6,6,6,6,6,null,6,null,null,8,8,8,8,8,8,null,18,18,18,18,18,null,11,11,11,11,11,11,11,null,null,22,22,22,22,22,null,13,null,23,23,23,23,23,null,15,15,15,15,15,15,15,15,15,null,null,16,null,null,null,null,17,17,17,null,9,3]
["5349879876536965432125478919873201989865467895459896545678934878998987456965267889876787892196789989",null,null,null,10,5,3,4,9,8,7,9,8,7,6,5,3,6,9,6,5,4,3,2,1,2,5,4,7,8,9,1,9,8,7,3,2,0,1,9,8,9,8,6,5,4,6,7,8,9,5,4,5,9,8,9,6,5,4,5,6,7,8,9,3,4,8,7,8,9,9,8,9,8,7,4,5,6,9,6,5,2,6,7,8,8,9,8,7,6,7,8,7,8,9,2,1,9,6,7,8,9,9,8,9,10,null,"","","","","","","","","","","","","","","","","","","","","","","","","","","","","","","","",1,"","","","","","","","","","","","","","","","","","","","","","","","","","","","","","","","","","","","","","","","","","",{"$f":"IF(AND(CC10<CD10, CC10<CC11, CC10<CB10, CC10<CC9), CC10+1, \"\")","v":""},{"$f":"IF(AND(CD10<CE10, CD10<CD11, CD10<CC10, CD10<CD9), CD10+1, \"\")","v":""},{"$f":"IF(AND(CE10<CF10, CE10<CE11, CE10<CD10, CE10<CE9), CE10+1, \"\")","v":""},{"$f":"IF(AND(CF10<CG10, CF10<CF11, CF10<CE10, CF10<CF9), CF10+1, \"\")","v":""},{"$f":"IF(AND(CG10<CH10, CG10<CG11, CG10<CF10, CG10<CG9), CG10+1, \"\")","v":""},{"$f":"IF(AND(CH10<CI10, CH10<CH11, CH10<CG10, CH10<CH9), CH10+1, \"\")","v":""},{"$f":"IF(AND(CI10<CJ10, CI10<CI11, CI10<CH10, CI10<CI9), CI10+1, \"\")","v":""},{"$f":"IF(AND(CJ10<CK10, CJ10<CJ11, CJ10<CI10, CJ10<CJ9), CJ10+1, \"\")","v":""},{"$f":"IF(AND(CK10<CL10, CK10<CK11, CK10<CJ10, CK10<CK9), CK10+1, \"\")","v":""},{"$f":"IF(AND(CL10<CM10, CL10<CL11, CL10<CK10, CL10<CL9), CL10+1, \"\")","v":""},{"$f":"IF(AND(CM10<CN10, CM10<CM11, CM10<CL10, CM10<CM9), CM10+1, \"\")","v":""},{"$f":"IF(AND(CN10<CO10, CN10<CN11, CN10<CM10, CN10<CN9), CN10+1, \"\")","v":""},{"$f":"IF(AND(CO10<CP10, CO10<CO11, CO10<CN10, CO10<CO9), CO10+1, \"\")","v":""},{"$f":"IF(AND(CP10<CQ10, CP10<CP11, CP10<CO10, CP10<CP9), CP10+1, \"\")","v":""},{"$f":"IF(AND(CQ10<CR10, CQ10<CQ11, CQ10<CP10, CQ10<CQ9), CQ10+1, \"\")","v":""},{"$f":"IF(AND(CR10<CS10, CR10<CR11, CR10<CQ10, CR10<CR9), CR10+1, \"\")","v":""},{"$f":"IF(AND(CS10<CT10, CS10<CS11, CS10<CR10, CS10<CS9), CS10+1, \"\")","v":2},{"$f":"IF(AND(CT10<CU10, CT10<CT11, CT10<CS10, CT10<CT9), CT10+1, \"\")","v":""},{"$f":"IF(AND(CU10<CV10, CU10<CU11, CU10<CT10, CU10<CU9), CU10+1, \"\")","v":""},{"$f":"IF(AND(CV10<CW10, CV10<CV11, CV10<CU10, CV10<CV9), CV10+1, \"\")","v":""},{"$f":"IF(AND(CW10<CX10, CW10<CW11, CW10<CV10, CW10<CW9), CW10+1, \"\")","v":""},{"$f":"IF(AND(CX10<CY10, CX10<CX11, CX10<CW10, CX10<CX9), CX10+1, \"\")","v":""},{"$f":"IF(AND(CY10<CZ10, CY10<CY11, CY10<CX10, CY10<CY9), CY10+1, \"\")","v":""},{"$f":"IF(AND(CZ10<DA10, CZ10<CZ11, CZ10<CY10, CZ10<CZ9), CZ10+1, \"\")","v":""},{"$f":"IF(AND(DA10<DB10, DA10<DA11, DA10<CZ10, DA10<DA9), DA10+1, \"\")","v":""},null,1,1,1,null,1,1,null,3,3,3,3,3,3,null,20,20,20,20,20,20,20,20,20,20,20,null,24,null,21,21,21,21,21,21,null,6,null,6,6,6,6,6,6,6,null,8,8,8,null,8,null,18,18,18,18,18,18,18,null,11,11,11,11,11,null,null,22,null,22,22,22,22,22,null,23,23,23,23,23,23,23,null,15,15,15,15,15,15,15,null,25,25,null,25,25,25,null,null,17,null,null,10,2]
["6657989989545988541012367899954332399977578976567987876789656789987654349872123678989898943235678999",null,null,null,10,6,6,5,7,9,8,9,9,8,9,5,4,5,9,8,8,5,4,1,0,1,2,3,6,7,8,9,9,9,5,4,3,3,2,3,9,9,9,7,7,5,7,8,9,7,6,5,6,7,9,8,7,8,7,6,7,8,9,6,5,6,7,8,9,9,8,7,6,5,4,3,4,9,8,7,2,1,2,3,6,7,8,9,8,9,8,9,8,9,4,3,2,3,5,6,7,8,9,9,9,10,null,"","","","","","","","","","","","","","","","","","","",1,"","","","","","","","","","","","","","","","","","","","","","","","","","","","","","","","","","","","","","","","","","","","","",{"$f":"IF(AND(BS11<BT11, BS11<BS12, BS11<BR11, BS11<BS10), BS11+1, \"\")","v":""},{"$f":"IF(AND(BT11<BU11, BT11<BT12, BT11<BS11, BT11<BT10), BT11+1, \"\")","v":""},{"$f":"IF(AND(BU11<BV11, BU11<BU12, BU11<BT11, BU11<BU10), BU11+1, \"\")","v":""},{"$f":"IF(AND(BV11<BW11, BV11<BV12, BV11<BU11, BV11<BV10), BV11+1, \"\")","v":""},{"$f":"IF(AND(BW11<BX11, BW11<BW12, BW11<BV11, BW11<BW10), BW11+1, \"\")","v":""},{"$f":"IF(AND(BX11<BY11, BX11<BX12, BX11<BW11, BX11<BX10), BX11+1, \"\")","v":""},{"$f":"IF(AND(BY11<BZ11, BY11<BY12, BY11<BX11, BY11<BY10), BY11+1, \"\")","v":""},{"$f":"IF(AND(BZ11<CA11, BZ11<BZ12, BZ11<BY11, BZ11<BZ10), BZ11+1, \"\")","v":""},{"$f":"IF(AND(CA11<CB11, CA11<CA12, CA11<BZ11, CA11<CA10), CA11+1, \"\")","v":""},{"$f":"IF(AND(CB11<CC11, CB11<CB12, CB11<CA11, CB11<CB10), CB11+1, \"\")","v":""},"",2,"","","","","","","","","","","","","","","","","","","","","","","",null,1,1,1,1,null,1,null,null,3,null,3,3,3,null,20,20,20,20,20,20,20,20,20,20,20,20,null,null,null,21,21,21,21,21,21,null,null,null,6,6,6,6,6,null,8,8,8,8,8,null,18,18,18,18,18,18,18,null,11,11,11,11,11,null,null,22,22,22,22,22,22,22,null,23,23,23,23,23,23,23,23,23,null,15,null,15,null,15,null,25,25,25,25,25,25,25,25,null,null,null,null,11,62]
["7789197898656987652143456998765443478998989999878998987898767991299543234983234589999999654345899989",null,null,null,10,7,7,8,9,1,9,7,8,9,8,6,5,6,9,8,7,6,5,2,1,4,3,4,5,6,9,9,8,7,6,5,4,4,3,4,7,8,9,9,8,9,8,9,9,9,9,8,7,8,9,9,8,9,8,7,8,9,8,7,6,7,9,9,1,2,{"$f":"_xlfn.NUMBERVALUE(MID($A12, BS$1, 1))","v":9},9,5,4,3,2,3,4,9,8,3,2,3,4,5,8,9,9,9,9,9,9,9,6,5,4,3,4,5,8,9,9,9,8,9,10,null,"","","","",2,"","","","","","","","","","","","","","","","","","","","","","","","","","","","","","","","","","","","","","","","","","","","","","","","","","","","","","","","","","",2,"","","","","","","","","","","","","","","","","","","","","","","","","","","","","","","","","","","","",null,1,1,1,null,26,null,26,26,null,3,3,3,3,null,20,20,20,20,20,20,20,20,20,20,20,null,null,21,21,21,21,21,21,21,21,21,21,null,null,6,null,6,null,null,null,null,8,8,8,null,null,18,null,18,18,18,null,11,11,11,11,null,null,27,27,null,null,22,22,22,22,22,22,null,23,23,23,23,23,23,23,null,null,null,null,null,null,null,25,25,25,25,25,25,25,null,null,null,28,null,null,12,7]
["8893256798767898763234589769976954567899899988989999898909898989398954123495665799899899985456798678",null,null,null,10,8,8,{"$f":"_xlfn.NUMBERVALUE(MID($A13, H$1, 1))","v":9},3,2,5,6,7,9,8,7,6,7,8,9,8,7,6,3,2,3,4,5,8,9,7,6,9,9,7,6,9,5,4,5,6,7,8,9,9,8,9,9,9,8,8,9,8,9,9,9,9,8,9,8,9,0,9,8,9,8,9,8,9,3,9,8,9,5,4,1,2,3,4,9,5,6,6,5,7,9,9,8,9,9,8,9,9,9,8,5,4,5,6,7,9,8,6,7,8,10,null,"","","","","","","","","","","","","","","","","","","","","","","","","","","","","","","","","","","","","","","","","","","","","","","","","","","","","","","","",1,"","","","","","","","","","","","","","","","","","","","","","","","","","","","","","","","","","","","","","","","","","","",null,1,1,null,26,26,26,26,26,null,3,3,3,3,3,null,20,20,20,20,20,20,20,20,20,null,29,29,null,null,21,21,null,21,21,21,21,21,21,null,null,30,null,null,null,31,31,null,8,null,null,null,null,32,null,18,null,33,null,11,null,11,null,34,null,27,null,34,null,22,22,22,22,22,22,null,23,23,23,23,23,null,null,35,null,null,35,null,null,null,25,25,25,25,25,25,null,28,28,28,28,null,13,29]
["9999345679878939876345678954989865779976789977899988789212999878987892034976786989798799876569987569",null,null,null,10,9,9,9,9,3,4,5,6,7,9,8,7,8,9,3,9,8,7,6,3,4,5,6,7,8,9,5,4,9,8,9,8,6,5,7,7,9,9,7,6,7,8,9,9,7,7,8,9,9,9,8,8,7,8,9,2,1,2,9,9,9,8,7,8,9,8,7,8,9,2,0,3,4,9,7,6,7,8,6,9,8,9,7,9,8,7,9,9,8,7,6,5,6,9,9,8,7,5,6,9,10,null,"","","","","","","","","","","","","","","","","","","","","","","","","","","","","","","","","","","","","","","","","","","","","","","","","","","","","","","","","","","","","","","","","","","","","","",1,"","","","","","","","","","","","","","","","","","","","","","","","","","","","","",null,null,null,null,null,26,26,26,26,26,null,3,3,3,null,36,null,20,20,20,20,20,20,20,20,20,null,29,29,null,21,null,21,21,21,21,21,null,null,30,30,30,30,null,null,31,31,31,null,null,null,32,32,32,32,null,33,33,33,null,null,null,34,34,34,null,34,34,34,null,22,22,22,22,null,23,23,23,23,23,null,35,null,35,null,35,35,null,null,25,25,25,25,25,null,null,28,28,28,28,null,null,14,15]
["2398959789989321965498789543596989893565679856798767678924598767976793156799899878587678987698765467",null,null,null,10,2,3,9,8,9,5,9,7,8,9,9,8,9,3,2,1,9,6,5,4,9,8,7,8,9,5,4,3,5,9,6,9,8,9,8,9,3,5,6,5,6,7,9,8,5,6,7,9,8,7,6,7,6,7,8,9,2,4,5,9,8,7,6,7,9,7,6,7,9,3,1,5,6,7,9,9,8,9,9,8,7,8,5,8,7,6,7,8,9,8,7,6,9,8,7,6,5,4,6,7,10,null,3,"","","","","","","","","","","","","","",2,"","","","","","","","","","","","","","","","","","","","","","","","","","","","","","","","","","","","","","","","","","","","","","","","","","","","","","","","","","","","","","","","","","","","","","","","","","","","","","","","","",5,"","",null,37,37,null,38,null,26,null,26,26,null,null,3,null,36,36,36,null,20,20,20,null,20,20,20,null,29,29,29,29,null,29,null,21,null,21,null,30,30,30,30,30,30,null,31,31,31,31,null,32,32,32,32,32,32,32,null,33,33,33,null,34,34,34,34,null,34,34,34,null,22,22,22,22,22,null,null,23,null,null,35,35,35,35,35,35,35,35,35,null,25,25,25,null,28,28,28,28,28,28,28,null,15,54]
["3987899999898999876569996432345699921434798743987657567895679854865789967893998765436569998989876567",null,null,null,10,3,9,8,7,8,9,9,9,9,9,8,9,8,9,9,9,8,7,6,5,6,9,9,9,6,4,3,2,3,4,5,6,9,9,9,2,1,4,3,4,7,9,8,7,4,3,9,8,7,6,5,7,5,6,7,8,9,5,6,7,9,8,5,4,8,{"$f":"_xlfn.NUMBERVALUE(MID($A16, BS$1, 1))","v":6},5,7,8,9,9,6,7,8,9,3,9,9,8,7,6,5,4,3,6,5,6,9,9,9,8,9,8,9,8,7,6,5,6,7,10,null,"","","","","","","","","","","","","","","","","","","","","","","","","","","","","","","","","","","","","","","","","","","","","","","","","","","","","","","","","","","","","","","","","","","","","","","","","","","","","","","","","","","","","","","","","","","","","","","","","","","","",null,37,null,38,38,38,null,null,null,null,null,39,null,39,null,null,null,20,20,20,20,20,null,null,null,29,29,29,29,29,29,29,29,null,null,null,30,30,30,30,30,30,null,31,31,31,31,null,32,32,32,32,32,32,32,32,32,null,33,33,33,null,34,34,34,34,34,34,34,34,null,null,22,22,22,null,40,null,null,35,35,35,35,35,35,35,35,35,null,null,null,25,null,41,null,28,28,28,28,28,28,null,16,40]
["9876789898787989987689876541236789210123987632399543458976798543234597899932398654323478909876987678",null,null,null,10,9,8,{"$f":"_xlfn.NUMBERVALUE(MID($A17, H$1, 1))","v":7},6,7,8,9,8,9,8,7,8,7,9,8,9,9,8,7,6,8,9,8,7,6,5,4,1,2,3,6,7,8,9,2,1,0,1,2,3,9,8,7,6,3,2,3,9,9,5,4,3,4,5,8,9,7,6,7,9,8,5,4,3,2,3,4,5,9,7,8,9,9,9,3,2,3,9,8,6,5,4,3,2,3,4,7,8,9,0,9,8,7,6,9,8,7,6,7,8,10,null,"","","","","","","","","","","","","","","","","","","","","","","","","","","",2,"","","","","","","","",1,"","","","","","","","",3,"","","","","","","","","","","","","","","","","","","","","","","","","","","","","","","","","","","","","","","","","","","",1,"","","","","","","","","","",null,null,38,38,38,38,38,null,39,null,39,39,39,39,null,39,null,null,20,20,20,20,null,29,29,29,29,29,29,29,29,29,29,29,null,30,30,30,30,30,30,null,31,31,31,31,31,31,null,null,32,32,32,32,32,32,null,33,33,33,null,34,34,34,34,34,34,34,34,null,34,34,null,null,null,40,40,40,null,35,35,35,35,35,35,35,35,35,35,null,42,null,41,41,41,null,28,28,28,28,28,null,17,21]
["6545698766545679998789998742345678921234596543988432357997987652123456978921239973212348919765499889",null,null,null,10,6,5,4,5,6,9,8,7,6,6,5,4,5,6,7,9,9,9,8,7,8,9,9,9,8,7,4,2,3,4,5,6,7,8,9,2,1,2,3,4,5,9,6,5,4,3,9,8,8,4,3,2,3,5,7,9,9,7,9,8,7,6,5,2,1,2,3,4,5,6,9,7,8,9,2,1,2,3,9,9,7,3,2,1,2,3,4,8,9,1,9,7,6,5,4,9,9,8,8,9,10,null,"","",5,"","","","","","","","","","","","","","","","","","","","","","","","","","","","","","","","","","","","","","","","","","","","","","","","","","","","","","","","","","","","","","","","","","","","","","","","",2,"","","","","","","",2,"","","","","","","","","","","","","","","","",null,38,38,38,38,38,null,39,39,39,39,39,39,39,39,39,null,null,null,20,20,20,null,null,null,29,29,29,29,29,29,29,29,29,29,null,30,30,30,30,30,30,null,31,31,31,31,null,32,32,32,32,32,32,32,32,null,null,33,null,34,34,34,34,34,34,34,34,34,34,34,null,43,43,null,40,40,40,40,null,null,35,35,35,35,35,35,35,35,null,42,null,41,41,41,41,null,null,28,28,null,null,18,38]
["9656987657324788999992129853456799534999987784976721236789999761012878967892398765343456898754343996",null,null,null,10,9,6,5,6,9,8,7,6,5,7,3,2,4,7,8,8,9,9,9,9,9,2,1,2,9,8,5,3,4,5,6,7,9,9,5,3,4,9,9,9,9,8,7,7,8,4,9,7,6,7,2,1,2,3,6,7,8,9,9,9,9,7,6,1,0,1,2,8,7,8,9,6,7,8,9,2,3,9,8,7,6,5,3,4,3,4,5,6,8,9,8,7,5,4,3,4,3,9,9,6,10,null,"","","","","","","","","","","","","","","","","","","","","","","","","","","","","","","","","","","","","","","","","","","","","","","","","","","","","","","","","","","","","","","","",1,"","","","","","","","","","","","","","","","","","","","","","","","","","","","","","","","","","","",null,null,38,38,38,null,39,39,39,39,39,39,39,39,39,39,39,null,null,null,null,null,44,44,44,null,29,29,29,29,29,29,29,null,null,30,30,30,null,null,null,null,31,31,31,31,31,null,32,32,32,32,32,32,32,32,32,32,null,null,null,null,34,34,34,34,34,34,34,34,34,null,43,43,43,null,40,40,null,35,35,35,35,35,35,35,35,35,35,35,null,41,41,41,41,41,41,41,null,null,41,null,19,11]
["8997898543213767893459012994967899649887898899885830245899989875434589658789999876774567999843212345",null,null,null,10,{"$f":"_xlfn.NUMBERVALUE(MID($A20, F$1, 1))","v":8},9,9,7,8,9,8,5,4,3,2,1,3,7,6,7,8,9,3,4,5,9,0,1,2,9,9,4,9,6,7,8,9,9,6,4,9,8,8,7,8,9,8,8,9,9,8,8,5,8,3,0,2,4,5,8,9,9,9,8,9,8,7,5,4,3,4,5,8,9,6,5,8,7,8,9,9,9,9,8,7,6,7,7,4,5,6,7,9,9,9,8,4,3,2,1,2,3,4,5,10,null,"","","","","","","","","","","","","","","","","","","","","","",1,"","","","","","","","","","","","","","","","","","","","","","","","","","","","",1,"","","","","","","","","","","","","","","","","","","","","","","","","","","","","","","","","","","","","","","","","","","","","","","","",null,45,null,null,38,38,null,39,39,39,39,39,39,39,39,39,39,39,null,46,46,46,null,44,44,44,null,null,29,null,29,29,29,null,null,30,30,null,47,47,47,47,null,31,31,null,null,32,32,32,32,32,32,32,32,32,32,null,null,null,48,null,34,34,34,34,34,34,34,34,null,43,43,43,43,43,null,null,null,null,35,35,35,35,35,35,35,35,35,null,null,null,41,41,41,41,41,41,41,41,41,null,20,91]
["7889909654104456932998923989898998998656569998764321346789876976545697545567897988965778987659101256",null,null,null,10,7,8,8,9,9,0,9,6,5,4,1,0,4,4,5,6,9,3,2,9,9,8,9,2,3,9,8,9,8,{"$f":"_xlfn.NUMBERVALUE(MID($A21, AI$1, 1))","v":9},8,9,9,8,9,9,8,6,5,6,5,6,9,9,9,8,7,6,4,3,2,1,3,4,6,7,8,9,8,7,6,9,7,6,5,4,5,6,9,7,5,4,5,5,6,7,8,9,7,9,8,8,9,6,5,7,7,8,9,8,7,6,5,9,1,0,1,2,5,6,10,null,"","","","","",1,"","","","","",1,"","","","","","",3,"","","","","","","","","","","","","","","","","","","","","","","","","","","","","","","","","","","","","","","","","","","","","","","","","","","","","","","","","","","","","","","","","","","","","","","","","","","","",1,"","","","",null,45,45,45,null,null,49,null,39,39,39,39,39,39,39,39,39,null,46,46,null,null,50,null,44,44,null,51,null,51,null,29,null,null,52,null,null,47,47,47,47,47,47,null,null,null,32,32,32,32,32,32,32,32,32,32,32,32,null,48,48,48,null,34,34,34,34,34,34,null,43,43,43,43,43,43,43,43,null,53,null,35,35,null,35,35,35,35,35,null,41,41,41,41,null,41,41,41,41,41,41,null,21,51]
["5678919798412367899887899878789987899643456789965475457898765989676789432459976599876789499798932387",null,null,null,10,{"$f":"_xlfn.NUMBERVALUE(MID($A22, F$1, 1))","v":5},6,7,8,9,1,9,7,9,8,4,1,2,3,6,7,{"$f":"_xlfn.NUMBERVALUE(MID($A22, V$1, 1))","v":8},9,9,8,8,7,8,9,9,8,7,8,7,8,9,9,8,7,8,9,9,6,4,3,4,5,6,7,8,9,9,6,5,4,7,5,4,5,7,8,9,8,7,6,5,9,8,9,6,7,6,7,8,9,4,3,2,4,5,9,9,7,6,5,9,9,8,7,6,7,{"$f":"_xlfn.NUMBERVALUE(MID($A22, CN$1, 1))","v":8},9,4,9,9,7,9,8,9,3,2,3,8,{"$f":"_xlfn.NUMBERVALUE(MID($A22, DA$1, 1))","v":7},10,null,"","","","","","","","","","","","","","","","","","","","","","","","","","","","","","","","","","","","","","","","","","","","","","","","","","","","","","","","","","","","",6,"","","","","","","","","","","","","","","","","","","","","","","","","","","","","","","","","","","","","","","",null,45,45,45,45,null,49,null,39,null,39,39,39,39,39,39,39,39,null,null,50,50,50,50,null,null,51,51,51,51,51,null,null,52,52,52,null,null,47,47,47,47,47,47,47,47,null,null,32,32,32,32,32,32,32,32,32,null,48,48,48,48,null,34,null,34,34,34,34,34,null,43,43,43,43,43,null,null,53,53,53,null,null,35,35,35,35,35,null,54,null,null,41,null,55,null,41,41,41,41,41,null,22,49]
["4559899987323456789756998768678976789432345899876876568999876798987894321298995432987893298987943598",null,null,null,10,4,5,{"$f":"_xlfn.NUMBERVALUE(MID($A23, H$1, 1))","v":5},9,8,9,9,9,8,7,3,2,3,4,5,6,7,8,9,7,5,6,9,9,8,7,6,8,6,7,8,9,7,6,7,8,9,4,3,2,3,4,5,8,9,9,8,7,6,8,7,6,5,6,8,9,9,9,8,7,6,7,9,8,9,8,7,8,9,4,3,2,1,2,9,8,9,9,5,4,3,2,9,8,7,8,9,3,2,9,8,9,8,7,9,4,3,5,9,8,10,null,"","","","","","","","","","","","","","","","","","","","","","","","","","","","","","","","","","","","","","","","","","","","","","","","","","","","","","","","","","","","","","","","","","","","","","","","","","","","","","","","","",3,"","","","","","",3,"","","","","","","","","","","",null,45,45,45,null,45,null,null,null,39,39,39,39,39,39,39,39,39,39,null,50,50,50,null,null,51,51,51,51,51,51,51,null,52,52,52,52,null,47,47,47,47,47,47,47,null,null,32,32,32,32,32,32,32,32,32,null,null,null,48,48,48,48,null,56,null,34,34,34,null,43,43,43,43,43,null,57,null,null,53,53,53,53,null,35,35,35,null,54,54,null,55,null,55,55,null,41,41,41,null,41,null,23,45]
["3446789876535567897545698654567895678910196789987898879999989897898976410987989943698954987896894789",null,null,null,10,3,4,4,6,7,8,9,8,7,6,5,3,5,5,6,7,8,9,7,5,4,5,6,9,8,6,5,4,5,6,7,8,9,5,6,7,8,9,1,0,1,9,6,7,8,9,9,8,7,8,9,8,8,7,9,9,9,9,9,8,9,8,9,7,8,9,8,9,7,6,4,1,0,9,8,7,9,8,9,9,4,3,6,9,8,9,5,4,9,8,7,8,9,6,8,9,4,7,8,9,10,null,"","","","","","","","","","","","","","","","","","","","","","","","","","","","","","","","","","","","","","","",1,"","","","","","","","","","","","","","","","","","","","","","","","","","","","","","","","",1,"","","","","","","","","","","","","","","","","","","","","","","","","","","",null,45,45,45,45,45,45,null,39,39,39,39,39,39,39,39,39,39,null,50,50,50,50,50,null,51,51,51,51,51,51,51,51,null,52,52,52,52,null,47,47,47,null,47,47,47,null,null,32,32,32,null,32,32,32,null,null,null,null,null,48,null,48,null,56,56,null,34,null,43,43,43,43,43,null,57,57,null,57,null,null,53,53,53,null,35,null,54,54,null,55,55,55,null,55,55,null,41,41,41,null,null,24,4]
["2135678987676698976523987643789954578922989998998949989989994946789654329896778894569769876685789991",null,null,null,10,2,1,3,5,6,7,8,9,8,7,6,7,6,6,9,8,9,7,6,5,2,3,9,8,7,6,4,3,7,8,9,9,5,4,5,7,8,9,2,2,9,8,9,9,9,8,9,9,8,9,4,9,9,8,9,9,8,9,9,9,4,9,4,6,7,8,9,6,5,4,3,2,9,8,9,6,7,7,8,8,9,4,5,6,9,7,6,9,8,7,6,6,8,5,7,8,9,9,9,1,10,null,"",2,"","","","","","","","","","","","","","","","","","",3,"","","","","","",4,"","","","","","","","","","","","","","","","","","","","","","",5,"","","","","","","","","","","","","","","","","","","","","","","","","","","","","","","","","","","","","","","","","","","","","","","","","",null,45,45,45,45,45,45,45,null,39,39,39,39,39,39,null,39,null,50,50,50,50,50,null,51,51,51,51,51,51,51,null,null,52,52,52,52,52,null,47,47,null,58,null,null,null,58,null,null,32,null,59,null,null,32,null,null,60,null,null,null,56,null,56,56,56,56,null,43,43,43,43,43,null,57,null,57,57,57,57,57,null,53,53,53,null,54,54,null,55,55,55,55,55,55,55,55,null,null,null,61,null,25,35]
["4576799598989789765435698755678943458939878887899656997678943235998785498765456789999898765434567890",null,null,null,10,4,5,7,6,7,9,9,5,9,8,9,8,9,7,8,9,7,6,5,4,3,5,6,9,8,7,5,5,6,7,8,9,4,3,4,5,8,9,3,9,8,7,8,8,8,7,8,9,9,6,5,6,9,9,7,6,7,8,9,4,3,2,3,5,9,{"$f":"_xlfn.NUMBERVALUE(MID($A26, BS$1, 1))","v":9},8,7,8,5,4,9,8,7,6,5,4,5,6,7,8,9,9,9,9,8,9,8,7,6,5,4,3,4,5,6,7,8,9,0,10,null,"","","","","","","","","","","","","","","","","","","","","","","","","","","","","","","","","",4,"","","","","","","","","","","","","","","","","","","","","","","","","","","","","","","","","","","","","","","","","","","","","","","","","","","","","","","","","","","","","","","","","",1,null,45,45,45,45,45,null,null,62,null,39,null,39,null,39,39,null,50,50,50,50,50,50,50,null,51,51,51,51,51,51,51,null,52,52,52,52,52,null,47,null,58,58,58,58,58,58,58,null,null,59,59,59,null,null,60,60,60,60,null,56,56,56,56,56,null,null,43,43,43,43,43,null,57,57,57,57,57,57,57,57,57,null,null,null,null,54,null,55,55,55,55,55,55,55,55,55,55,55,null,61,null,26,16]
["5689895409499899876546798767789656567898766776789769874589432129899896599854345676789999984323456789",null,null,null,10,5,6,{"$f":"_xlfn.NUMBERVALUE(MID($A27, H$1, 1))","v":8},9,8,9,5,4,0,9,4,9,9,8,9,9,8,7,6,5,4,6,7,9,8,7,6,7,7,8,9,6,5,6,5,6,7,8,9,8,7,6,6,7,7,6,7,8,9,7,6,9,8,7,4,5,8,9,4,3,2,1,2,9,8,9,9,8,9,6,5,9,9,8,5,4,3,4,5,6,7,6,7,8,9,9,9,9,9,8,4,3,2,3,4,5,6,7,8,9,10,null,"","","","","","","","",1,"","","","","","","","","","","","","","","","","","","","","","","","","","","","","","","","","","","","","","","","","","","","","",5,"","","","","","","","","","","","","","","","","","","","","","","","","","","","","","","","","","","","","","","","","","","","","",null,45,45,45,null,45,null,62,62,62,null,62,null,null,39,null,null,50,50,50,50,50,50,50,null,51,51,51,51,51,51,null,52,52,52,52,52,52,52,null,58,58,58,58,58,58,58,58,58,null,59,59,null,60,60,60,60,60,null,56,56,56,56,56,null,63,null,null,43,null,43,43,null,null,57,57,57,57,57,57,57,57,57,57,57,null,null,null,null,null,55,55,55,55,55,55,55,55,55,55,null,null,27,3]
["6799974312347999987656899878998798678987655575899998765696541098785987987943234545689998543012347895",null,null,null,10,6,7,9,9,9,7,4,3,1,2,3,4,7,9,9,9,9,8,7,6,5,6,8,9,9,8,7,8,9,9,8,7,9,8,6,7,8,9,8,7,6,5,5,5,7,5,8,9,9,9,9,8,7,6,5,6,9,6,5,4,1,0,9,8,7,8,5,9,8,7,9,8,7,9,4,3,2,3,4,5,4,5,6,8,9,9,9,8,5,4,3,0,1,2,3,4,7,8,9,5,10,null,"","","","","","","","","","","","","","","","","","","","","","","","","","","","","","","","","","","","","","","","","","","","","","","","","","","","","","","","","","","","","",1,"","","","","","","","","","","","","","","","","","","","","","","","","","","","","",1,"","","","","","","","",null,45,45,null,null,null,62,62,62,62,62,62,62,62,null,null,null,null,50,50,50,50,50,50,null,null,51,51,51,null,null,52,52,null,52,52,52,52,null,58,58,58,58,58,58,58,58,58,null,null,null,null,60,60,60,60,60,null,56,56,56,56,56,null,63,63,63,63,null,43,43,null,57,57,null,57,57,57,57,57,57,57,57,57,57,null,null,null,55,55,55,55,55,55,55,55,55,55,55,null,64,null,28,29]
["7898765423456789898967945989439899889876543454689899876789652987654598996432101235678987652125456954",null,null,null,10,7,8,9,8,7,6,5,4,2,3,4,5,6,7,8,9,8,9,8,9,6,7,9,4,5,9,8,9,4,3,9,8,9,9,8,8,9,8,7,6,5,4,3,4,5,4,6,8,9,8,9,9,8,7,6,7,8,9,6,5,2,9,8,7,6,5,4,5,9,8,9,9,6,4,3,2,1,0,1,2,3,5,6,7,8,9,8,7,6,5,2,1,2,5,4,5,6,9,5,4,10,null,"","","","","","","","","","","","","","","","","","","","","","","","","","","","","","","","","","","","","","","","","","","","","","","","","","","","","","","","","","","","","","","","","","",5,"","","","","","","","","","",1,"","","","","","","","","","","","","","","","","","","","","","",null,45,45,null,62,62,62,62,62,62,62,62,62,62,62,62,null,65,null,50,null,50,50,null,66,66,null,51,null,67,67,null,52,null,null,52,52,null,58,58,58,58,58,58,58,58,58,58,58,null,58,null,null,60,60,60,60,60,null,56,56,56,null,63,63,63,63,63,63,null,43,null,null,57,57,57,57,57,57,57,57,57,57,57,57,57,null,55,55,55,55,55,55,55,55,55,55,55,null,64,64,null,29,50]
["8929876567867896789878939896323920998765442123456789987898543998767679999545237897789876543434587893",null,null,null,10,8,9,2,9,8,7,6,5,6,7,8,6,7,8,9,6,7,8,9,8,7,8,9,3,9,8,9,6,3,2,3,9,2,0,9,9,8,7,6,5,4,4,2,1,2,3,4,5,6,7,8,9,9,8,7,8,9,8,5,4,3,9,9,8,7,{"$f":"_xlfn.NUMBERVALUE(MID($A30, BS$1, 1))","v":6},7,6,7,9,9,9,9,5,4,5,2,3,7,8,9,7,7,8,9,8,7,6,5,4,3,4,3,4,5,8,7,8,9,3,10,null,"","","","","","","","","","","","","","","","","","","","","","","",4,"","","","","",3,"","","",1,"","","","","","","","","","","","","","","","","","","","","","","","","","","","","","","","","","","","","","","","","","","","","","","","","","","","","","","","","","","","","","","","","","",null,45,null,68,null,62,62,62,62,62,62,62,62,62,62,null,65,65,65,null,50,50,50,null,66,null,67,null,67,67,67,67,null,69,69,null,null,58,58,58,58,58,58,58,58,58,58,58,58,58,58,58,null,null,60,60,60,null,56,56,56,56,null,null,63,63,63,63,63,63,null,null,null,null,57,57,57,57,57,57,57,null,57,57,57,null,55,55,55,55,55,55,55,55,55,55,55,55,55,null,64,null,30,34]
["9213987678879975698989498765434591239754321012367890198987659899978789987656346789896987656568998932",null,null,null,10,9,2,{"$f":"_xlfn.NUMBERVALUE(MID($A31, H$1, 1))","v":1},3,9,8,7,6,7,8,8,7,9,9,7,5,6,9,8,9,8,9,4,9,8,7,6,5,4,3,4,5,9,1,2,3,9,7,5,4,3,2,1,0,1,2,3,6,7,8,9,0,1,9,8,9,8,7,6,5,9,8,9,9,9,7,8,7,8,9,9,8,7,6,5,6,3,4,6,7,8,9,8,9,6,9,8,7,6,5,6,5,6,8,9,9,8,9,3,2,10,null,"","","","","","","","","","","","","","","","","","","","","","","","","","","","","","","","","","","","","","","","","","","",1,"","","","","","","",1,"","","","","","","","","","","","","","","","","","","","","","","","","","","","","","","","","","","","","","","","","","","","","","","","",null,null,68,68,68,null,62,62,62,62,62,62,62,null,null,65,65,65,null,70,null,50,null,70,null,67,67,67,67,67,67,67,67,null,69,69,69,null,58,58,58,58,58,58,58,58,58,58,58,58,58,null,71,71,null,60,null,56,56,56,56,null,72,null,null,null,63,63,63,63,null,null,57,57,57,57,57,57,57,57,57,57,null,57,null,73,null,55,55,55,55,55,55,55,55,null,null,55,null,64,64,null,31,30]
["2102798999989454987692349976596789998765672123478989999998798789989893498768458999995498897789679321",null,null,null,10,2,1,0,2,7,9,8,9,9,9,9,8,9,4,5,4,9,8,7,6,9,2,3,4,9,9,7,6,5,9,6,7,8,9,9,9,8,7,6,5,6,7,2,1,2,3,4,7,8,9,8,9,9,9,9,9,9,8,7,9,8,7,8,9,9,8,9,8,9,3,4,9,8,7,6,8,4,5,8,9,9,9,9,9,5,4,9,8,8,9,7,7,8,9,6,7,9,3,2,1,10,null,"","",1,"","","","","","","","","","","","","","","","","","",3,"","","","","","","","","","","","","","","","","","","","","","","","","","","","","","","","","","","","","","","","","","","","","","","","","","","","","","","","","","","","","","","","","","","","","","","","","","","","","",2,null,68,68,68,68,68,null,62,null,null,null,null,62,null,65,65,65,null,70,70,70,null,70,70,70,null,null,67,67,67,null,67,67,67,null,null,null,58,58,58,58,58,58,58,58,58,58,58,58,58,null,74,null,null,null,null,null,null,56,56,null,72,72,72,null,null,63,null,63,null,75,75,null,57,57,57,57,57,57,57,null,null,null,null,null,73,73,null,55,55,null,55,55,55,null,76,76,null,64,64,64,null,32,93]
["3215699989994343598543568989987899879876543234679678899999987678999932349879569328789349998894598762",null,null,null,10,3,2,1,5,6,9,9,9,8,9,9,9,4,3,4,3,5,9,8,5,4,3,5,6,8,9,8,9,9,8,7,8,9,9,8,7,9,8,7,6,5,4,3,2,3,4,6,7,9,6,7,8,8,9,9,9,9,9,9,8,7,6,7,8,9,9,9,9,3,2,3,4,9,8,7,9,5,6,9,3,2,8,7,8,9,3,4,9,9,9,8,8,9,4,5,9,8,7,6,2,10,null,"","","","","","","","","","","","","","","","","","","","","","","","","","","","","","","","","","","","","","","","","","","","","","","","","","","","","","","","","","","","","","","","","","","","","","","","","","","","","","","","","","","","","",4,"","","","","","","","","","","","","","",null,68,68,68,68,68,null,null,null,77,null,null,null,65,65,65,65,65,null,70,70,70,70,70,70,70,null,67,null,null,67,67,67,null,null,78,78,null,58,58,58,58,58,58,58,58,58,58,58,null,74,74,74,74,null,null,null,null,null,null,72,72,72,72,72,null,null,null,null,75,75,75,75,null,57,57,null,57,57,null,79,79,79,79,79,null,73,73,null,null,null,55,55,null,76,76,null,64,64,64,64,null,33,14]
["4324989878943232349694567895698910965987654345789556789899976545989321278998678915678998769923459853",null,null,null,10,4,3,2,4,9,8,9,8,7,8,9,4,3,2,3,2,3,4,9,6,9,4,5,6,7,8,9,5,6,9,8,9,1,0,9,6,5,9,8,7,6,5,4,3,4,5,7,8,9,5,5,6,7,8,9,8,9,9,9,7,6,5,4,5,9,{"$f":"_xlfn.NUMBERVALUE(MID($A34, BS$1, 1))","v":8},9,3,2,1,2,7,8,9,9,8,6,7,8,9,1,5,6,7,8,9,9,8,7,6,9,9,2,3,4,5,9,8,5,3,10,null,"","","","","","","","","","","","","","","","","","","","","","","","","","","","","","","","","",1,"","",6,"","","","","","","","","","","","","","","","","","","","","","","","","","","","","","","","",2,"","","","","","","","","","",2,"","","","","","","","","","","","","","","","","","","",null,68,68,68,68,null,77,null,77,77,77,null,65,65,65,65,65,65,65,null,70,null,70,70,70,70,70,null,80,80,null,67,null,81,81,null,78,78,null,58,58,58,58,58,58,58,58,58,58,null,74,74,74,74,74,null,82,null,null,null,72,72,72,72,72,null,83,null,75,75,75,75,75,75,null,null,57,57,57,57,null,79,79,79,79,79,null,null,76,76,76,null,null,76,76,76,76,null,64,64,64,null,34,77]
["5439876767893101298989678934999329877998765459994345698799875439878932567899989434589897543214598767",null,null,null,10,5,4,{"$f":"_xlfn.NUMBERVALUE(MID($A35, H$1, 1))","v":3},9,8,7,6,7,6,7,8,9,3,1,0,1,2,9,8,9,8,9,6,7,8,9,3,4,9,9,9,3,2,9,8,7,7,9,9,8,7,6,5,4,5,9,9,9,4,3,4,5,6,9,8,7,9,9,8,7,5,4,3,9,8,7,8,9,3,2,5,6,7,8,9,9,9,8,9,4,3,4,5,8,9,8,9,7,5,4,3,2,1,4,5,9,8,7,6,7,10,null,"","","","","","","","","","","","","","",1,"","","","","","","","","","","","","","","","","","","","","","","","","","","","","","","","","","","","","","","","","","","","","","","",4,"","","","","","","","","","","","","","","","","","","","","","","","","","","","","",2,"","","","","","","",null,68,68,68,null,77,77,77,77,77,77,77,null,65,65,65,65,65,null,84,null,84,null,70,70,70,null,80,80,null,null,null,81,81,null,78,78,78,null,null,58,58,58,58,58,58,null,null,null,74,74,74,74,74,null,82,82,null,null,72,72,72,72,72,null,83,83,83,null,75,75,75,75,75,75,null,null,null,57,null,79,79,79,79,79,null,85,null,76,76,76,76,76,76,76,76,null,64,64,64,64,null,35,78]
["7598765656964567987978989129878934989899887598943235987679876798767893459902496545698789654323459898",null,null,null,10,7,5,9,8,7,6,5,6,5,6,9,6,4,5,6,7,9,8,7,9,7,8,9,8,9,1,2,9,8,7,8,9,3,4,9,8,9,8,9,9,8,8,7,5,9,8,9,4,3,2,3,5,9,8,7,6,7,9,8,7,6,7,9,8,7,6,7,8,9,3,4,5,9,9,0,2,4,9,6,5,4,5,6,9,8,7,8,9,6,5,4,3,2,3,4,5,9,8,9,8,10,null,"","","","","","","","","","","","","","","","","","","","","","","","","",2,"","","","","","","","","","","","","","","","","","","","","","","","","","","","","","","","","","","","","","","","","","","","","","","","",1,"","","","","","","","","","","","","","","","","","","","","","","","","",null,68,68,null,77,77,77,77,77,77,77,null,65,65,65,65,65,null,84,84,null,84,84,null,70,null,80,80,null,86,86,86,null,81,81,null,78,null,87,null,null,58,58,58,58,null,88,null,74,74,74,74,74,null,82,82,82,82,null,72,72,72,72,null,83,83,83,83,83,null,75,75,75,null,null,89,89,89,null,79,79,79,79,79,null,85,85,85,null,76,76,76,76,76,76,76,76,null,64,null,64,null,36,4]
["8987654349895879896867899998769895798789999987899102398589987987656789567893987667987678965456967989",null,null,null,10,8,9,8,7,6,5,4,3,4,9,8,9,5,8,7,9,8,9,6,8,6,7,8,9,9,9,9,8,7,6,9,8,9,5,7,9,8,7,8,9,9,9,9,9,8,7,8,9,9,1,0,2,3,9,8,5,8,9,9,8,7,9,8,7,6,5,6,7,8,9,5,6,7,8,9,3,9,8,7,6,6,7,9,8,7,6,7,8,9,6,5,4,5,6,9,6,7,9,8,9,10,null,"","","","","","","","","","","","","","","","","","","","","","","","","","","","","","","","","","","","","","","","","","","","","","","","","","",1,"","","","","","","","","","","","","","",6,"","","","","","","","","","","","","","","","","","","","","","","","","","","","","","","","","","",null,68,null,77,77,77,77,77,77,77,null,77,null,65,65,65,null,84,null,84,84,84,84,84,null,null,null,null,86,86,86,null,86,null,81,81,null,87,87,87,null,null,null,null,null,88,88,88,null,null,74,74,74,74,null,82,82,82,null,null,72,72,null,83,83,83,83,83,83,83,null,75,75,75,75,null,89,null,79,79,79,79,79,null,85,85,85,85,85,null,76,76,76,76,76,null,76,76,null,90,null,null,37,3]
["9876543234789998765456789899658789989676899876778993459456798998987897678954598989876567896567899877",null,null,null,10,9,8,7,6,5,4,3,2,3,4,7,8,9,9,9,8,7,6,5,4,5,6,7,8,9,8,9,9,6,5,8,7,8,9,9,8,9,6,7,6,8,9,9,8,7,6,7,7,8,9,9,3,4,5,9,4,5,6,7,9,8,9,9,8,9,{"$f":"_xlfn.NUMBERVALUE(MID($A38, BS$1, 1))","v":8},7,8,9,7,6,7,8,9,5,4,5,9,8,9,8,9,8,7,6,5,6,7,8,9,6,5,6,7,8,9,9,8,7,7,10,null,"","","","","","","","","","","","","","","","","","","","","","","","","","","","","","","","","","","","","","","","","","","","","","","","","","","","","","","","","","","","","","","","","","","","","","","","","","","","","","","","","","","","","","","","","","","","","","","","","","","","",null,null,77,77,77,77,77,77,77,77,77,77,77,null,null,null,84,84,84,84,84,84,84,84,84,null,84,null,null,86,86,86,86,86,null,null,87,null,87,87,87,87,null,null,88,88,88,88,88,88,null,null,74,74,74,null,82,82,82,82,null,72,null,null,83,null,83,83,83,null,75,75,75,75,null,89,89,89,null,79,null,79,null,85,85,85,85,85,85,85,null,76,76,76,76,76,null,null,90,90,90,null,38,19]
["8987894123678987654347896789745679877565789995467889569323459999698998999997699998765457899678998766",null,null,null,10,8,9,{"$f":"_xlfn.NUMBERVALUE(MID($A39, H$1, 1))","v":8},7,8,9,4,1,2,3,6,7,8,9,8,7,6,5,4,3,4,7,8,9,6,7,8,9,7,4,5,6,7,9,8,7,7,5,6,5,7,8,9,9,9,5,4,6,7,8,8,9,5,6,9,3,2,3,4,5,9,9,9,9,6,9,8,9,9,8,9,9,9,9,9,7,6,9,9,9,9,8,7,6,5,4,5,7,8,9,9,6,7,8,9,9,8,7,6,6,10,null,"","","","","","","",2,"","","","","","","","","","","","","","","","","","","","","","","","","","","","","","","","","","","","","","","","","","","","","","","","","","","","","","","","","","","","","","","","","","","","","","","","","","","","","","","","","","","","","","","","","","","","",null,91,null,77,77,77,null,77,77,77,77,77,77,77,null,84,84,84,84,84,84,84,84,84,null,84,84,84,null,86,86,86,86,86,null,87,87,87,87,87,87,87,87,null,null,null,88,88,88,88,88,88,null,74,74,null,82,82,82,82,82,null,null,null,null,92,null,83,null,null,75,null,null,null,null,null,89,89,null,null,null,null,85,85,85,85,85,85,85,85,null,null,76,76,76,null,null,90,90,90,90,null,39,89]
["7998963234589998743212345678934599965434678984345678998909567894589989889989789989874356788989987655",null,null,null,10,7,9,9,8,9,6,3,2,3,4,5,8,9,9,9,8,7,4,3,2,1,2,3,4,5,6,7,8,9,3,4,5,9,9,9,6,5,4,3,4,6,7,8,9,8,4,3,4,5,6,7,8,9,9,8,9,0,9,5,6,7,8,9,4,5,8,9,9,8,9,8,8,9,9,8,9,7,8,9,9,8,9,8,7,4,3,5,6,7,8,8,9,8,9,9,8,7,6,5,5,10,null,"","","","","","","","","","","","","","","","","","","","",2,"","","","","","","","","","","","","","","","","","","","","","","","","","","","","","","","","","","",1,"","","","","","","","","","","","","","","","","","","","","","","","","","","","","","","","","","","","","","","","","","","",null,91,null,null,77,null,77,77,77,77,77,77,77,null,null,null,84,84,84,84,84,84,84,84,84,84,84,84,84,null,86,86,86,null,null,null,87,87,87,87,87,87,87,87,null,88,88,88,88,88,88,88,88,null,null,93,null,82,null,82,82,82,82,null,92,92,92,null,null,94,null,94,94,null,null,94,null,89,89,null,null,85,null,85,85,85,85,85,85,85,85,85,null,76,null,null,90,90,90,90,90,null,40,10]
["6987654345678999854323489789125987654323459876289789987698978923679879779878999876543249867899876534",null,null,null,10,6,9,8,7,6,5,4,3,4,5,6,7,8,9,9,9,8,5,4,3,2,3,4,8,9,7,8,9,1,2,5,9,8,7,6,5,4,3,2,3,4,5,9,8,7,6,2,8,9,7,8,9,9,8,7,6,9,8,9,7,8,9,2,3,6,7,9,8,7,9,7,7,9,8,7,8,9,9,9,8,7,6,5,4,3,2,4,9,8,6,7,8,9,9,{"$f":"_xlfn.NUMBERVALUE(MID($A41, CV$1, 1))","v":8},7,6,5,3,4,10,null,"","","","","","","","","","","","","","","","","","","","","","","","","","","","",2,"","","","","","","","","","","","","","","","","","","","","","","","","","","","","","","","","","","","","","","","","","","","","","","","","","","","","","","","","","","","","","","","","","","","","","","",null,91,null,77,77,77,77,77,77,77,77,77,77,77,null,null,null,84,84,84,84,84,84,84,84,null,84,84,null,86,86,86,null,87,87,87,87,87,87,87,87,87,87,null,88,88,88,88,88,null,88,88,null,null,93,93,93,null,93,null,82,82,null,92,92,92,92,null,94,94,null,94,94,null,94,94,94,null,null,null,85,85,85,85,85,85,85,85,null,85,85,85,85,null,null,90,90,90,90,90,90,null,41,48]
["5498775456789999765435678999939876543212598765178999876567899219798765665769899995454123456789764323",null,null,null,10,5,4,9,8,7,7,5,4,5,6,7,8,9,9,9,9,7,6,5,4,3,5,6,7,8,9,9,9,9,3,9,8,7,6,5,4,3,2,1,2,5,9,8,7,6,5,1,7,8,9,9,9,8,7,6,5,6,7,8,9,9,2,1,9,7,{"$f":"_xlfn.NUMBERVALUE(MID($A42, BS$1, 1))","v":9},8,7,6,5,6,6,5,7,6,9,8,9,9,9,9,5,4,5,4,1,{"$f":"_xlfn.NUMBERVALUE(MID($A42, CN$1, 1))","v":2},3,4,5,6,7,8,9,7,6,4,3,2,3,10,null,"","","","","","","","","","","","","","","","","","","","","","","","","","","","","","","","","","","","","","","","","","","","","","","","","","","","","","","","","","","","","","",2,"","","","","","","","","","","","","","","","","","","","","","","","","","","","","","","","","","","","","",null,91,91,null,77,77,77,77,77,77,77,77,77,null,null,null,null,84,84,84,84,84,84,84,84,84,null,null,null,null,86,null,87,87,87,87,87,87,87,87,87,87,null,88,88,88,88,88,88,88,null,null,null,93,93,93,93,93,93,93,null,null,92,92,null,92,null,94,94,94,94,94,94,94,94,94,null,94,null,null,null,null,85,85,85,85,85,85,85,85,85,85,85,85,null,90,90,90,90,90,90,null,42,2]
["4309886578996789986545789579899987654101987654068999985458965498999854523456789876321012347997653213",null,null,null,10,4,3,{"$f":"_xlfn.NUMBERVALUE(MID($A43, H$1, 1))","v":0},9,8,8,6,5,7,8,9,9,6,7,8,9,9,8,6,5,4,5,7,8,9,5,7,9,8,9,9,9,8,7,6,5,4,1,0,1,9,8,7,6,5,4,0,6,8,9,9,9,9,8,5,4,5,8,9,6,5,4,9,8,9,9,9,8,5,4,5,2,3,4,5,6,7,8,9,8,7,6,3,2,1,0,1,2,3,4,7,9,9,7,6,5,3,2,1,3,10,null,"","",1,"","","","","","","","","","","","","","","","","","","","","","","","","","","","","","","","","","","",1,"","","","","","","",1,"","","","","","","","",5,"","","","","","","","","","","","","","","","","","","","","","","","","","","","","",1,"","","","","","","","","","","","",2,"",null,91,91,91,null,77,77,77,77,77,77,null,null,95,95,95,null,null,84,84,84,84,84,84,84,null,96,96,null,97,null,null,null,87,87,87,87,87,87,87,87,null,88,88,88,88,88,88,88,88,null,null,null,null,93,93,93,93,93,null,92,92,92,null,98,null,null,null,94,94,94,94,94,94,94,94,94,94,94,null,85,85,85,85,85,85,85,85,85,85,85,85,null,null,90,90,90,90,90,90,90,null,43,49]
["3212997689345996797656895498789876543212398743256789876578976987987643212345999865432134469998754324",null,null,null,10,3,2,1,2,9,9,7,6,8,9,3,4,5,9,9,6,7,9,7,6,5,6,8,9,5,4,9,8,7,8,9,8,7,6,5,4,3,2,1,2,3,9,8,7,4,3,2,5,6,7,8,9,8,7,6,5,7,8,9,7,6,9,8,7,9,8,7,6,4,3,2,1,2,3,4,5,9,9,9,8,6,5,4,3,2,1,3,4,4,6,9,9,9,8,7,5,4,3,2,4,10,null,"","","","","","","","","","","","","","","","","","","","","","","","","",5,"","","","","","","","","","","","","","","","","","","","","","","","","","","","","","","","","","","","","","","","","","","","","","","","","","","","","","","","","","","","","","","","","","","","","","","","","","",null,91,91,91,91,null,null,77,77,77,null,95,95,95,null,null,99,99,null,84,84,84,84,84,null,96,96,null,97,97,97,null,87,87,87,87,87,87,87,87,87,87,null,88,88,88,88,88,88,88,88,88,null,93,93,93,93,93,93,null,92,92,null,98,98,null,94,94,94,94,94,94,94,94,94,94,94,null,null,null,85,85,85,85,85,85,85,85,85,85,85,null,null,null,90,90,90,90,90,90,90,null,44,8]
["4323498793239895698787976987678988665425459754345896997699989876798932101256895976654346567899765436",null,null,null,10,4,3,2,3,4,9,8,7,9,3,2,3,9,8,9,5,6,9,8,7,8,7,9,7,6,9,8,7,6,7,8,9,8,8,6,6,5,4,2,5,4,5,9,7,5,4,3,4,5,8,9,6,9,9,7,6,9,9,9,8,9,8,7,6,7,9,8,9,3,2,1,0,1,2,5,6,8,9,5,9,7,6,6,5,4,3,4,6,5,6,7,8,9,9,7,6,5,4,3,6,10,null,"","","","","","","","","","","","","","","",6,"","","","","","","","","","","","","","","","","","","","","","","","","","","","","","","","","","","","","","","","","","","","","","","","","","","","","","","",1,"","","","","","","","","","","","","","","","","","","","","","","","","","","","",null,91,91,91,91,91,null,77,77,null,95,95,95,null,100,null,99,99,null,84,84,84,84,null,96,96,null,97,97,97,97,97,null,87,87,87,87,87,87,87,87,87,87,null,88,88,88,88,88,88,88,null,101,null,null,93,93,null,null,null,92,null,98,98,98,98,null,94,null,94,94,94,94,94,94,94,94,94,null,102,null,85,85,85,85,85,85,85,85,85,85,85,85,null,null,90,90,90,90,90,90,null,45,39]
["5634599892109789999898997896567999776434769865456794598789998765679893212367914987765457878999896597",null,null,null,10,5,6,3,4,5,9,9,8,9,2,1,0,9,7,8,9,9,9,9,8,9,8,9,9,7,8,9,6,5,6,7,9,9,9,7,7,6,4,3,4,7,6,9,8,6,5,4,5,6,7,9,4,5,9,8,7,8,9,9,9,8,7,6,5,6,{"$f":"_xlfn.NUMBERVALUE(MID($A46, BS$1, 1))","v":7},9,8,9,3,2,1,2,3,6,7,9,1,4,9,8,7,7,6,5,4,5,7,8,7,8,9,9,9,8,9,6,5,9,7,10,null,"","","","","","","","","","","",1,"","","","","","","","","","","","","","","","","","","","","","","","","","","","","","","","","","","","","","","","","","","","","","","","","","","","","","","","","","","","","","","","","",2,"","","","","","","","","","","","","","","","","","","","","","",null,91,91,91,91,91,null,null,77,null,95,95,95,null,100,100,null,null,null,null,84,null,84,null,null,96,96,null,97,97,97,97,null,null,null,87,87,87,87,87,87,87,87,null,88,88,88,88,88,88,88,null,101,101,null,93,93,93,null,null,null,98,98,98,98,98,98,null,94,null,94,94,94,94,94,94,94,null,102,102,null,85,85,85,85,85,85,85,85,85,85,85,null,null,null,90,null,90,90,null,90,null,46,5]
["6545987989997679896969898995458999889556878976567893499899987674398765324578923599876768989989987698",null,null,null,10,6,5,{"$f":"_xlfn.NUMBERVALUE(MID($A47, H$1, 1))","v":4},5,9,8,7,9,8,9,9,9,7,6,7,9,8,9,6,9,6,9,8,9,8,9,9,5,4,5,8,9,9,9,8,8,9,5,5,6,8,7,8,9,7,6,5,6,7,8,9,3,4,9,9,8,9,9,9,8,7,6,7,4,3,9,8,7,6,5,3,2,4,5,7,8,9,2,3,5,9,9,8,7,6,7,6,8,9,8,9,9,8,9,9,8,7,6,9,8,10,null,"","","","","","","","","","","","","","","","","","","","","","","","","","","","","","","","","","","","","","","","","","","","","","","","","","","","","","","","","","","","","","","","","","","","","","","","","","","","","","","","","","","","","","","","","","","","","","","","","","","","",null,91,91,91,91,null,103,103,null,103,null,null,null,100,100,100,null,104,null,104,null,104,null,104,null,96,null,null,97,97,97,97,null,null,null,87,87,null,87,87,87,87,87,87,null,88,88,88,88,88,88,null,101,101,null,null,93,null,null,null,98,98,98,98,98,98,null,94,94,94,94,94,94,94,94,94,94,null,102,102,102,null,null,85,85,85,85,85,85,null,85,null,null,105,null,null,90,90,90,null,90,null,47,34]
["7659876567896598765456789884367899998667999987878912987999896543219898545689894999989889595678998999",null,null,null,10,7,6,5,9,8,7,6,5,6,7,8,9,6,5,9,8,7,6,5,4,5,6,7,8,9,8,8,4,3,6,7,8,9,9,9,9,8,6,6,7,9,9,9,9,8,7,8,7,8,9,1,2,9,8,7,9,9,9,8,9,6,5,4,3,2,1,9,8,9,8,5,4,5,6,8,9,8,9,4,9,9,9,9,8,9,8,8,9,5,9,5,6,7,8,9,9,8,9,9,9,10,null,"","","","","","","","","","","","","","","","","","","","","","","","","","","","",4,"","","","","","","","","","","","","","","","","","","","","",2,"","","","","","","","","","","","","","","","","","","","","","","","","","","","","","","","","","","","","","","","","","","","","","","","","",null,91,91,91,null,103,103,103,103,103,103,103,null,100,100,null,104,104,104,104,104,104,104,104,104,null,97,97,97,97,97,97,97,null,null,null,null,87,87,87,87,null,null,null,null,88,88,88,88,88,null,101,101,null,106,106,null,null,null,106,null,98,98,98,98,98,98,null,94,null,94,94,94,94,94,94,null,107,null,102,null,null,null,null,85,null,85,85,null,105,null,105,105,105,105,null,null,90,null,null,null,null,48,14]
["8767985456789459876345798765456789098788998698989893976789789654102987676798789878999995434578999999",null,null,null,10,8,7,6,7,9,8,5,4,5,6,7,8,9,4,5,9,8,7,6,3,4,5,7,9,8,7,6,5,4,5,6,7,8,9,0,9,8,7,8,8,9,9,8,6,9,8,9,8,9,8,9,3,9,7,6,7,8,9,7,8,9,6,5,4,1,0,2,9,8,7,6,7,6,7,9,8,7,8,9,8,7,8,9,9,9,9,9,5,4,3,4,5,7,8,9,9,9,9,9,9,10,null,"","","","","","","","","","","","","","","","","","","","","","","","","","","","","","","","","","",1,"","","","","","","","","","","","","","","","","","","","","","","","","","","","","","",1,"","","","","","","","","","","","","","","","","","","","","","","","","","","","","","","","","","",null,91,91,91,91,null,103,103,103,103,103,103,103,null,100,100,null,104,104,104,104,104,104,104,null,97,97,97,97,97,97,97,97,97,null,108,null,87,87,87,87,null,null,109,109,null,88,null,88,null,109,null,101,null,106,106,106,106,null,106,106,null,98,98,98,98,98,98,null,94,94,94,94,94,94,null,107,107,107,null,107,107,107,null,null,null,null,null,105,105,105,105,105,105,105,null,null,null,null,null,null,null,49,2]
["9879894348992345987212349878567892199999769439396789765345698765233498987897678767898765323467899989",null,null,null,10,9,8,7,9,8,9,4,3,4,8,9,9,2,3,4,5,9,8,7,2,1,2,3,4,9,8,7,8,5,6,7,8,9,2,1,9,9,9,9,9,7,6,9,4,3,9,3,9,6,7,8,9,7,6,5,3,4,5,6,9,8,7,6,5,2,{"$f":"_xlfn.NUMBERVALUE(MID($A50, BS$1, 1))","v":3},3,4,9,8,9,8,7,8,9,7,6,7,8,7,6,7,8,9,8,7,6,5,3,2,3,4,6,7,8,9,9,9,8,9,10,null,"","","","","","","","","","","","",3,"","","","","","","","","","","","","","","","","","","","","","","","","","","","","","","","","","","","","","","","","","","","","","","","","","","","","","","","","","","","","","","","","","","","","","","","","","","","","","","","","","","","","","","",null,null,91,91,null,103,null,103,103,103,103,null,null,100,100,100,100,null,104,104,104,104,104,104,104,null,97,97,97,97,97,97,97,null,108,108,null,null,null,null,null,109,109,null,109,109,null,109,null,109,109,109,null,106,106,106,106,106,106,106,null,98,98,98,98,98,98,98,98,null,94,null,94,94,94,null,107,107,107,107,107,107,107,107,null,105,105,105,105,105,105,105,105,105,105,105,null,null,null,110,null,null,50,45]
["5998763238943456992101299989678999989898954321245899854236789654344579398978569656789875412567999878",null,null,null,10,5,9,{"$f":"_xlfn.NUMBERVALUE(MID($A51, H$1, 1))","v":9},8,7,6,3,2,3,8,9,4,3,4,5,6,9,9,2,1,0,1,2,9,9,9,8,9,6,7,8,9,9,9,9,8,9,8,9,8,9,5,4,3,2,1,2,4,5,8,9,9,8,5,4,2,3,6,7,8,9,6,5,4,3,4,4,5,7,9,3,9,8,9,7,8,5,6,9,6,5,6,7,8,9,8,7,5,4,1,2,5,6,7,9,9,9,8,7,8,10,null,"","","","","","","",3,"","","","","","","","","","","","",1,"","","","","","","","","","","","","","","","","","","","","","","","","","","","","","","","","","",3,"","","","","","","","","","","","","","","","","","","","","","","","","","","","","","","","","","","","","","","","","","","","",null,111,null,null,103,103,103,103,103,103,103,null,100,100,100,100,100,null,null,104,104,104,104,104,null,null,null,97,null,97,97,97,null,null,null,null,112,null,112,null,112,null,109,109,109,109,109,109,109,109,109,null,null,106,106,106,106,106,106,106,106,null,98,98,98,98,98,98,98,98,null,113,null,94,null,107,107,107,107,null,107,107,107,107,107,null,105,105,105,105,105,105,105,105,105,null,null,null,110,110,110,null,51,46]
["3349654367894569894323989993989998776787895410123989969499999875696989299965456345698983101278987767",null,null,null,10,3,3,4,9,6,5,4,3,6,7,8,9,4,5,6,9,8,9,4,3,2,3,9,8,9,9,9,3,9,8,9,9,9,8,7,7,6,7,8,7,8,9,5,4,1,0,1,2,3,9,8,9,9,6,9,4,9,9,9,9,9,8,7,5,6,9,6,9,8,9,2,9,9,9,6,5,4,5,6,3,4,5,6,9,8,9,8,3,1,0,1,2,7,8,9,8,7,7,6,7,10,null,"","","","","","","","","","","","","","","","","","","","","","","","","","","","","","","","","","","","","","","","","","","","","",1,"","","","","","","","","","","","","","","","","","","","","","","","",3,"","","","","","","","","","","","","","","","","","",1,"","","","","","","","","","",null,111,111,111,null,103,103,103,103,103,103,103,null,100,100,100,null,104,null,104,104,104,104,null,114,null,null,null,115,null,97,null,null,null,112,112,112,112,112,112,112,112,null,109,109,109,109,109,109,109,null,109,null,null,106,null,106,null,null,null,null,null,98,98,98,98,null,98,null,98,null,113,null,null,null,107,107,107,107,107,107,107,107,107,null,116,null,105,105,105,105,105,105,105,105,null,110,110,110,110,110,null,52,38]
["2198767456987698765459878932199989545476789321234568998988921999987892987874321245897893294389876553",null,null,null,10,2,1,9,8,7,6,7,4,5,6,9,8,7,6,9,8,7,6,5,4,5,9,8,7,8,9,3,2,1,9,9,9,8,9,5,4,5,4,7,6,7,8,9,3,2,1,2,3,4,5,6,8,9,9,8,9,8,8,9,2,1,9,9,9,9,8,7,8,9,2,9,8,7,8,7,4,3,2,1,2,4,5,8,9,7,8,9,3,2,9,4,3,8,9,8,7,6,5,5,3,10,null,"","","","","","","","","","","","","","","","","","","","","","","","","","","","","","","","","","","","","","","","","","","","","","","","","","","","","","","","","","","","","","","","","","","","","","","","","","","","","","","","","","","","","","","","","","","","","","","","","","","","",null,111,111,null,103,103,103,103,103,103,103,null,100,100,100,null,104,104,104,104,104,104,null,114,114,114,null,115,115,115,null,null,null,112,null,112,112,112,112,112,112,112,112,null,109,109,109,109,109,109,109,109,109,null,null,117,null,117,117,null,118,118,null,null,null,null,98,98,98,null,119,null,107,107,107,107,107,107,107,107,107,107,107,107,null,116,116,null,105,105,null,105,105,105,null,110,110,110,110,110,110,null,53,14]
["9099876567899789986598767891019878234345679632345678997877890987998921976543210767896894989499965432",null,null,null,10,9,0,9,9,8,7,6,5,6,7,8,9,9,7,8,9,9,8,6,5,9,8,7,6,7,8,9,1,0,1,9,8,7,8,2,3,4,3,4,5,6,7,9,6,3,2,3,4,5,6,7,8,9,9,7,8,7,7,8,9,0,9,8,7,9,{"$f":"_xlfn.NUMBERVALUE(MID($A54, BS$1, 1))","v":9},8,9,2,1,9,7,6,5,4,3,2,1,0,7,6,7,8,9,6,8,9,4,9,8,9,4,9,9,9,6,5,4,3,2,10,null,"",1,"","","","","","","","","","","","","","","","","","","","","","","","","","",1,"","","","","","","","","","","","","","","","","","","","","","","","","","","","","","","",1,"","","","","","","","","","","","","","","","","",1,"","","","","","","","","","","","","","","","","","","","","",null,null,111,null,null,103,103,103,103,103,103,103,null,null,100,100,null,null,104,104,104,null,114,114,114,114,114,null,115,115,115,null,112,112,112,112,112,112,112,112,112,112,112,null,109,109,109,109,109,109,109,109,109,null,null,117,117,117,117,117,null,118,null,120,120,null,null,98,null,119,119,null,107,107,107,107,107,107,107,107,107,107,107,107,null,116,116,null,105,null,121,null,105,null,null,null,110,110,110,110,110,null,54,8]
["8986987678998990297987758989997967101234789543489989876466789876789890987654321459965989878999874321",null,null,null,10,8,9,{"$f":"_xlfn.NUMBERVALUE(MID($A55, H$1, 1))","v":8},6,9,8,7,6,7,8,9,9,8,9,9,0,2,9,7,9,8,7,7,5,8,9,8,9,9,9,7,9,6,7,1,0,1,2,3,4,7,8,9,5,4,3,4,8,9,9,8,9,8,7,6,4,6,6,7,8,9,8,7,6,7,8,9,8,9,0,9,8,7,6,5,4,3,2,1,4,5,9,9,6,5,9,8,9,8,7,8,9,9,9,8,7,4,3,2,1,10,null,"","","","","","","","","","","","","","","",1,"","","","","","","","","","","","","","","","","","","",1,"","","","","","","","","","","","","","","","","","","","","","","","","","","","","","","","","",1,"","","","","","","","","","","","","","",6,"","","","","","","","","","","","","","","",null,122,null,122,122,null,103,103,103,103,103,null,null,123,null,null,124,124,null,104,null,114,114,114,114,114,null,114,null,null,null,112,null,112,112,112,112,112,112,112,112,112,112,null,109,109,109,109,109,null,null,109,null,117,117,117,117,117,117,117,117,null,120,120,120,120,120,null,120,null,119,null,107,107,107,107,107,107,107,107,107,107,null,null,116,116,null,121,null,121,121,121,null,null,null,110,110,110,110,110,110,null,55,89]
["7855698789987894379876545879876543242945678964568998694355699765776789998765432368979978767999976430",null,null,null,10,7,8,5,5,6,9,8,7,8,9,9,8,7,8,9,4,3,7,9,8,7,6,5,4,5,8,7,9,8,7,6,5,4,3,2,4,2,9,4,5,6,7,8,9,6,4,5,6,8,9,9,8,6,9,4,3,5,5,6,9,9,7,6,5,7,7,6,7,8,9,9,9,8,7,6,5,4,3,2,3,6,8,9,7,9,9,7,8,7,6,7,9,9,9,9,7,6,4,3,0,10,null,"","","","","","","","","","","","","","","","","","","","","","","","","","","","","","","","","","","","","","","","","","","","","","","","","","","","","","","","","","","","","","","","","","","","","","","","","","","","","","","","","","","","","","","","","","","","","","","","","","","",1,null,122,122,122,122,122,null,103,103,103,null,null,123,123,123,null,124,124,124,null,114,114,114,114,114,114,114,114,null,112,112,112,112,112,112,112,112,112,null,112,112,112,112,112,null,109,109,109,109,109,null,null,117,117,null,117,117,117,117,117,null,null,120,120,120,120,120,120,120,120,null,null,null,107,107,107,107,107,107,107,107,107,107,null,116,null,null,121,121,121,121,121,null,null,null,null,110,110,110,110,110,null,56,36]
["6543239899876789567965434567989854356856789978789998543234988654565678999986543459998767656789984321",null,null,null,10,6,5,4,3,2,3,9,8,9,9,8,7,6,7,8,9,5,6,7,9,6,5,4,3,4,5,6,7,9,8,9,8,5,4,3,5,6,8,5,6,7,8,9,9,7,8,7,8,9,9,9,8,5,4,3,2,3,4,9,8,8,6,5,4,5,6,5,6,7,8,9,9,9,9,8,6,5,4,3,4,5,9,9,9,8,7,6,7,6,5,6,7,8,9,9,8,4,3,2,1,10,null,"","","","","","","","","","","","","","","","","","","","","","","","","","","","","","","","","","","","","","","","","","","","","","","","","","","","","","","",3,"","","","","","","","","","","","","","","","","","","","","","","","","","","","","","","","","","","","","","","","","","","","",null,122,122,122,122,122,122,null,103,null,null,123,123,123,123,123,null,124,124,124,null,114,114,114,114,114,114,114,114,null,112,null,112,112,112,112,112,112,112,112,112,112,112,null,null,109,109,109,109,null,null,null,117,117,117,117,117,117,117,null,120,120,120,120,120,120,120,120,120,120,120,null,null,null,null,107,107,107,107,107,107,107,null,null,null,121,121,121,121,121,121,121,121,121,null,null,110,110,110,110,110,null,57,92]
["7684102998775698979854323658998765678967899989895987654349876543334567899898654567899656345678965432",null,null,null,10,7,6,8,4,1,0,2,9,9,8,7,7,5,6,9,8,9,7,9,8,5,4,3,2,3,6,5,8,9,9,8,7,6,5,6,7,8,9,6,7,8,9,9,9,8,9,8,9,5,9,8,7,6,5,4,3,4,9,8,7,6,5,4,3,3,{"$f":"_xlfn.NUMBERVALUE(MID($A58, BS$1, 1))","v":3},4,5,6,7,8,9,9,8,9,8,6,5,4,5,6,7,8,9,9,6,5,6,3,4,5,6,7,8,9,6,5,4,3,2,10,null,"","","","","",1,"","","","","","","","","","","","","","","","","","","","","","","","","","","","","","","","","","","","","","","","","","","","","","","","","","","","","","","","","","","","","","","","","","","","","","","","","","","","","","","","","","","","","","","","","","","","","","",null,122,122,122,122,122,122,122,null,null,123,123,123,123,123,null,123,null,124,null,114,114,114,114,114,114,114,114,114,null,null,112,112,112,112,112,112,112,null,112,112,112,null,null,null,109,null,109,null,125,null,117,117,117,117,117,117,117,null,120,120,120,120,120,120,120,120,120,120,120,120,120,null,null,126,null,107,107,107,107,107,107,107,107,null,null,121,121,121,121,121,121,121,121,121,null,110,110,110,110,110,null,58,111]
["9873213987654567898783012349999976789998999994954598765656988432125678998789765679998543234569876545",null,null,null,10,9,8,{"$f":"_xlfn.NUMBERVALUE(MID($A59, H$1, 1))","v":7},3,2,1,3,9,8,7,6,5,4,5,6,7,8,9,8,7,8,3,0,1,2,3,4,9,9,9,9,9,7,6,7,8,9,9,9,8,9,9,9,9,9,4,9,5,4,5,9,8,7,6,5,6,5,6,9,8,8,4,3,2,1,2,5,6,7,8,9,9,8,7,8,9,7,6,5,6,7,9,9,9,8,5,4,3,2,3,4,5,6,9,8,7,6,5,4,5,10,null,"","","","","","","","","","","","","","","","","","","","","","",1,"","","","","","","","","","","","","","","","","","","","","","",5,"","","","","","","","","","","","","","","","","","",2,"","","","","","","","","","","","","","","","","","","","","","","",3,"","","","","","","","","","","",null,null,122,122,122,122,122,122,null,123,123,123,123,123,123,123,123,123,null,114,114,114,114,114,114,114,114,114,null,null,null,null,null,112,112,112,112,null,null,null,112,null,null,null,null,null,127,null,125,125,125,null,117,117,117,117,117,117,117,null,120,120,120,120,120,120,120,120,120,120,120,null,null,126,126,126,null,107,107,107,107,107,null,null,null,121,121,121,121,121,121,121,121,121,null,110,110,110,110,110,110,null,59,6]
["8764329896543456789652123456894399898999598995963699876767899563234889687678976789987654347678987676",null,null,null,10,8,7,6,4,3,2,9,8,9,6,5,4,3,4,5,6,7,8,9,6,5,2,1,2,3,4,5,6,8,9,4,3,9,9,8,9,8,9,9,9,5,9,8,9,9,5,9,6,3,6,9,9,8,7,6,7,6,7,8,9,9,5,6,3,2,3,4,8,8,9,6,8,7,6,7,8,9,7,6,7,8,9,9,8,7,6,5,4,3,4,7,6,7,8,9,8,7,6,7,6,10,null,"","","","","","","","","","","","","","","","","","","","","","","","","","","","","","","","","","","","","","","","","","","","","","","","","","","","","","","","","","","","","","","","","","","","","","","","","","","","","","","","","","","","","","","","","","","","","","","","","","","","",null,122,122,122,122,122,122,null,123,null,123,123,123,123,123,123,123,123,123,null,114,114,114,114,114,114,114,114,114,114,null,128,128,null,null,112,null,128,null,null,null,129,null,129,null,null,127,null,125,125,125,null,null,117,117,117,117,117,117,117,null,null,120,120,120,120,120,120,120,120,null,126,126,126,126,126,126,null,107,107,107,107,null,null,121,121,121,121,121,121,121,121,121,121,121,null,110,110,110,110,110,null,60,24]
["9965498765432347896543234599943201967895497789892987987898987654345796444569997998798987656789798987",null,null,null,10,9,9,6,5,4,9,8,7,6,5,4,3,2,3,4,7,8,9,6,5,4,3,2,3,4,5,9,9,9,4,3,2,0,1,9,6,7,8,9,5,4,9,7,7,8,9,8,9,2,9,8,7,9,8,7,8,9,8,9,8,7,6,5,4,3,4,5,7,9,6,4,4,4,5,6,9,9,9,7,9,9,8,7,9,8,9,8,7,6,5,6,7,8,9,7,9,8,9,8,7,10,null,"","","","","","","","","","","","",3,"","","","","","","","","","","","","","","","","","","",1,"","","","","","","","","","","","","","","","","","","","","","","","","","","","","","","","","","","","","","","","","","","","","","","","","","","","","","","","","","","","","","","","","","","",null,null,null,122,122,122,null,123,123,123,123,123,123,123,123,123,123,123,null,114,114,114,114,114,114,114,114,null,null,null,128,128,128,128,128,null,128,128,128,null,129,129,null,129,129,129,null,130,null,125,null,131,131,null,117,117,117,null,117,null,120,120,120,120,120,120,120,120,120,null,126,126,126,126,126,126,null,null,null,107,null,null,132,132,null,121,null,121,121,121,121,121,121,121,null,133,null,110,null,110,110,null,61,2]
["9876789887654556987754345988956912356789345698790976599939698765456789323458998987659198767897679998",null,null,null,10,9,8,7,6,7,8,9,8,8,7,6,5,4,5,5,6,9,8,7,7,5,4,3,4,5,9,8,8,9,5,6,9,1,2,3,5,6,7,8,9,3,4,5,6,9,8,7,9,0,9,7,6,5,9,9,9,3,9,6,9,8,7,6,5,4,{"$f":"_xlfn.NUMBERVALUE(MID($A62, BS$1, 1))","v":5},6,7,8,9,3,2,3,4,5,8,9,9,8,9,8,7,6,5,9,1,9,8,7,6,7,8,9,7,6,7,9,9,9,8,10,null,"","","","","","","","","","","","","","","","","","","","","","","","","","","","","","","","","","","","","","","","","","","","","","","","",1,"","","","","","","","","","","","","","","","","","","","","","","","","","","","","","","","","","","","","","","","","","","","","","","","","","","",null,null,122,122,122,122,122,null,123,123,123,123,123,123,123,123,123,null,114,114,114,114,114,114,114,114,null,134,134,null,128,128,null,128,128,128,128,128,128,128,null,129,129,129,129,null,130,130,null,125,null,131,131,131,null,null,null,131,null,131,null,120,120,120,120,120,120,120,120,120,null,126,126,126,126,126,126,null,null,107,null,132,132,132,132,null,132,null,121,121,121,121,121,null,133,133,133,null,null,null,110,null,62,44]
["8987898998765677898965459767999895457891234987689865432123569976887893212357899896541019878955567999",null,null,null,10,8,9,{"$f":"_xlfn.NUMBERVALUE(MID($A63, H$1, 1))","v":8},7,8,9,8,9,9,8,7,6,5,6,7,7,8,9,8,9,6,5,4,5,9,7,6,7,9,9,9,8,9,5,4,5,7,8,9,1,2,3,4,9,8,7,6,8,9,8,6,5,4,3,2,1,2,3,5,6,9,9,7,6,8,8,7,8,9,3,2,1,2,3,5,7,8,9,9,8,9,6,5,4,1,0,1,9,8,7,8,9,5,5,5,6,7,9,9,9,10,null,"","","","","","","","","","","","","","","","","","","","","","","","","","","","","","","","","","","","","","","","","","","","","","","","","","","","","","","","","","","","","","","","","","","","","","","",2,"","","","","","","","","","","","","",1,"","","","","","","","","","","","","","",null,135,null,122,122,122,null,135,null,null,123,123,123,123,123,123,123,123,null,114,null,114,114,114,114,null,134,134,134,null,null,null,136,null,128,128,128,128,128,null,129,129,129,129,null,130,130,130,130,null,131,131,131,131,131,131,131,131,131,131,131,null,null,120,120,120,120,120,120,null,126,126,126,126,126,126,126,126,null,null,137,null,132,132,132,132,132,132,null,121,121,121,null,133,133,133,133,133,null,null,null,null,63,23]
["7698997999987898949996569856989789769910149876545954321012397987998984623768956789432199989543456789",null,null,null,10,7,6,9,8,9,9,7,9,9,9,9,8,7,8,9,8,9,4,9,9,9,6,5,6,9,8,5,6,9,8,9,7,8,9,7,6,9,9,1,0,1,4,9,8,7,6,5,4,5,9,5,4,3,2,1,0,1,2,3,9,7,9,8,7,9,9,8,9,8,4,6,2,3,7,6,8,9,5,6,7,8,9,4,3,2,1,9,9,9,8,9,5,4,3,4,5,6,7,8,9,10,null,"","","","","","","","","","","","","","","","","","","","","","","","","","",6,"","","","","","","","","","","","",1,"","","","","","","","","","","","","","","",1,"","","","","","","","","","","","","","","","","","","","","","","","","","","","","","","","","","","","","","","","","","","","",null,135,135,null,122,null,null,135,null,null,null,null,123,123,123,null,123,null,138,null,null,null,114,114,114,null,134,134,134,null,136,null,136,136,null,128,128,null,null,129,129,129,129,null,130,130,130,130,130,130,null,131,131,131,131,131,131,131,131,131,null,139,null,120,120,null,null,120,null,126,126,126,126,126,126,126,126,null,137,137,137,137,null,132,132,132,132,null,null,null,121,null,133,133,133,133,133,133,133,133,null,null,64,22]
["6549656891299999234989679879878678978921298765434595932124986698999876544878949896593989995432345698",null,null,null,10,6,5,4,9,6,5,6,8,9,1,2,9,9,9,9,9,2,3,4,9,8,9,6,7,9,8,7,9,8,7,8,6,7,8,9,7,8,9,2,1,2,9,8,7,6,5,4,3,4,5,9,5,9,3,2,1,2,4,9,8,6,6,9,8,9,9,9,8,7,6,5,4,4,8,7,8,9,4,9,8,9,6,5,9,3,9,8,9,9,9,5,4,3,2,3,4,5,6,9,8,10,null,"","","","","","","","","",2,"","","","","","","","","","","","","","","","","","","","","","","","","","","","","","","","","","","","","","","","","","","","","","","","","","","","","","","","","","","","","","","","","","","","","","","","","","","","","","","","","","","","","","","","","","",null,135,135,135,null,135,135,135,135,null,140,140,null,null,null,null,null,138,138,138,null,141,null,114,114,null,134,134,null,136,136,136,136,136,136,null,128,128,null,129,129,129,null,130,130,130,130,130,130,130,130,null,131,null,131,131,131,131,131,null,139,139,139,null,120,null,null,null,126,126,126,126,126,126,126,126,126,null,137,null,137,null,132,132,null,132,null,142,null,null,null,133,133,133,133,133,133,133,133,null,143,null,65,{"$f":"COUNTIF($HA$3:$KV$102, KX65)","v":35}]
["5432345993345692129878989998666569989432987655423989893239975549998989656889238789989878954321239987",null,null,null,10,5,4,3,2,3,4,5,9,9,3,3,4,5,6,9,2,1,2,9,8,7,8,9,8,9,9,9,8,6,6,6,5,6,9,9,8,9,4,3,2,9,8,7,6,5,5,4,2,3,9,8,9,8,9,3,2,3,9,9,7,5,5,4,9,9,{"$f":"_xlfn.NUMBERVALUE(MID($A66, BS$1, 1))","v":9},8,9,8,9,6,5,6,8,8,9,2,3,8,7,8,9,9,8,9,8,7,8,9,5,4,3,2,1,2,3,9,9,8,7,10,null,"","","","","","","","","","","","","","","","",2,"","","","","","","","","","","","","","","","","","","","","","","","","","","","","","","","","","","","","","","","","","","","","","","","","","","","","","","","","","","","","","","","","","","","","","","","","","","","",2,"","","","","","",null,135,135,135,135,135,135,135,null,null,140,140,140,140,140,null,138,138,138,null,141,141,141,null,114,null,null,null,136,136,136,136,136,136,null,null,128,null,129,129,129,null,130,130,130,130,130,130,130,130,null,144,null,144,null,131,131,131,null,null,139,139,139,139,null,null,null,145,null,126,null,126,126,126,126,126,null,137,137,137,137,137,null,null,142,null,142,142,142,null,133,133,133,133,133,133,133,null,null,143,143,null,66,3]
["9940137789456789998767899986543458997545698543210978789398754234976599867990145699768767995634398876",null,null,null,10,9,9,{"$f":"_xlfn.NUMBERVALUE(MID($A67, H$1, 1))","v":4},0,1,3,7,7,8,9,4,5,6,7,8,9,9,9,8,7,6,7,8,9,9,9,8,6,5,4,3,4,5,8,9,9,7,5,4,5,6,9,8,5,4,3,2,1,0,9,7,8,7,8,9,3,9,8,7,5,4,2,3,4,9,7,6,5,9,9,8,6,7,9,9,0,1,4,5,6,9,9,7,6,8,7,6,7,9,9,5,6,3,4,3,9,8,8,7,6,10,null,"","","",1,"","","","","","","","","","","","","","","","","","","","","","","","","","","","","","","","","","","","","","","","","","","","",1,"","","","","","","","","","","","","","","","","","","","","","","","","","",1,"","","","","","","","","","","","","","","","","","","","","","","","",null,null,null,135,135,135,135,135,135,135,null,140,140,140,140,140,null,null,null,141,141,141,141,141,null,null,null,136,136,136,136,136,136,136,136,null,null,129,129,129,129,129,null,130,130,130,130,130,130,130,null,144,144,144,144,null,131,null,139,139,139,139,139,139,139,null,145,145,145,null,null,126,126,126,null,null,137,137,137,137,137,null,null,142,142,142,142,142,142,null,null,133,133,133,133,133,null,143,143,143,143,null,67,26]
["8893235678967899876656789997632567997656987654599865698999543145895445978921956798654356789785977645",null,null,null,10,8,8,9,3,2,3,5,6,7,8,9,6,7,8,9,9,8,7,6,6,5,6,7,8,9,9,9,7,6,3,2,5,6,7,9,9,7,6,5,6,9,8,7,6,5,4,5,9,9,8,6,5,6,9,8,9,9,9,5,4,3,1,4,5,8,9,5,4,4,5,9,7,8,9,2,1,9,5,6,7,9,8,6,5,4,3,5,6,7,8,9,7,8,5,9,7,7,6,4,5,10,null,{"$f":"IF(AND(F68<G68, F68<F69, F68<E68, F68<F67), F68+1, \"\")","v":""},"","","","","","","","","","","","","","","","","","","","","","","","","","","","","","","","","","","","","","","","","","","","","","","","","","","","","","","","","","","","",2,"","","","","","","","","","","","","","","","","","","","","","","","","","","","","","","","","","","","","","",null,146,146,null,135,135,135,135,135,135,135,null,140,140,140,null,null,141,141,141,141,141,141,141,141,null,null,null,136,136,136,136,136,136,136,null,null,129,129,129,129,null,130,130,130,130,130,130,null,null,144,144,144,144,null,147,null,null,null,139,139,139,139,139,139,139,null,145,145,145,145,null,126,126,null,137,137,null,137,137,137,null,142,142,142,142,142,142,142,142,142,null,133,133,133,null,143,143,143,143,143,null,68,24]
["7789545789878997985545679876541245689767898785987654986987658656789329989439898998543267899899864524",null,null,null,10,7,7,8,9,5,4,5,7,8,9,8,7,8,9,9,7,9,8,5,5,4,5,6,7,9,8,7,6,5,4,1,2,4,5,6,8,9,7,6,7,8,9,8,7,8,5,9,8,7,6,5,4,9,8,6,9,8,7,6,5,8,6,5,6,7,8,9,3,2,9,9,8,9,4,3,9,8,9,8,9,9,8,5,4,3,2,6,7,8,9,9,8,9,9,8,6,4,5,2,4,10,null,"","","","","","","","","","","","","","","","","","","","","","","","","","","","","","","","","","","","","","","","","","","","","","","","","","","",5,"","","","","","","","","","","","","","","","",3,"","","","","","","","","","","","","","","","",3,"","","","","","","","","","","","","","",null,146,146,146,null,135,135,135,135,135,null,140,140,140,null,null,141,null,141,141,141,141,141,141,141,null,136,136,136,136,136,136,136,136,136,136,136,null,129,129,129,129,null,130,130,130,130,null,144,144,144,144,144,null,147,147,null,139,139,139,139,139,139,139,139,139,139,null,145,145,null,null,126,null,137,137,null,148,null,137,null,null,142,142,142,142,142,142,142,142,null,null,133,null,null,143,143,143,143,143,143,null,69,5]
["6678996799989876544234567989710355789978989876798765975498868787898998798998789987654378912998753212",null,null,null,10,6,6,7,8,9,9,6,7,9,9,9,8,9,8,7,6,5,4,4,2,3,4,5,6,7,9,8,9,7,1,0,3,5,5,7,8,9,9,7,8,9,8,9,8,7,6,7,9,8,7,6,5,9,7,5,4,9,8,8,6,8,7,8,7,8,{"$f":"_xlfn.NUMBERVALUE(MID($A70, BS$1, 1))","v":9},8,9,9,8,7,9,8,9,9,8,7,8,9,9,8,7,6,5,4,3,7,8,9,1,2,9,9,8,7,5,3,2,1,2,10,null,"","","","","","","","","","","","","","","","","","","","","","","","","","","","","","",1,"","","","","","","","","","","","","","","","","","","","","","","","","","","","","","","","","",{"$f":"IF(AND(BR70<BS70, BR70<BR71, BR70<BQ70, BR70<BR69), BR70+1, \"\")","v":""},"","","","","","","","","","","","","","","","","","","","","","","","","","","","","","","","","","","",null,146,146,146,146,null,null,135,135,null,null,null,140,null,141,141,141,141,141,141,141,141,141,141,141,141,null,136,null,136,136,136,136,136,136,136,136,null,null,129,129,null,149,null,130,130,130,130,null,144,144,144,144,null,147,147,147,null,139,139,139,139,139,139,139,139,null,150,null,null,148,148,null,148,null,null,148,148,148,null,null,142,142,142,142,142,142,142,142,null,151,151,null,null,143,143,143,143,143,143,143,null,70,25]
["4569989989993989734146456797651234567899878987899978994309989898957987657895678998767459901979865301",null,null,null,10,4,5,{"$f":"_xlfn.NUMBERVALUE(MID($A71, H$1, 1))","v":6},9,9,8,9,9,8,9,9,9,3,9,8,9,7,3,4,1,4,6,4,5,6,7,9,7,6,5,1,2,3,4,5,6,7,8,9,9,8,7,8,9,8,7,8,9,9,9,7,8,9,9,4,3,0,9,9,8,9,8,9,8,9,5,7,9,8,7,6,5,7,8,9,5,6,7,8,9,9,8,7,6,7,4,5,9,9,0,1,9,7,9,8,6,5,3,0,1,10,null,"",{"$f":"IF(AND(G71<H71, G71<G72, G71<F71, G71<G70), G71+1, \"\")","v":""},{"$f":"IF(AND(H71<I71, H71<H72, H71<G71, H71<H70), H71+1, \"\")","v":""},{"$f":"IF(AND(I71<J71, I71<I72, I71<H71, I71<I70), I71+1, \"\")","v":""},{"$f":"IF(AND(J71<K71, J71<J72, J71<I71, J71<J70), J71+1, \"\")","v":""},{"$f":"IF(AND(K71<L71, K71<K72, K71<J71, K71<K70), K71+1, \"\")","v":""},{"$f":"IF(AND(L71<M71, L71<L72, L71<K71, L71<L70), L71+1, \"\")","v":""},{"$f":"IF(AND(M71<N71, M71<M72, M71<L71, M71<M70), M71+1, \"\")","v":""},{"$f":"IF(AND(N71<O71, N71<N72, N71<M71, N71<N70), N71+1, \"\")","v":""},{"$f":"IF(AND(O71<P71, O71<O72, O71<N71, O71<O70), O71+1, \"\")","v":""},{"$f":"IF(AND(P71<Q71, P71<P72, P71<O71, P71<P70), P71+1, \"\")","v":""},{"$f":"IF(AND(Q71<R71, Q71<Q72, Q71<P71, Q71<Q70), Q71+1, \"\")","v":""},{"$f":"IF(AND(R71<S71, R71<R72, R71<Q71, R71<R70), R71+1, \"\")","v":""},{"$f":"IF(AND(S71<T71, S71<S72, S71<R71, S71<S70), S71+1, \"\")","v":""},{"$f":"IF(AND(T71<U71, T71<T72, T71<S71, T71<T70), T71+1, \"\")","v":""},{"$f":"IF(AND(U71<V71, U71<U72, U71<T71, U71<U70), U71+1, \"\")","v":""},{"$f":"IF(AND(V71<W71, V71<V72, V71<U71, V71<V70), V71+1, \"\")","v":""},{"$f":"IF(AND(W71<X71, W71<W72, W71<V71, W71<W70), W71+1, \"\")","v":""},{"$f":"IF(AND(X71<Y71, X71<X72, X71<W71, X71<X70), X71+1, \"\")","v":""},{"$f":"IF(AND(Y71<Z71, Y71<Y72, Y71<X71, Y71<Y70), Y71+1, \"\")","v":""},{"$f":"IF(AND(Z71<AA71, Z71<Z72, Z71<Y71, Z71<Z70), Z71+1, \"\")","v":""},{"$f":"IF(AND(AA71<AB71, AA71<AA72, AA71<Z71, AA71<AA70), AA71+1, \"\")","v":""},{"$f":"IF(AND(AB71<AC71, AB71<AB72, AB71<AA71, AB71<AB70), AB71+1, \"\")","v":""},{"$f":"IF(AND(AC71<AD71, AC71<AC72, AC71<AB71, AC71<AC70), AC71+1, \"\")","v":""},{"$f":"IF(AND(AD71<AE71, AD71<AD72, AD71<AC71, AD71<AD70), AD71+1, \"\")","v":""},{"$f":"IF(AND(AE71<AF71, AE71<AE72, AE71<AD71, AE71<AE70), AE71+1, \"\")","v":""},{"$f":"IF(AND(AF71<AG71, AF71<AF72, AF71<AE71, AF71<AF70), AF71+1, \"\")","v":""},{"$f":"IF(AND(AG71<AH71, AG71<AG72, AG71<AF71, AG71<AG70), AG71+1, \"\")","v":""},{"$f":"IF(AND(AH71<AI71, AH71<AH72, AH71<AG71, AH71<AH70), AH71+1, \"\")","v":""},{"$f":"IF(AND(AI71<AJ71, AI71<AI72, AI71<AH71, AI71<AI70), AI71+1, \"\")","v":""},{"$f":"IF(AND(AJ71<AK71, AJ71<AJ72, AJ71<AI71, AJ71<AJ70), AJ71+1, \"\")","v":""},{"$f":"IF(AND(AK71<AL71, AK71<AK72, AK71<AJ71, AK71<AK70), AK71+1, \"\")","v":""},{"$f":"IF(AND(AL71<AM71, AL71<AL72, AL71<AK71, AL71<AL70), AL71+1, \"\")","v":""},{"$f":"IF(AND(AM71<AN71, AM71<AM72, AM71<AL71, AM71<AM70), AM71+1, \"\")","v":""},{"$f":"IF(AND(AN71<AO71, AN71<AN72, AN71<AM71, AN71<AN70), AN71+1, \"\")","v":""},{"$f":"IF(AND(AO71<AP71, AO71<AO72, AO71<AN71, AO71<AO70), AO71+1, \"\")","v":""},{"$f":"IF(AND(AP71<AQ71, AP71<AP72, AP71<AO71, AP71<AP70), AP71+1, \"\")","v":""},{"$f":"IF(AND(AQ71<AR71, AQ71<AQ72, AQ71<AP71, AQ71<AQ70), AQ71+1, \"\")","v":""},{"$f":"IF(AND(AR71<AS71, AR71<AR72, AR71<AQ71, AR71<AR70), AR71+1, \"\")","v":""},{"$f":"IF(AND(AS71<AT71, AS71<AS72, AS71<AR71, AS71<AS70), AS71+1, \"\")","v":""},{"$f":"IF(AND(AT71<AU71, AT71<AT72, AT71<AS71, AT71<AT70), AT71+1, \"\")","v":""},{"$f":"IF(AND(AU71<AV71, AU71<AU72, AU71<AT71, AU71<AU70), AU71+1, \"\")","v":""},{"$f":"IF(AND(AV71<AW71, AV71<AV72, AV71<AU71, AV71<AV70), AV71+1, \"\")","v":""},{"$f":"IF(AND(AW71<AX71, AW71<AW72, AW71<AV71, AW71<AW70), AW71+1, \"\")","v":""},{"$f":"IF(AND(AX71<AY71, AX71<AX72, AX71<AW71, AX71<AX70), AX71+1, \"\")","v":""},{"$f":"IF(AND(AY71<AZ71, AY71<AY72, AY71<AX71, AY71<AY70), AY71+1, \"\")","v":""},{"$f":"IF(AND(AZ71<BA71, AZ71<AZ72, AZ71<AY71, AZ71<AZ70), AZ71+1, \"\")","v":""},{"$f":"IF(AND(BA71<BB71, BA71<BA72, BA71<AZ71, BA71<BA70), BA71+1, \"\")","v":""},{"$f":"IF(AND(BB71<BC71, BB71<BB72, BB71<BA71, BB71<BB70), BB71+1, \"\")","v":""},{"$f":"IF(AND(BC71<BD71, BC71<BC72, BC71<BB71, BC71<BC70), BC71+1, \"\")","v":""},{"$f":"IF(AND(BD71<BE71, BD71<BD72, BD71<BC71, BD71<BD70), BD71+1, \"\")","v":""},{"$f":"IF(AND(BE71<BF71, BE71<BE72, BE71<BD71, BE71<BE70), BE71+1, \"\")","v":""},{"$f":"IF(AND(BF71<BG71, BF71<BF72, BF71<BE71, BF71<BF70), BF71+1, \"\")","v":""},{"$f":"IF(AND(BG71<BH71, BG71<BG72, BG71<BF71, BG71<BG70), BG71+1, \"\")","v":""},{"$f":"IF(AND(BH71<BI71, BH71<BH72, BH71<BG71, BH71<BH70), BH71+1, \"\")","v":""},{"$f":"IF(AND(BI71<BJ71, BI71<BI72, BI71<BH71, BI71<BI70), BI71+1, \"\")","v":""},{"$f":"IF(AND(BJ71<BK71, BJ71<BJ72, BJ71<BI71, BJ71<BJ70), BJ71+1, \"\")","v":1},{"$f":"IF(AND(BK71<BL71, BK71<BK72, BK71<BJ71, BK71<BK70), BK71+1, \"\")","v":""},{"$f":"IF(AND(BL71<BM71, BL71<BL72, BL71<BK71, BL71<BL70), BL71+1, \"\")","v":""},{"$f":"IF(AND(BM71<BN71, BM71<BM72, BM71<BL71, BM71<BM70), BM71+1, \"\")","v":""},{"$f":"IF(AND(BN71<BO71, BN71<BN72, BN71<BM71, BN71<BN70), BN71+1, \"\")","v":""},{"$f":"IF(AND(BO71<BP71, BO71<BO72, BO71<BN71, BO71<BO70), BO71+1, \"\")","v":""},{"$f":"IF(AND(BP71<BQ71, BP71<BP72, BP71<BO71, BP71<BP70), BP71+1, \"\")","v":""},{"$f":"IF(AND(BQ71<BR71, BQ71<BQ72, BQ71<BP71, BQ71<BQ70), BQ71+1, \"\")","v":""},"","","","","","","","","","","","","","","","","","","","","","","","","",1,"","","","","","","","",1,"",null,146,146,146,null,null,152,null,null,152,null,null,null,153,null,141,null,141,141,141,141,141,141,141,141,141,141,null,136,136,136,136,136,136,136,136,136,136,136,null,null,149,149,149,null,130,130,130,null,null,null,144,144,null,null,147,147,147,null,null,139,null,139,null,139,null,150,150,null,148,148,148,148,148,148,null,148,148,148,148,null,null,142,142,142,142,142,142,null,null,151,151,null,154,null,143,143,143,143,143,143,null,71,2]
["3656978878921298921012367898732345778998767898934989983212397999345799546234569999878567899869875412",null,null,null,10,3,6,5,6,9,7,8,8,7,8,9,2,1,2,9,8,9,2,1,0,1,2,3,6,7,8,9,8,7,3,2,3,4,5,7,7,8,9,9,8,7,6,7,8,9,8,9,3,4,9,8,9,9,8,3,2,1,2,3,9,7,9,9,9,3,4,5,7,9,9,5,4,6,2,3,4,5,6,9,9,9,9,8,7,8,5,6,7,8,9,9,8,6,9,8,7,5,4,1,2,10,null,"","","","","","","","","","","","",2,"","","","","","",1,"","","","","","","","","","","","","","","","","","","","","","","","","","","","","","","","","","","","","","","","","","","","","","","","","","","","","","","","","","","","","","","","","","","","","","","","","","","","","","","","",null,146,146,146,146,null,152,152,152,152,152,null,153,153,153,null,141,null,141,141,141,141,141,141,141,141,141,null,136,136,136,136,136,136,136,136,136,136,null,null,149,149,149,149,149,null,130,null,155,155,null,144,null,null,147,147,147,147,147,147,null,147,null,null,null,150,150,150,150,null,null,148,148,148,148,148,148,148,148,null,null,null,null,142,142,142,142,142,142,142,null,null,154,154,null,143,143,143,143,143,143,null,72,26]
["2349865467932987432156778929843656989987656799323999876723456789239987632128998989987678987656996523",null,null,null,10,2,3,4,9,8,6,5,4,6,7,9,3,2,9,8,7,4,3,2,1,5,6,7,7,8,9,2,9,8,4,3,6,5,6,9,8,9,9,8,7,6,5,6,7,9,9,3,2,3,9,9,9,8,7,6,7,2,3,4,5,6,7,8,9,2,3,9,9,8,7,6,3,2,1,2,8,9,9,8,9,8,9,9,8,7,6,7,8,9,8,7,6,5,6,9,9,6,5,2,3,10,null,"","","","","","","","","","","","","","","","","","","","","","","","","","","","","","","","","","","","","","","","","","","","","","","","","","","","","","","","","","","","","","","","","","","","","","","","","",2,"","","","","","","","","","","","","","","","","","","","","","","","","","",null,146,146,146,null,152,152,152,152,152,152,null,153,153,null,141,141,141,141,141,141,141,141,141,141,141,null,156,null,136,136,136,136,136,136,null,136,null,null,149,149,149,149,149,149,null,null,155,155,155,null,null,null,147,147,147,147,147,147,147,147,147,147,147,null,150,150,null,null,148,148,148,148,148,148,148,148,null,null,157,null,157,null,null,142,142,142,142,142,null,154,154,154,154,154,null,null,143,143,143,143,null,73,5]
["1098954359899876545245899219974768999876545678909898765436567890198997654267997878998989298543498434",null,null,null,10,1,0,9,8,9,5,4,3,5,9,8,9,9,8,7,6,5,4,5,2,4,5,8,9,9,2,1,9,9,7,4,7,6,8,9,9,9,8,7,6,5,4,5,6,7,8,9,0,9,8,9,8,7,6,5,4,3,6,5,6,7,8,9,0,1,{"$f":"_xlfn.NUMBERVALUE(MID($A74, BS$1, 1))","v":9},8,9,9,7,6,5,4,2,6,7,9,9,7,8,7,8,9,9,8,9,8,9,2,9,{"$f":"_xlfn.NUMBERVALUE(MID($A74, CR$1, 1))","v":8},5,4,3,4,9,8,4,3,4,10,null,"",1,"","","","","","","","","","","","","","","","","","","","","","","","",2,"","","","","","","","","","","","","","","","","","","","",1,"","","","","","","","","","","","","","","",1,"","","","","","","","","","","",{"$f":"IF(AND(CC74<CD74, CC74<CC75, CC74<CB74, CC74<CC73), CC74+1, \"\")","v":""},{"$f":"IF(AND(CD74<CE74, CD74<CD75, CD74<CC74, CD74<CD73), CD74+1, \"\")","v":""},{"$f":"IF(AND(CE74<CF74, CE74<CE75, CE74<CD74, CE74<CE73), CE74+1, \"\")","v":""},{"$f":"IF(AND(CF74<CG74, CF74<CF75, CF74<CE74, CF74<CF73), CF74+1, \"\")","v":""},{"$f":"IF(AND(CG74<CH74, CG74<CG75, CG74<CF74, CG74<CG73), CG74+1, \"\")","v":""},{"$f":"IF(AND(CH74<CI74, CH74<CH75, CH74<CG74, CH74<CH73), CH74+1, \"\")","v":""},{"$f":"IF(AND(CI74<CJ74, CI74<CI75, CI74<CH74, CI74<CI73), CI74+1, \"\")","v":""},{"$f":"IF(AND(CJ74<CK74, CJ74<CJ75, CJ74<CI74, CJ74<CJ73), CJ74+1, \"\")","v":""},{"$f":"IF(AND(CK74<CL74, CK74<CK75, CK74<CJ74, CK74<CK73), CK74+1, \"\")","v":""},{"$f":"IF(AND(CL74<CM74, CL74<CL75, CL74<CK74, CL74<CL73), CL74+1, \"\")","v":""},{"$f":"IF(AND(CM74<CN74, CM74<CM75, CM74<CL74, CM74<CM73), CM74+1, \"\")","v":""},{"$f":"IF(AND(CN74<CO74, CN74<CN75, CN74<CM74, CN74<CN73), CN74+1, \"\")","v":""},{"$f":"IF(AND(CO74<CP74, CO74<CO75, CO74<CN74, CO74<CO73), CO74+1, \"\")","v":""},{"$f":"IF(AND(CP74<CQ74, CP74<CP75, CP74<CO74, CP74<CP73), CP74+1, \"\")","v":""},{"$f":"IF(AND(CQ74<CR74, CQ74<CQ75, CQ74<CP74, CQ74<CQ73), CQ74+1, \"\")","v":""},{"$f":"IF(AND(CR74<CS74, CR74<CR75, CR74<CQ74, CR74<CR73), CR74+1, \"\")","v":""},{"$f":"IF(AND(CS74<CT74, CS74<CS75, CS74<CR74, CS74<CS73), CS74+1, \"\")","v":""},{"$f":"IF(AND(CT74<CU74, CT74<CT75, CT74<CS74, CT74<CT73), CT74+1, \"\")","v":""},{"$f":"IF(AND(CU74<CV74, CU74<CU75, CU74<CT74, CU74<CU73), CU74+1, \"\")","v":""},{"$f":"IF(AND(CV74<CW74, CV74<CV75, CV74<CU74, CV74<CV73), CV74+1, \"\")","v":""},{"$f":"IF(AND(CW74<CX74, CW74<CW75, CW74<CV74, CW74<CW73), CW74+1, \"\")","v":""},{"$f":"IF(AND(CX74<CY74, CX74<CX75, CX74<CW74, CX74<CX73), CX74+1, \"\")","v":""},{"$f":"IF(AND(CY74<CZ74, CY74<CY75, CY74<CX74, CY74<CY73), CY74+1, \"\")","v":""},{"$f":"IF(AND(CZ74<DA74, CZ74<CZ75, CZ74<CY74, CZ74<CZ73), CZ74+1, \"\")","v":""},{"$f":"IF(AND(DA74<DB74, DA74<DA75, DA74<CZ74, DA74<DA73), DA74+1, \"\")","v":""},null,146,146,null,152,null,152,152,152,152,null,152,null,null,141,141,141,141,141,141,141,141,141,141,null,null,156,156,null,null,136,136,136,136,136,null,null,null,149,149,149,149,149,149,149,149,149,null,155,null,158,null,147,147,147,147,147,147,147,147,147,147,147,null,150,150,null,159,null,null,148,148,148,148,148,148,148,null,null,157,157,157,157,null,null,142,null,142,null,160,null,154,154,154,154,154,null,143,143,143,143,null,74,29]
["2987643234767987656345998998765689998965434567898769986747698999987789795459886767899299129432599545",null,null,null,10,2,9,{"$f":"_xlfn.NUMBERVALUE(MID($A75, H$1, 1))","v":8},7,6,4,3,2,3,4,7,6,7,9,8,7,6,5,6,3,4,5,9,9,8,9,9,8,7,6,5,6,8,9,9,9,8,9,6,5,4,3,4,5,6,7,8,9,8,7,6,9,9,8,6,7,4,7,6,9,8,9,9,9,9,8,7,7,8,9,7,9,5,4,5,9,8,8,6,7,6,7,8,9,9,2,{"$f":"_xlfn.NUMBERVALUE(MID($A75, CN$1, 1))","v":9},9,1,2,9,4,3,2,5,9,9,5,4,5,10,null,"","","","","","","","","","","","","","","","","","","","","","","","","","","","","","","","","","","","","","","","","","","","","","","","","","","","","","","","","","","","","","","","","",{"$f":"IF(AND(BS75<BT75, BS75<BS76, BS75<BR75, BS75<BS74), BS75+1, \"\")","v":""},{"$f":"IF(AND(BT75<BU75, BT75<BT76, BT75<BS75, BT75<BT74), BT75+1, \"\")","v":""},{"$f":"IF(AND(BU75<BV75, BU75<BU76, BU75<BT75, BU75<BU74), BU75+1, \"\")","v":""},{"$f":"IF(AND(BV75<BW75, BV75<BV76, BV75<BU75, BV75<BV74), BV75+1, \"\")","v":""},{"$f":"IF(AND(BW75<BX75, BW75<BW76, BW75<BV75, BW75<BW74), BW75+1, \"\")","v":""},{"$f":"IF(AND(BX75<BY75, BX75<BX76, BX75<BW75, BX75<BX74), BX75+1, \"\")","v":""},{"$f":"IF(AND(BY75<BZ75, BY75<BY76, BY75<BX75, BY75<BY74), BY75+1, \"\")","v":""},{"$f":"IF(AND(BZ75<CA75, BZ75<BZ76, BZ75<BY75, BZ75<BZ74), BZ75+1, \"\")","v":""},{"$f":"IF(AND(CA75<CB75, CA75<CA76, CA75<BZ75, CA75<CA74), CA75+1, \"\")","v":""},{"$f":"IF(AND(CB75<CC75, CB75<CB76, CB75<CA75, CB75<CB74), CB75+1, \"\")","v":""},"","","","","","","","","","","","","",2,"","","","","","","","","","","",null,146,null,152,152,152,152,152,152,152,152,152,152,152,null,141,141,141,141,141,141,141,141,null,null,161,null,null,136,136,136,136,136,136,null,null,null,149,null,149,149,149,149,149,149,149,149,149,null,158,158,158,null,null,147,147,147,147,147,147,null,147,null,null,null,null,159,159,159,159,null,148,null,148,148,148,null,157,157,157,157,157,157,157,null,null,162,null,null,160,160,null,154,154,154,154,null,null,143,143,143,null,75,30]
["3499632127656798965456987899896795987654323689998656987656799998765678987598765656789198998921987656",null,null,null,10,3,4,9,9,6,3,2,1,2,7,6,5,6,7,9,8,9,6,5,4,5,6,9,8,7,8,9,9,8,9,6,7,9,5,9,8,7,6,5,4,3,2,3,6,8,9,9,9,8,6,5,6,9,8,7,6,5,6,7,9,9,9,9,8,7,6,5,6,7,8,9,8,7,5,9,8,7,6,5,6,5,6,7,8,9,1,9,8,9,9,8,9,2,1,9,8,7,6,5,6,10,null,"","","","","","","","","","","","","","","","","","","","","","","","","","","","","","","","","","","","","","","","","",3,"","","","","","","","","","","","","","","","","","","","","","","","","","","","","","","","","","","","","","","","","","","",2,"","","","","","","",2,"","","","","","",null,146,146,null,null,152,152,152,152,152,152,152,152,152,152,null,141,null,141,141,141,141,141,null,161,161,161,null,null,136,null,136,136,null,163,null,149,149,149,149,149,149,149,149,149,149,null,null,null,158,158,158,158,null,147,147,147,147,147,147,null,null,null,null,159,159,159,159,159,159,159,null,148,148,148,null,157,157,157,157,157,157,157,157,157,null,162,null,164,null,null,164,null,154,154,null,143,143,143,143,143,null,76,43]
["4598532012345689876567896543987894599865464567896545799798899987654569898929854348899987987939999777",null,null,null,10,4,5,9,8,5,3,2,0,1,2,3,4,5,6,8,9,8,7,6,5,6,7,8,9,6,5,4,3,9,8,7,8,9,4,5,9,9,8,6,5,4,6,4,5,6,7,8,9,6,5,4,5,7,9,9,7,9,8,8,9,9,9,8,7,6,5,4,5,6,9,8,9,8,9,2,9,8,5,4,3,4,8,8,9,9,9,8,7,9,8,7,9,3,9,9,9,9,7,7,7,10,null,"","","","","","","",1,"","","","","","","","","","","","","","","","","","","",4,"","","","","","","","","","","","","","","","","","","","","","","","","","","","","","","","","","","","","","","","","","","","","","",3,"","","","","","","","","","","","","","","","","","","","","","","","","",null,146,146,null,152,152,152,152,152,152,152,152,152,152,152,152,null,141,141,141,141,141,141,141,null,161,161,161,161,null,136,136,136,null,163,163,null,null,149,149,149,149,149,149,149,149,149,149,null,158,158,158,158,158,null,null,147,null,147,147,null,null,null,159,159,159,159,159,159,159,null,159,null,148,null,165,null,157,157,157,157,157,157,157,null,null,null,164,164,null,164,164,null,154,null,null,null,null,143,143,143,null,77,88]
["5987647123498991987789997674698923459876587678965434599899999878543234789439765249999996876898998989",null,null,null,10,5,9,8,7,6,4,7,1,2,3,4,9,8,9,9,1,9,8,7,7,8,9,9,9,7,6,7,4,6,9,8,9,2,3,4,5,9,8,7,6,5,8,7,6,7,8,9,6,5,4,3,4,5,9,9,8,9,9,9,9,9,8,7,8,5,{"$f":"_xlfn.NUMBERVALUE(MID($A78, BS$1, 1))","v":4},3,2,3,4,7,8,9,4,3,9,7,6,5,2,4,9,9,9,9,9,9,6,8,7,6,8,9,8,9,9,8,9,8,9,10,null,"","","","","","","","","","","","","","","","","","","","","","","","","","","","","","","","","","","","","","","","","","","","","","","","","","","","","","","","","","","","","","","","","","","","","","","","","","","","","","","",3,"","","","","","","","","","","","","","","","","","","","",null,146,null,152,152,152,152,152,152,152,152,152,null,152,null,null,166,null,141,141,141,141,null,null,null,161,161,161,161,161,null,136,null,163,163,163,163,null,149,149,149,149,149,149,149,149,149,null,158,158,158,158,158,158,null,null,147,null,null,null,null,null,159,159,159,159,159,159,159,159,159,159,159,null,165,165,null,157,157,157,157,157,null,null,null,null,null,null,164,164,164,164,164,null,164,null,null,167,null,143,null,null,78,8]
["6987656734567890298892398789789212355997898789534123989912398765432123678998764345678975575947896597",null,null,null,10,6,9,{"$f":"_xlfn.NUMBERVALUE(MID($A79, H$1, 1))","v":8},7,6,5,6,7,3,4,5,6,7,8,9,0,2,9,8,8,9,2,3,9,8,7,8,9,7,8,9,2,1,2,3,5,5,9,9,7,8,9,8,7,8,9,5,3,4,1,2,3,9,8,9,9,1,2,3,9,8,7,6,5,4,3,2,1,2,3,6,7,8,9,9,8,7,6,4,3,4,5,6,7,8,9,7,5,5,7,5,9,4,7,8,9,6,5,9,7,10,null,"","","","","","","","","","","","","","","",1,"","","","","","","","","","","","","","","","","","","","","","","","","","","","","","","","","","","","","","","","","","","","","","","","","","","","","","","","","","","","","","","","","","","","","","","","","","","","","","","","","","","","",null,146,null,152,152,152,152,152,152,152,152,152,152,152,152,null,166,166,null,141,141,null,168,168,null,161,161,161,null,161,161,null,163,163,163,163,163,163,null,null,149,149,null,149,149,149,null,158,158,158,158,158,158,null,169,null,null,170,170,170,null,159,159,159,159,159,159,159,159,159,159,159,159,159,null,null,157,157,157,157,157,157,157,157,157,157,null,164,164,164,164,164,null,164,164,164,null,167,167,null,167,null,79,27]
["8998987845678979999901239899899201234798919894321019878901498754321044589989875476789864433236795456",null,null,null,10,8,9,9,8,9,8,7,8,4,5,6,7,8,9,7,9,9,9,9,9,0,1,2,3,9,8,9,9,8,9,9,2,0,1,2,3,4,7,9,8,9,1,9,8,9,4,3,2,1,0,1,9,8,7,8,9,0,1,4,9,8,7,5,4,3,2,1,0,4,4,5,8,9,9,8,9,8,7,5,4,7,6,7,8,9,8,6,4,4,3,3,2,3,6,7,9,5,4,5,6,10,null,"","","","","","","","","","","","","","","","","","","","",1,"","","","","","","","","","","",1,"","","","","","","","",2,"","","","","","","",1,"","","","","","",1,"","","","","","","","","","",1,"","","","","","","","","","","","","","","","","","","","","","","","","","","","","","","","",null,146,null,null,152,null,152,152,152,152,152,152,152,152,null,171,null,null,null,null,null,168,168,168,168,null,161,null,null,161,null,null,163,163,163,163,163,163,163,null,149,null,172,null,149,null,158,158,158,158,158,158,null,169,169,169,null,170,170,170,null,159,159,159,159,159,159,159,159,159,159,159,159,null,null,173,null,157,157,157,157,157,157,157,157,null,164,164,164,164,164,164,164,164,164,164,null,167,167,167,167,null,80,6]
["9349598956789567899919348987978929395679323989535199769899598765432123799877986789897653210145689346",null,null,null,10,9,3,4,9,5,9,8,9,5,6,7,8,9,5,6,7,8,9,9,9,1,9,3,4,8,9,8,7,9,7,8,9,2,9,3,9,5,6,7,9,3,2,3,9,8,9,5,3,5,1,9,9,7,6,9,8,9,9,5,9,8,7,6,5,4,3,2,1,2,3,7,9,9,8,7,7,9,8,6,7,8,9,8,9,7,6,5,3,2,1,0,1,4,5,6,8,9,3,4,6,10,null,"","","","","","","","","","","","","","","","","","","","","","","","","","","","","","","","","","","","","","","","","","","","","","","","","","","","","","","","","","","","","","","","","","","","","","","","","","","","","","","","","","","","","","","","","","",1,"","","","","","",4,"","",null,null,174,174,null,174,null,152,null,152,152,152,152,null,171,171,171,171,null,null,null,168,null,168,168,168,null,175,175,null,175,175,null,163,null,163,null,163,163,163,null,172,172,172,null,176,null,158,158,158,158,null,null,169,169,null,169,null,null,170,null,159,159,159,159,159,159,159,159,159,159,159,null,null,173,173,173,null,157,157,157,157,null,157,null,164,164,164,164,164,164,164,164,164,164,164,164,null,167,167,167,null,81,8]
["2102349767893456998898967896567898989798939978945988956798999876543434569766797899999754323234896556",null,null,null,10,2,1,0,2,3,4,9,7,6,7,8,9,3,4,5,6,9,9,8,8,9,8,9,6,7,8,9,6,5,6,7,8,9,8,9,8,9,7,9,8,9,3,9,9,7,8,9,4,5,9,8,8,9,5,6,7,9,8,9,9,9,8,7,6,5,{"$f":"_xlfn.NUMBERVALUE(MID($A82, BS$1, 1))","v":4},3,4,3,4,5,6,9,7,6,6,7,9,7,8,9,9,9,9,9,7,5,4,3,2,3,2,3,4,8,9,6,5,5,6,10,null,"","",1,"","","","","","","","","","","","","","","","","","","","","","","","","","","","","","","","","","","","","","","","","","","","","","","","","","","","","","","","","","","","","","","","","","","","","","","","","","","","","","","","","","","","","","","","","","","","","","","","","",null,174,174,174,174,174,174,null,152,152,152,152,null,171,171,171,171,null,null,177,177,null,177,null,168,168,168,null,175,175,175,175,175,null,178,null,178,null,163,null,179,null,172,null,null,176,176,null,158,158,null,169,169,null,169,169,169,null,169,null,null,null,159,159,159,159,159,159,159,159,159,159,159,null,173,173,173,173,null,157,157,null,null,null,null,null,164,164,164,164,164,164,164,164,164,164,null,167,167,167,167,null,82,26]
["3212459879912349887767898923458997678997898767899877546587998989754545678944698989998765434345789967",null,null,null,10,3,2,{"$f":"_xlfn.NUMBERVALUE(MID($A83, H$1, 1))","v":1},2,4,5,9,8,7,9,9,1,2,3,4,9,8,8,7,7,6,7,8,9,8,9,2,3,4,5,8,9,9,7,6,7,8,9,9,7,8,9,8,7,6,7,8,9,9,8,7,7,5,4,6,5,8,7,9,9,8,9,8,9,7,5,4,5,4,5,6,7,8,9,4,4,6,9,8,9,8,9,9,9,8,7,6,5,4,3,4,3,4,5,7,8,9,9,6,7,10,null,"","","","","","","","","","","","","","","","","","","","","","","","","","","","","","","","","","","","","","","","","","","","","","","","","","","","","","","","","","","","","","","","","","","","","","","","","","","","","","","","","","","","","","","","","","","","","","","","","","","","",null,174,174,174,174,174,174,null,152,152,null,null,171,171,171,171,null,177,177,177,177,177,177,177,null,168,null,175,175,175,175,175,null,null,178,178,178,178,null,null,179,179,null,176,176,176,176,176,null,null,169,169,169,169,169,169,169,169,169,null,null,180,null,159,null,159,159,159,159,159,159,159,159,159,null,173,173,173,null,157,null,173,null,null,null,164,164,164,164,164,164,164,164,164,164,164,164,null,null,167,167,null,83,21]
["4343457989101249786656789912349876569876798954098765323456987899987678989433569678999887865456799878",null,null,null,10,4,3,4,3,4,5,7,9,8,9,1,0,1,2,4,9,7,8,6,6,5,6,7,8,9,9,1,2,3,4,9,8,7,6,5,6,9,8,7,6,7,9,8,9,5,4,0,9,8,7,6,5,3,2,3,4,5,6,9,8,7,8,9,9,9,8,7,6,7,8,9,8,9,4,3,3,5,6,9,6,7,8,9,9,9,8,8,7,8,6,5,4,5,6,7,9,9,8,7,8,10,null,"","","","","","","","","","","",1,"","","","","","","","","","","","","","",2,"","","","","","","","","","","","","","","","","","","",1,"","","","","","",3,"","","","","","","","","","","","","","","","","","","","","","","","","","","","","","","","","","","","","","","","","","","","","","",null,174,174,174,174,174,174,174,null,152,null,171,171,171,171,171,null,177,177,177,177,177,177,177,177,null,null,175,175,175,175,null,178,178,178,178,178,null,179,179,179,179,null,176,null,176,176,176,null,169,169,169,169,169,169,169,169,169,169,null,180,180,180,null,null,null,159,159,159,159,159,null,159,null,173,173,173,173,173,null,173,173,173,null,null,null,164,164,164,164,164,164,164,164,164,164,null,null,167,167,167,null,84,84]
["5454599995212998655545679893998765478965987543129876454677896789398789894322454569899999976587898989",null,null,null,10,5,4,5,4,5,9,9,9,9,5,2,1,2,9,9,8,6,5,5,5,4,5,6,7,9,8,9,3,9,9,8,7,6,5,4,7,8,9,6,5,9,8,7,5,4,3,1,2,9,8,7,6,4,5,4,6,7,7,8,9,6,7,8,9,3,9,8,7,8,9,8,9,4,3,2,2,4,5,4,5,6,9,8,9,9,9,9,9,9,7,6,5,8,7,8,9,8,9,8,9,10,null,"","","","","","","","","","","","","","","","","","","","","","","","","","","","","","","","","","",5,"","","","","","","","","","","","","","","","","","","","","","","","","","","","","","","","","","","","","","","","","","","","","","","","","","","","","","","","","","","","","","","","","",null,174,174,174,174,174,null,null,null,null,171,171,171,171,null,null,177,177,177,177,177,177,177,177,177,null,181,null,175,null,null,178,178,178,178,178,178,178,null,179,179,null,176,176,176,176,176,176,176,null,169,169,169,169,169,169,169,169,169,169,null,180,180,180,null,182,null,159,159,159,null,173,null,173,173,173,173,173,173,173,173,173,null,183,null,null,null,null,null,null,164,164,164,164,164,164,null,184,null,167,null,null,85,114]
["6569988994329877544434598799899876567894987675434987565789965689239898765410123698789898987679987695",null,null,null,10,{"$f":"_xlfn.NUMBERVALUE(MID($A86, F$1, 1))","v":6},5,6,9,9,8,8,9,9,4,3,2,9,8,7,7,5,4,4,4,3,4,5,9,8,7,9,9,8,9,9,8,7,6,5,6,7,8,9,4,9,8,7,6,7,5,4,3,4,9,8,7,5,6,5,7,8,9,9,6,5,6,8,9,2,3,9,8,9,8,7,6,5,4,1,0,1,2,3,6,9,8,7,8,9,8,9,8,9,8,7,6,7,9,9,8,7,6,9,{"$f":"_xlfn.NUMBERVALUE(MID($A86, DA$1, 1))","v":5},10,null,"","","","","","","","","","","","","","","","","","","","","","","","","","","","","","","","","","","","","","","","","","","","","","","","","","","","","","","","","","","","","","","","",3,"","","","","","","","","","",1,"","","","","","","","","","","","","","","","","","","","","","","","",null,174,174,174,null,null,185,185,null,null,171,171,171,null,177,177,177,177,177,177,177,177,177,177,null,181,181,null,null,181,null,null,178,178,178,178,178,178,178,null,179,null,176,176,176,176,176,176,176,176,null,169,169,169,169,169,169,169,null,null,180,180,180,180,null,182,182,null,159,null,173,173,173,173,173,173,173,173,173,173,173,null,183,183,183,null,183,null,183,null,164,164,164,164,null,null,184,184,184,null,184,null,86,24]
["7898877889934965432123987688789987678923498786645698976897654578999979876321245987698767898789876534",null,null,null,10,7,8,{"$f":"_xlfn.NUMBERVALUE(MID($A87, H$1, 1))","v":9},8,8,7,7,8,8,9,9,3,4,9,6,5,4,3,2,1,2,3,9,8,7,6,8,8,7,8,9,9,8,7,6,7,8,9,2,3,4,9,8,7,8,6,6,4,5,6,9,8,9,7,6,8,9,7,6,5,4,5,7,8,9,9,9,9,7,9,8,7,6,3,2,1,2,4,5,9,8,7,6,9,8,7,6,7,8,9,8,7,8,9,8,7,6,5,3,4,10,null,"","","","","","","","","","","","","","","","","","","","","","","","","","","","","","","","","","","","","","","","","","","","","","","","","","","","","","","","","","","","","","","","","","","","","","","","","","","","","","","","","","","","","","","","","","","","","","","","","","","","",null,174,174,null,185,185,185,185,185,185,null,null,171,171,null,177,177,177,177,177,177,177,177,null,181,181,181,181,181,181,181,null,null,178,178,178,178,178,null,179,179,179,null,176,176,176,176,176,176,176,176,null,169,null,169,169,169,null,180,180,180,180,180,180,180,null,null,null,null,186,null,173,173,173,173,173,173,173,173,173,null,183,183,183,null,183,183,183,183,183,null,164,164,164,null,184,184,184,184,184,184,null,87,97]
["8997666578895696544019876577678998789012569897896789987976543467989763987443456798597656789899954323",null,null,null,10,8,9,9,7,6,6,6,5,7,8,8,9,5,6,9,6,5,4,4,0,1,9,8,7,6,5,7,7,6,7,8,9,9,8,7,8,9,0,1,2,5,6,9,8,9,7,8,9,6,7,8,9,9,8,7,9,7,6,5,4,3,4,6,7,9,8,9,7,6,3,9,8,7,4,4,3,4,5,6,7,9,8,5,9,7,6,5,6,7,8,9,8,9,9,9,5,4,3,2,3,10,null,"","","","","","","","","","","","","","","","","","","",1,"","","","","","","","","","","","","","","","","",1,"","","","","","","","","","","","","","","","","","","","","","","","","","","","","","","",4,"","","","","","","","","","","","","","","","","","","","","","","","","","","","","","",null,174,null,null,185,185,185,185,185,185,185,185,null,171,171,null,177,177,177,177,177,177,null,181,181,181,181,181,181,181,181,181,null,null,178,178,178,null,179,179,179,179,179,null,176,null,176,176,null,176,176,176,null,null,169,169,null,180,180,180,180,180,180,180,180,null,180,null,186,186,186,null,173,173,173,173,173,173,173,173,173,null,183,183,null,183,183,183,183,183,183,null,164,null,null,null,184,184,184,184,184,null,88,82]
["9987543467789987652129765456567899892123478998998893498989432345678954597556567989432347998989965912",null,null,null,10,9,9,8,7,5,4,3,4,6,7,7,8,9,9,8,7,6,5,2,1,2,9,7,6,5,4,5,6,5,6,7,8,9,9,8,9,2,1,2,3,4,7,8,9,9,8,9,9,8,8,9,3,4,9,8,9,8,9,4,3,2,3,4,5,6,7,8,9,5,4,5,9,7,5,5,6,5,6,7,9,8,9,4,3,2,3,4,7,9,9,8,9,8,9,9,6,5,9,1,2,10,null,"","","","","","","","","","","","","","","","","","","","","","","","","","","","","","","","","","","","","","","","","","","","","","","","","","","","","","","","","","","","","","","","","","","","","","","","","","","","","","","","","","","","","","","","","","","","","","","","","","",2,"",null,null,null,185,185,185,185,185,185,185,185,185,185,null,null,177,177,177,177,177,177,177,null,181,181,181,181,181,181,181,181,181,181,null,null,178,null,179,179,179,179,179,179,179,null,null,176,null,null,176,176,null,187,187,null,169,null,180,null,180,180,180,180,180,180,180,180,180,null,186,186,186,null,173,173,173,173,173,173,173,null,183,null,183,183,183,183,183,183,null,null,188,null,188,null,null,184,184,null,184,184,null,89,11]
["3696542576689998543298654325458999943234569879679912349998651234567899998667679878521238987678899893",null,null,null,10,3,6,9,6,5,4,2,5,7,6,6,8,9,9,9,8,5,4,3,2,9,8,6,5,4,3,2,5,4,5,8,9,9,9,9,4,3,2,3,4,5,6,9,8,7,9,6,7,9,9,1,2,3,4,9,9,9,8,6,5,1,2,3,4,5,{"$f":"_xlfn.NUMBERVALUE(MID($A90, BS$1, 1))","v":6},7,8,9,9,9,9,8,6,6,7,6,7,9,8,7,8,5,2,1,2,3,8,9,8,7,6,7,8,8,9,9,8,9,3,10,null,4,"","","","","","","","","","","","","","","","","","","","","","","","","","","","","","","","","","","","","","","","","","","","","","","","","","","","","","","","","","","",2,"","","","","","","","","","","","","","","","","","","","","","","","","","","","","","","","","","","","","","","",null,189,189,null,185,185,185,185,185,185,185,185,185,null,null,null,177,177,177,177,177,null,181,181,181,181,181,181,181,181,181,181,null,null,null,null,179,179,179,179,179,179,179,null,190,190,null,190,190,null,null,187,187,187,187,null,null,null,180,180,180,180,180,180,180,180,180,180,180,null,null,null,null,173,173,173,173,173,173,null,183,183,183,183,183,183,183,183,183,null,188,188,188,188,188,188,null,null,188,null,184,null,90,54]
["4597321234579987656987543212347898659349698965569101299876543345678988898778798764210349878569789799",null,null,null,10,4,5,{"$f":"_xlfn.NUMBERVALUE(MID($A91, H$1, 1))","v":9},7,3,2,1,2,3,4,5,7,9,9,8,7,6,5,6,9,8,7,5,4,3,2,1,2,3,4,7,8,9,8,6,5,9,3,4,9,6,9,8,9,6,5,5,6,9,1,0,1,2,9,9,8,7,6,5,4,3,3,4,5,6,7,8,9,8,8,8,9,8,7,7,8,7,9,8,7,6,4,2,1,0,3,4,9,8,7,8,5,6,9,7,8,9,7,9,9,10,null,"","","","","","","","","","","","","","","","","","","","","","","","","","","","","","","","","","","","","","","","","","","","","","","","","","",1,"","","","","","","","","","","","","","","","","","","","","","","","","","","","","","","","","",1,"","","","","","","","","","","","","","","",null,189,189,null,185,185,185,185,185,185,185,185,185,null,null,177,177,177,177,177,null,181,181,181,181,181,181,181,181,181,181,181,181,null,179,179,179,null,179,179,null,179,null,191,null,190,190,190,190,null,187,187,187,187,null,null,180,180,180,180,180,180,180,180,180,180,180,180,null,192,192,192,null,173,173,173,173,173,null,183,183,183,183,183,183,183,183,183,null,188,188,188,188,188,null,188,188,null,188,null,null,null,91,35]
["5696510123467898799875432101236789898998997973468993989987854697789876789899899875321459765437677678",null,null,null,10,5,6,9,6,5,1,0,1,2,3,4,6,7,8,9,8,7,9,9,8,7,5,4,3,2,1,0,1,2,3,6,7,8,9,8,9,8,9,9,8,9,9,7,9,7,3,4,6,8,9,9,3,9,8,9,9,8,7,8,5,4,6,9,7,7,8,9,8,7,6,7,8,9,8,9,9,8,9,9,8,7,5,3,2,1,4,5,9,7,6,5,4,3,7,6,7,7,6,7,8,10,null,"","","","","","",1,"","","","","","","","","","","","","","","","","","","",1,"","","","","","","","","","","","","","","","","","","","","","","","","","","","","","","","","","","","","","","","","","","","","","","","","","","","","","","","","","","","","","","","","","","","","","","","","",null,189,189,null,185,185,185,185,185,185,185,185,185,185,185,null,177,177,null,null,181,181,181,181,181,181,181,181,181,181,181,181,181,181,null,179,null,193,null,null,191,null,null,191,null,190,190,190,190,190,null,null,187,null,194,null,null,180,180,180,180,180,180,null,180,180,180,null,192,192,192,192,192,null,173,null,null,173,null,null,183,183,183,183,183,183,183,183,null,188,188,188,188,188,188,188,188,188,188,188,188,null,92,17]
["6989423236567989989999543212345678987897876791569989876598965789899975698976945976732998754326534567",null,null,null,10,6,9,8,9,4,2,3,2,3,6,5,6,7,9,8,9,9,8,9,9,9,9,5,4,3,2,1,2,3,4,5,6,7,8,9,8,7,8,9,7,8,7,6,7,9,1,5,6,9,9,8,9,8,7,6,5,9,8,9,6,5,7,8,9,8,9,9,9,7,5,6,9,8,9,7,6,9,4,5,9,7,6,7,3,2,9,9,8,7,5,4,3,2,6,5,3,4,5,6,7,10,null,"","","","","","","","","","","","","","","","","","","","","","","","","","","","","","","","","","","","","","","","","","","","","",2,"","","","","","","","","",6,"","","","","","","","","","","","","","","","","","","","","","","","","","","","","","","","","","","","","","","","","","","","",null,189,null,185,null,185,185,185,185,185,185,185,185,185,null,195,null,null,195,null,null,null,null,181,181,181,181,181,181,181,181,181,181,181,181,null,193,193,193,null,191,191,191,191,191,null,190,190,190,null,null,196,null,194,194,194,194,null,180,null,180,180,180,180,null,180,null,null,null,192,192,192,null,192,null,197,197,null,197,197,null,183,183,183,183,183,null,null,188,188,188,188,188,188,188,188,188,188,188,188,188,null,93,29]
["9876534345678978878898765423556789256986745989878978987679876789999864587895434989549876543210123456",null,null,null,10,9,8,7,6,5,3,4,3,4,5,6,7,8,9,7,8,8,7,8,8,9,8,7,6,5,4,2,3,5,5,6,7,8,9,2,5,6,9,8,6,7,4,5,9,8,9,8,7,8,9,7,8,9,8,7,6,7,9,8,7,6,7,8,9,9,{"$f":"_xlfn.NUMBERVALUE(MID($A94, BS$1, 1))","v":9},9,8,6,4,5,8,7,8,9,5,4,3,4,9,8,9,5,4,9,8,7,6,5,4,3,2,1,0,{"$f":"_xlfn.NUMBERVALUE(MID($A94, CV$1, 1))","v":1},2,3,4,5,6,10,null,"","","","","","","","","","","","","","","","","","","","","","","","","","","","","","","","","","",3,"","","","","","","","","","","","","","","","","","","","","","","","","","","","","","","","","","","","","","","","","","","","","","","","","","","","","","","","","","",1,"","","","","","",null,null,185,185,185,185,185,185,185,185,185,185,185,185,null,195,195,195,195,195,195,null,181,181,181,181,181,181,181,181,181,181,181,181,null,193,193,193,null,191,191,191,191,191,null,191,null,190,190,190,null,196,196,null,194,194,194,194,null,180,180,180,180,180,null,null,null,null,192,192,192,192,192,192,192,null,197,197,197,197,null,183,null,183,183,null,188,188,188,188,188,188,188,188,188,188,188,188,188,188,188,null,94,89]
["5997845656789769867789876534667896347894331878989568998899997891298783475689923597678987656921434587",null,null,null,10,5,9,{"$f":"_xlfn.NUMBERVALUE(MID($A95, H$1, 1))","v":9},7,8,4,5,6,5,6,7,8,9,7,6,9,8,6,7,7,8,9,8,7,6,5,3,4,6,6,7,8,9,6,3,4,7,8,9,4,3,3,1,8,7,8,9,8,9,5,6,8,9,9,8,8,9,9,9,9,7,8,9,1,2,9,8,7,8,3,4,7,5,6,8,9,9,2,3,5,9,7,6,7,8,9,{"$f":"_xlfn.NUMBERVALUE(MID($A95, CN$1, 1))","v":8},7,6,5,6,9,2,1,4,3,4,5,8,7,10,null,"","","","","","","","","","","","","","","","","","","","","","","","","","","","","","","","","","","","","","","","","","","","","","","","","","","","","","","","","","","","","","","","","","","","","","","","","","","","","",3,"","","","","","","","","","","","","","","","","","","","","","",null,198,null,null,185,185,185,185,185,185,185,185,185,null,195,195,null,195,195,195,195,195,null,181,181,181,181,181,181,181,181,181,181,null,193,193,193,193,193,null,191,191,191,191,191,191,191,null,190,null,196,196,196,null,null,194,194,null,null,null,null,180,180,null,199,199,null,192,192,192,192,192,192,192,192,192,null,null,197,197,197,null,183,183,183,183,null,188,188,188,188,188,null,188,188,188,188,188,188,188,188,null,95,12]
["4398659867896546745678987865778965459973210168995467899998798920197652323457895989989499869896545698",null,null,null,10,4,3,9,8,6,5,9,8,6,7,8,9,6,5,4,6,7,4,5,6,7,8,9,8,7,8,6,5,7,7,8,9,6,5,4,5,9,9,7,3,2,1,0,1,6,8,9,9,5,4,6,7,8,9,9,9,9,8,7,9,8,9,2,0,1,9,7,6,5,2,3,2,3,4,5,7,8,9,5,9,8,9,9,8,9,4,9,9,8,6,9,8,9,6,5,4,5,6,9,8,10,null,"","","","","","","","","","","","","","","","","","","","","","","","","","","","","","","","","","","","","","","","","","",1,"","","","","","","","","","","","","","","","","","","","",1,"","","","","","","","","","","","","","","","","","","","","","","","","","","","","","","","","","","","",null,198,198,null,185,185,185,null,185,185,185,185,null,195,195,195,195,195,195,195,195,195,195,null,181,181,181,181,181,181,181,181,null,193,193,193,193,null,null,191,191,191,191,191,191,191,191,null,null,196,196,196,196,196,null,null,null,null,200,200,null,180,null,199,199,199,null,192,192,192,192,192,192,192,192,192,192,192,null,197,null,201,null,null,183,null,202,null,null,188,188,null,203,null,188,188,188,188,188,null,188,null,96,9]
["3209897979987631236789998989889976569865322347894349902987679921987541013456789379892345998789676789",null,null,null,10,3,2,0,9,8,9,7,9,7,9,9,8,7,6,3,1,2,3,6,7,8,9,9,9,8,9,8,9,8,8,9,9,7,6,5,6,9,8,6,5,3,2,2,3,4,7,8,9,4,3,4,9,9,0,2,9,8,7,6,7,9,9,2,1,9,8,7,5,4,1,0,1,3,4,5,6,7,8,9,3,7,9,8,9,2,3,4,5,9,9,8,7,8,9,6,7,6,7,8,9,10,null,"","",1,"","","","","","","","","","","","",2,"","","","","","","","","","","","","","","","","","","","","","","","","","","","","","","","","","","","","",1,"","","","","","","","","","","","","","","","",1,"","","","","","","","","","","","","","","","","","","","","","","","","","","","","",null,198,198,198,null,185,null,204,null,185,null,null,195,195,195,195,195,195,195,195,195,195,null,null,null,181,null,181,null,181,181,null,null,193,193,193,193,null,191,191,191,191,191,191,191,191,191,191,null,196,196,196,null,null,205,205,null,200,200,200,200,null,null,199,199,null,192,192,192,192,192,192,192,192,192,192,192,192,192,null,201,201,null,201,null,202,202,202,202,null,null,203,203,203,null,188,188,188,188,188,null,null,97,45]
["4399965989999746345678969890997987678976454456789278919996567892986432124567895266791259997679787898",null,null,null,10,4,3,9,9,9,6,5,9,8,9,9,9,9,7,4,6,3,4,5,6,7,8,9,6,9,8,9,0,9,9,7,9,8,7,6,7,8,9,7,6,4,5,4,4,5,6,7,8,9,2,7,8,9,1,9,9,9,6,5,6,7,8,9,2,9,{"$f":"_xlfn.NUMBERVALUE(MID($A98, BS$1, 1))","v":8},6,4,3,2,1,2,4,5,6,7,8,9,5,2,6,6,7,9,1,2,5,9,9,9,7,6,7,9,7,8,7,8,9,8,10,null,"","","","","","","","","","","","","","","","","","","","","","","","","","","",1,"","","","","","","","","","","","","","","","","","","","","","","","","","","","","","","","","","","","","","","","","","","","","","","","","","","",3,"","","","","","","","","","","","","","","","","","","","",null,198,198,null,null,null,204,204,null,185,null,null,null,null,195,195,195,195,195,195,195,195,195,null,206,null,206,null,207,null,null,208,null,193,193,193,193,193,null,191,191,191,191,191,191,191,191,191,191,null,196,196,196,null,205,null,null,null,200,200,200,200,200,null,199,null,192,192,192,192,192,192,192,192,192,192,192,192,null,201,201,201,201,201,null,202,202,202,null,null,null,203,203,203,null,188,188,188,188,null,209,null,98,57]
["5989654598899975458789656791976598989989876767890167898765456789196543235678954345890198786568998967",null,null,null,10,5,9,{"$f":"_xlfn.NUMBERVALUE(MID($A99, H$1, 1))","v":8},9,6,5,4,5,9,8,8,9,9,9,7,5,4,5,8,7,8,9,6,5,6,7,9,1,9,7,6,5,9,8,9,8,9,9,8,9,8,7,6,7,6,7,8,9,0,1,6,7,8,9,8,7,6,5,4,5,6,7,8,9,1,9,6,5,4,3,2,3,5,6,7,8,9,5,4,3,4,5,8,9,0,1,9,8,7,8,6,5,6,8,9,9,8,9,6,7,10,null,"","","","","","","","","","","","","","","","","","","","","","","","","","","","","","","","","","","","","","","","","","","","","","","","",1,"","","","","","","","","","","","","","","",2,"","","","","","","","","","","","","","","","","","","",1,"","","","","","","","","","","","","","","",null,198,null,210,null,204,204,204,204,null,204,204,null,null,null,195,195,195,195,195,195,195,null,206,206,206,206,null,207,null,208,208,208,null,193,null,193,null,null,191,null,191,191,191,191,191,191,191,null,196,196,196,196,196,null,200,200,200,200,200,200,200,200,200,null,211,null,192,192,192,192,192,192,192,192,192,192,null,201,201,201,201,201,201,null,202,202,null,203,203,203,203,203,203,203,null,null,188,null,209,209,null,99,4]
["9878943656789876567896545689765429998795989979921256789876367899297654346789865676789987676467899456",null,null,null,10,9,8,7,8,9,4,3,6,5,6,7,8,9,8,7,6,5,6,7,8,9,6,5,4,5,6,8,9,7,6,5,4,2,9,9,9,8,7,9,5,9,8,9,9,7,9,9,2,1,2,5,6,7,8,9,8,7,6,3,6,7,8,9,9,2,9,7,6,5,4,3,4,6,7,8,9,8,6,5,6,7,6,7,8,9,9,8,7,6,7,6,4,6,7,8,9,9,4,5,6,10,null,"","","","","","","","","","","","","","","","","","","","","","","","","","","","","","","","","","","","","","","","","","","","","","","","","","","","","","","","","","","","","","","","","","","","","","","","","","","","","","","","","","","","","","","","","","","","","","","","","",5,"","",null,null,210,210,210,null,204,204,204,204,204,204,204,null,195,195,195,195,195,195,195,null,206,206,206,206,206,206,null,208,208,208,208,208,null,null,null,212,212,null,212,null,191,null,null,191,null,null,196,196,196,196,196,196,196,null,200,200,200,200,200,200,200,null,null,211,null,192,192,192,192,192,192,192,192,192,null,201,201,201,201,201,201,201,201,null,null,203,203,203,203,203,203,203,203,203,null,null,209,209,209,null,100,27]
["9767892545678987678967434578965312989654393989432345678987245678998765457899876797899876543344568968",null,null,null,10,9,7,6,7,8,9,2,5,4,5,6,7,8,9,8,7,6,7,8,9,6,7,4,3,4,5,7,8,9,6,5,3,1,2,9,8,9,6,5,4,3,9,3,9,8,9,4,3,2,3,4,5,6,7,8,9,8,7,2,4,5,6,7,8,9,9,8,7,6,5,4,5,7,8,9,9,8,7,6,7,9,7,8,9,9,8,7,6,5,4,3,3,4,4,5,6,8,9,6,8,10,null,"","","","","","","","","","","","","","","","","","","","","","","","","","","","","","","","",2,"","","","","","","","","","","","","","","","","","","","","","","","","",3,"","","","","","","","","","","","","","","","","","","","","","","","","","","","","","","","","","","","","","","","","",null,null,210,210,210,210,null,204,204,204,204,204,204,204,null,195,195,195,195,195,null,206,206,206,206,206,206,206,206,null,208,208,208,208,208,null,212,null,212,212,212,212,null,212,null,191,null,196,196,196,196,196,196,196,196,196,null,200,200,200,200,200,200,200,200,null,null,192,192,192,192,192,192,192,192,null,null,201,201,201,201,null,201,201,null,null,203,203,203,203,203,203,203,203,203,203,203,203,null,209,209,null,101,8]
["7659901234567899789654323489986329876543212396545456789994346789019876567901987898998765432123679879",null,null,null,10,7,6,5,9,9,0,1,2,3,4,5,6,7,8,9,9,7,8,9,6,5,4,3,2,3,4,8,9,9,8,6,3,2,9,8,7,6,5,4,3,2,1,2,3,9,6,5,4,5,4,5,6,7,8,9,9,9,4,3,4,6,7,8,9,0,{"$f":"_xlfn.NUMBERVALUE(MID($A102, BS$1, 1))","v":1},9,8,7,6,5,6,7,9,0,1,9,8,7,8,9,8,9,9,8,7,6,5,4,3,2,1,2,3,6,7,9,8,7,9,10,null,"","",6,"","",1,"","","","","","","","","","","","","","","","","",3,"","","","","","","","","","","","","","","","","",2,"","","","","","","","","","","","","","","","","","","","","","",1,"","","","","","","","","",1,"","","","","","","","","","","","","","","","",2,"","","","","","","","",null,210,210,210,null,null,204,204,204,204,204,204,204,204,204,null,null,195,195,null,206,206,206,206,206,206,206,206,null,null,208,208,208,208,null,212,212,212,212,212,212,212,212,212,212,null,196,196,196,196,196,196,196,196,196,null,null,null,200,200,200,200,200,200,null,213,213,null,192,192,192,192,192,192,null,214,214,null,201,201,201,null,201,null,null,203,203,203,203,203,203,203,203,203,203,203,203,null,209,209,null,null,102,7]
[null,null,null,null,10,10,10,10,10,10,10,10,10,10,10,10,10,10,10,10,10,10,10,10,10,10,10,10,10,10,10,10,10,10,10,10,10,10,10,10,10,10,10,10,10,10,10,10,10,10,10,10,10,10,10,10,10,10,10,10,10,10,10,10,10,10,10,10,10,10,10,10,10,10,10,10,10,10,10,10,10,10,10,10,10,10,10,10,10,10,10,10,10,10,10,10,10,10,10,10,10,10,10,10,10,10,null,null,null,null,null,null,null,null,null,null,null,null,null,null,null,null,null,null,null,null,null,null,null,null,null,null,null,null,null,null,null,null,null,null,null,null,null,null,null,null,null,null,null,null,null,null,null,null,null,null,null,null,null,null,null,null,null,null,null,null,null,null,null,null,null,null,null,null,null,null,null,null,null,null,null,null,null,null,null,null,null,null,null,null,null,null,null,null,null,null,null,null,null,null,null,null,null,null,null,null,null,null,null,null,null,null,null,null,null,null,null,null,null,null,null,null,null,null,null,null,null,null,null,null,null,null,null,null,null,null,null,null,null,null,null,null,null,null,null,null,null,null,null,null,null,null,null,null,null,null,null,null,null,null,null,null,null,null,null,null,null,null,null,null,null,null,null,null,null,null,null,null,null,null,null,null,null,null,null,null,null,null,null,null,null,null,null,null,null,null,null,null,null,null,null,null,null,null,null,null,null,null,null,103,59]
[null,null,null,null,null,null,null,null,null,null,null,null,null,null,null,null,null,null,null,null,null,null,null,null,null,null,null,null,null,null,null,null,null,null,null,null,null,null,null,null,null,null,null,null,null,null,null,null,null,null,null,null,null,null,null,null,null,null,null,null,null,null,null,null,null,null,null,null,null,null,null,null,null,null,null,null,null,null,null,null,null,null,null,null,null,null,null,null,null,null,null,null,null,null,null,null,null,null,null,null,null,null,null,null,null,null,null,null,null,null,null,null,null,null,null,null,null,null,null,null,null,null,null,null,null,null,null,null,null,null,null,null,null,null,null,null,null,null,null,null,null,null,null,null,null,null,null,null,null,null,null,null,null,null,null,null,null,null,null,null,null,null,null,null,null,null,null,null,null,null,null,null,null,null,null,null,null,null,null,null,null,null,null,null,null,null,null,null,null,null,null,null,null,null,null,null,null,null,null,null,null,null,null,null,null,null,null,null,null,null,null,null,null,null,null,null,null,null,null,null,null,null,null,null,null,null,null,null,null,null,null,null,null,null,null,null,null,null,null,null,null,null,null,null,null,null,null,null,null,null,null,null,null,null,null,null,null,null,null,null,null,null,null,null,null,null,null,null,null,null,null,null,null,null,null,null,null,null,null,null,null,null,null,null,null,null,null,null,null,null,null,null,null,null,null,null,null,null,null,null,null,null,null,null,null,null,null,null,null,104,47]
[null,null,null,null,null,null,null,null,null,null,null,null,null,null,null,null,null,null,null,null,null,null,null,null,null,null,null,null,null,null,null,null,null,null,null,null,null,null,null,null,null,null,null,null,null,null,null,null,null,null,null,null,null,null,null,null,null,null,null,null,null,null,null,null,null,null,null,null,null,null,null,null,null,null,null,null,null,null,null,null,null,null,null,null,null,null,null,null,null,null,null,null,null,null,null,null,null,null,null,null,null,null,null,null,null,null,null,null,null,null,null,null,null,null,null,null,null,null,null,null,null,null,null,null,null,null,null,null,null,null,null,null,null,null,null,null,null,null,null,null,null,null,null,null,null,null,null,null,null,null,null,null,null,null,null,null,null,null,null,null,null,null,null,null,null,null,null,null,null,null,null,null,null,null,null,null,null,null,null,null,null,null,null,null,null,null,null,null,null,null,null,null,null,null,null,null,null,null,null,null,null,null,null,null,null,null,null,null,null,null,null,null,null,null,null,null,null,null,null,null,null,null,null,null,null,null,null,null,null,null,null,null,null,null,null,null,null,null,null,null,null,null,null,null,null,null,null,null,null,null,null,null,null,null,null,null,null,null,null,null,null,null,null,null,null,null,null,null,null,null,null,null,null,null,null,null,null,null,null,null,null,null,null,null,null,null,null,null,null,null,null,null,null,null,null,null,null,null,null,null,null,null,null,null,null,null,null,null,null,105,48]
[null,null,null,null,null,null,null,null,null,null,null,null,null,null,null,null,null,null,null,null,null,null,null,null,null,null,null,null,null,null,null,null,null,null,null,null,null,null,null,null,null,null,null,null,null,null,null,null,null,null,null,null,null,null,null,null,null,null,null,null,null,null,null,null,null,null,null,null,null,null,null,null,null,null,null,null,null,null,null,null,null,null,null,null,null,null,null,null,null,null,null,null,null,null,null,null,null,null,null,null,null,null,null,null,null,null,null,null,null,null,null,null,null,null,null,null,null,null,null,null,null,null,null,null,null,null,null,null,null,null,null,null,null,null,null,null,null,null,null,null,null,null,null,null,null,null,null,null,null,null,null,null,null,null,null,null,null,null,null,null,null,null,null,null,null,null,null,null,null,null,null,null,null,null,null,null,null,null,null,null,null,null,null,null,null,null,null,null,null,null,null,null,null,null,null,null,null,null,null,null,null,null,null,null,null,null,null,null,null,null,null,null,null,null,null,null,null,null,null,null,null,null,null,null,null,null,null,null,null,null,null,null,null,null,null,null,null,null,null,null,null,null,null,null,null,null,null,null,null,null,null,null,null,null,null,null,null,null,null,null,null,null,null,null,null,null,null,null,null,null,null,null,null,null,null,null,null,null,null,null,null,null,null,null,null,null,null,null,null,null,null,null,null,null,null,null,null,null,null,null,null,null,null,null,null,null,null,null,null,106,26]
[null,null,null,null,null,null,null,null,null,null,null,null,null,null,null,null,null,null,null,null,null,null,null,null,null,null,null,null,null,null,null,null,null,null,null,null,null,null,null,null,null,null,null,null,null,null,null,null,null,null,null,null,null,null,null,null,null,null,null,null,null,null,null,null,null,null,null,null,null,null,null,null,null,null,null,null,null,null,null,null,null,null,null,null,null,null,null,null,null,null,null,null,null,null,null,null,null,null,null,null,null,null,null,null,null,null,null,null,null,null,null,null,null,null,null,null,null,null,null,null,null,null,null,null,null,null,null,null,null,null,null,null,null,null,null,null,null,null,null,null,null,null,null,null,null,null,null,null,null,null,null,null,null,null,null,null,null,null,null,null,null,null,null,null,null,null,null,null,null,null,null,null,null,null,null,null,null,null,null,null,null,null,null,null,null,null,null,null,null,null,null,null,null,null,null,null,null,null,null,null,null,null,null,null,null,null,null,null,null,null,null,null,null,null,null,null,null,null,null,null,null,null,null,null,null,null,null,null,null,null,null,null,null,null,null,null,null,null,null,null,null,null,null,null,null,null,null,null,null,null,null,null,null,null,null,null,null,null,null,null,null,null,null,null,null,null,null,null,null,null,null,null,null,null,null,null,null,null,null,null,null,null,null,null,null,null,null,null,null,null,null,null,null,null,null,null,null,null,null,null,null,null,null,null,null,null,null,null,null,107,103]
[null,null,null,null,null,null,null,null,null,null,null,null,null,null,null,null,null,null,null,null,null,null,null,null,null,null,null,null,null,null,null,null,null,null,null,null,null,null,null,null,null,null,null,null,null,null,null,null,null,null,null,null,null,null,null,null,null,null,null,null,null,null,null,null,null,null,null,null,null,null,null,null,null,null,null,null,null,null,null,null,null,null,null,null,null,null,null,null,null,null,null,null,null,null,null,null,null,null,null,null,null,null,null,null,null,null,null,null,null,null,null,null,null,null,null,null,null,null,null,null,null,null,null,null,null,null,null,null,null,null,null,null,null,null,null,null,null,null,null,null,null,null,null,null,null,null,null,null,null,null,null,null,null,null,null,null,null,null,null,null,null,null,null,null,null,null,null,null,null,null,null,null,null,null,null,null,null,null,null,null,null,null,null,null,null,null,null,null,null,null,null,null,null,null,null,null,null,null,null,null,null,null,null,null,null,null,null,null,null,null,null,null,null,null,null,null,null,null,null,null,null,null,null,null,null,null,null,null,null,null,null,null,null,null,null,null,null,null,null,null,null,null,null,null,null,null,null,null,null,null,null,null,null,null,null,null,null,null,null,null,null,null,null,null,null,null,null,null,null,null,null,null,null,null,null,null,null,null,null,null,null,null,null,null,null,null,null,null,null,null,null,null,null,null,null,null,null,null,null,null,null,null,null,null,null,null,null,null,null,108,3]
[null,null,null,null,null,null,null,null,null,null,null,null,null,null,null,null,null,null,null,null,null,null,null,null,null,null,null,null,null,null,null,null,null,null,null,null,null,null,null,null,null,null,null,null,null,null,null,null,null,null,null,null,null,null,null,null,null,null,null,null,null,null,null,null,null,null,null,null,null,null,null,null,null,null,null,null,null,null,null,null,null,null,null,null,null,null,null,null,null,null,null,null,null,null,null,null,null,null,null,null,null,null,null,null,null,null,null,null,null,null,null,null,null,null,null,null,null,null,null,null,null,null,null,null,null,null,null,null,null,null,null,null,null,null,null,null,null,null,null,null,null,null,null,null,null,null,null,null,null,null,null,null,null,null,null,null,null,null,null,null,null,null,null,null,null,null,null,null,null,null,null,null,null,null,null,null,null,null,null,null,null,null,null,null,null,null,null,null,null,null,null,null,null,null,null,null,null,null,null,null,null,null,null,null,null,null,null,null,null,null,null,null,null,null,null,null,null,null,null,null,null,null,null,null,null,null,null,null,null,null,null,null,null,null,null,null,null,null,null,null,null,null,null,null,null,null,null,null,null,null,null,null,null,null,null,null,null,null,null,null,null,null,null,null,null,null,null,null,null,null,null,null,null,null,null,null,null,null,null,null,null,null,null,null,null,null,null,null,null,null,null,null,null,null,null,null,null,null,null,null,null,null,null,null,null,null,null,null,null,109,63]
[null,null,null,null,null,null,null,null,null,null,null,null,null,null,null,null,null,null,null,null,null,null,null,null,null,null,null,null,null,null,null,null,null,null,null,null,null,null,null,null,null,null,null,null,null,null,null,null,null,null,null,null,null,null,null,null,null,null,null,null,null,null,null,null,null,null,null,null,null,null,null,null,null,null,null,null,null,null,null,null,null,null,null,null,null,null,null,null,null,null,null,null,null,null,null,null,null,null,null,null,null,null,null,null,null,null,null,null,null,null,null,null,null,null,null,null,null,null,null,null,null,null,null,null,null,null,null,null,null,null,null,null,null,null,null,null,null,null,null,null,null,null,null,null,null,null,null,null,null,null,null,null,null,null,null,null,null,null,null,null,null,null,null,null,null,null,null,null,null,null,null,null,null,null,null,null,null,null,null,null,null,null,null,null,null,null,null,null,null,null,null,null,null,null,null,null,null,null,null,null,null,null,null,null,null,null,null,null,null,null,null,null,null,null,null,null,null,null,null,null,null,null,null,null,null,null,null,null,null,null,null,null,null,null,null,null,null,null,null,null,null,null,null,null,null,null,null,null,null,null,null,null,null,null,null,null,null,null,null,null,null,null,null,null,null,null,null,null,null,null,null,null,null,null,null,null,null,null,null,null,null,null,null,null,null,null,null,null,null,null,null,null,null,null,null,null,null,null,null,null,null,null,null,null,null,null,null,null,null,110,56]
[null,null,null,null,null,null,null,null,null,null,null,null,null,null,null,null,null,null,null,null,null,null,null,null,null,null,null,null,null,null,null,null,null,null,null,null,null,null,null,null,null,null,null,null,null,null,null,null,null,null,null,null,null,null,null,null,null,null,null,null,null,null,null,null,null,null,null,null,null,null,null,null,null,null,null,null,null,null,null,null,null,null,null,null,null,null,null,null,null,null,null,null,null,null,null,null,null,null,null,null,null,null,null,null,null,null,null,null,null,null,null,null,null,null,null,null,null,null,null,null,null,null,null,null,null,null,null,null,null,null,null,null,null,null,null,null,null,null,null,null,null,null,null,null,null,null,null,null,null,null,null,null,null,null,null,null,null,null,null,null,null,null,null,null,null,null,null,null,null,null,null,null,null,null,null,null,null,null,null,null,null,null,null,null,null,null,null,null,null,null,null,null,null,null,null,null,null,null,null,null,null,null,null,null,null,null,null,null,null,null,null,null,null,null,null,null,null,null,null,null,null,null,null,null,null,null,null,null,null,null,null,null,null,null,null,null,null,null,null,null,null,null,null,null,null,null,null,null,null,null,null,null,null,null,null,null,null,null,null,null,null,null,null,null,null,null,null,null,null,null,null,null,null,null,null,null,null,null,null,null,null,null,null,null,null,null,null,null,null,null,null,null,null,null,null,null,null,null,null,null,null,null,null,null,null,null,null,null,null,111,7]
[null,null,null,null,null,null,null,null,null,null,null,null,null,null,null,null,null,null,null,null,null,null,null,null,null,null,null,null,null,null,null,null,null,null,null,null,null,null,null,null,null,null,null,null,null,null,null,null,null,null,null,null,null,null,null,null,null,null,null,null,null,null,null,null,null,null,null,null,null,null,null,null,null,null,null,null,null,null,null,null,null,null,null,null,null,null,null,null,null,null,null,null,null,null,null,null,null,null,null,null,null,null,null,null,null,null,null,null,null,null,null,null,null,null,null,null,null,null,null,null,null,null,null,null,null,null,null,null,null,null,null,null,null,null,null,null,null,null,null,null,null,null,null,null,null,null,null,null,null,null,null,null,null,null,null,null,null,null,null,null,null,null,null,null,null,null,null,null,null,null,null,null,null,null,null,null,null,null,null,null,null,null,null,null,null,null,null,null,null,null,null,null,null,null,null,null,null,null,null,null,null,null,null,null,null,null,null,null,null,null,null,null,null,null,null,null,null,null,null,null,null,null,null,null,null,null,null,null,null,null,null,null,null,null,null,null,null,null,null,null,null,null,null,null,null,null,null,null,null,null,null,null,null,null,null,null,null,null,null,null,null,null,null,null,null,null,null,null,null,null,null,null,null,null,null,null,null,null,null,null,null,null,null,null,null,null,null,null,null,null,null,null,null,null,null,null,null,null,null,null,null,null,null,null,null,null,null,null,null,112,84]
[null,null,null,null,null,null,null,null,null,null,null,null,null,null,null,null,null,null,null,null,null,null,null,null,null,null,null,null,null,null,null,null,null,null,null,null,null,null,null,null,null,null,null,null,null,null,null,null,null,null,null,null,null,null,null,null,null,null,null,null,null,null,null,null,null,null,null,null,null,null,null,null,null,null,null,null,null,null,null,null,null,null,null,null,null,null,null,null,null,null,null,null,null,null,null,null,null,null,null,null,null,null,null,null,null,null,null,null,null,null,null,null,null,null,null,null,null,null,null,null,null,null,null,null,null,null,null,null,null,null,null,null,null,null,null,null,null,null,null,null,null,null,null,null,null,null,null,null,null,null,null,null,null,null,null,null,null,null,null,null,null,null,null,null,null,null,null,null,null,null,null,null,null,null,null,null,null,null,null,null,null,null,null,null,null,null,null,null,null,null,null,null,null,null,null,null,null,null,null,null,null,null,null,null,null,null,null,null,null,null,null,null,null,null,null,null,null,null,null,null,null,null,null,null,null,null,null,null,null,null,null,null,null,null,null,null,null,null,null,null,null,null,null,null,null,null,null,null,null,null,null,null,null,null,null,null,null,null,null,null,null,null,null,null,null,null,null,null,null,null,null,null,null,null,null,null,null,null,null,null,null,null,null,null,null,null,null,null,null,null,null,null,null,null,null,null,null,null,null,null,null,null,null,null,null,null,null,null,null,113,2]
[null,null,null,null,null,null,null,null,null,null,null,null,null,null,null,null,null,null,null,null,null,null,null,null,null,null,null,null,null,null,null,null,null,null,null,null,null,null,null,null,null,null,null,null,null,null,null,null,null,null,null,null,null,null,null,null,null,null,null,null,null,null,null,null,null,null,null,null,null,null,null,null,null,null,null,null,null,null,null,null,null,null,null,null,null,null,null,null,null,null,null,null,null,null,null,null,null,null,null,null,null,null,null,null,null,null,null,null,null,null,null,null,null,null,null,null,null,null,null,null,null,null,null,null,null,null,null,null,null,null,null,null,null,null,null,null,null,null,null,null,null,null,null,null,null,null,null,null,null,null,null,null,null,null,null,null,null,null,null,null,null,null,null,null,null,null,null,null,null,null,null,null,null,null,null,null,null,null,null,null,null,null,null,null,null,null,null,null,null,null,null,null,null,null,null,null,null,null,null,null,null,null,null,null,null,null,null,null,null,null,null,null,null,null,null,null,null,null,null,null,null,null,null,null,null,null,null,null,null,null,null,null,null,null,null,null,null,null,null,null,null,null,null,null,null,null,null,null,null,null,null,null,null,null,null,null,null,null,null,null,null,null,null,null,null,null,null,null,null,null,null,null,null,null,null,null,null,null,null,null,null,null,null,null,null,null,null,null,null,null,null,null,null,null,null,null,null,null,null,null,null,null,null,null,null,null,null,null,null,114,86]
[null,null,null,null,null,null,null,null,null,null,null,null,null,null,null,null,null,null,null,null,null,null,null,null,null,null,null,null,null,null,null,null,null,null,null,null,null,null,null,null,null,null,null,null,null,null,null,null,null,null,null,null,null,null,null,null,null,null,null,null,null,null,null,null,null,null,null,null,null,null,null,null,null,null,null,null,null,null,null,null,null,null,null,null,null,null,null,null,null,null,null,null,null,null,null,null,null,null,null,null,null,null,null,null,null,null,null,null,null,null,null,null,null,null,null,null,null,null,null,null,null,null,null,null,null,null,null,null,null,null,null,null,null,null,null,null,null,null,null,null,null,null,null,null,null,null,null,null,null,null,null,null,null,null,null,null,null,null,null,null,null,null,null,null,null,null,null,null,null,null,null,null,null,null,null,null,null,null,null,null,null,null,null,null,null,null,null,null,null,null,null,null,null,null,null,null,null,null,null,null,null,null,null,null,null,null,null,null,null,null,null,null,null,null,null,null,null,null,null,null,null,null,null,null,null,null,null,null,null,null,null,null,null,null,null,null,null,null,null,null,null,null,null,null,null,null,null,null,null,null,null,null,null,null,null,null,null,null,null,null,null,null,null,null,null,null,null,null,null,null,null,null,null,null,null,null,null,null,null,null,null,null,null,null,null,null,null,null,null,null,null,null,null,null,null,null,null,null,null,null,null,null,null,null,null,null,null,null,null,115,7]
[null,null,null,null,null,null,null,null,null,null,null,null,null,null,null,null,null,null,null,null,null,null,null,null,null,null,null,null,null,null,null,null,null,null,null,null,null,null,null,null,null,null,null,null,null,null,null,null,null,null,null,null,null,null,null,null,null,null,null,null,null,null,null,null,null,null,null,null,null,null,null,null,null,null,null,null,null,null,null,null,null,null,null,null,null,null,null,null,null,null,null,null,null,null,null,null,null,null,null,null,null,null,null,null,null,null,null,null,null,null,null,null,null,null,null,null,null,null,null,null,null,null,null,null,null,null,null,null,null,null,null,null,null,null,null,null,null,null,null,null,null,null,null,null,null,null,null,null,null,null,null,null,null,null,null,null,null,null,null,null,null,null,null,null,null,null,null,null,null,null,null,null,null,null,null,null,null,null,null,null,null,null,null,null,null,null,null,null,null,null,null,null,null,null,null,null,null,null,null,null,null,null,null,null,null,null,null,null,null,null,null,null,null,null,null,null,null,null,null,null,null,null,null,null,null,null,null,null,null,null,null,null,null,null,null,null,null,null,null,null,null,null,null,null,null,null,null,null,null,null,null,null,null,null,null,null,null,null,null,null,null,null,null,null,null,null,null,null,null,null,null,null,null,null,null,null,null,null,null,null,null,null,null,null,null,null,null,null,null,null,null,null,null,null,null,null,null,null,null,null,null,null,null,null,null,null,null,null,null,116,8]
[null,null,null,null,null,null,null,null,null,null,null,null,null,null,null,null,null,null,null,null,null,null,null,null,null,null,null,null,null,null,null,null,null,null,null,null,null,null,null,null,null,null,null,null,null,null,null,null,null,null,null,null,null,null,null,null,null,null,null,null,null,null,null,null,null,null,null,null,null,null,null,null,null,null,null,null,null,null,null,null,null,null,null,null,null,null,null,null,null,null,null,null,null,null,null,null,null,null,null,null,null,null,null,null,null,null,null,null,null,null,null,null,null,null,null,null,null,null,null,null,null,null,null,null,null,null,null,null,null,null,null,null,null,null,null,null,null,null,null,null,null,null,null,null,null,null,null,null,null,null,null,null,null,null,null,null,null,null,null,null,null,null,null,null,null,null,null,null,null,null,null,null,null,null,null,null,null,null,null,null,null,null,null,null,null,null,null,null,null,null,null,null,null,null,null,null,null,null,null,null,null,null,null,null,null,null,null,null,null,null,null,null,null,null,null,null,null,null,null,null,null,null,null,null,null,null,null,null,null,null,null,null,null,null,null,null,null,null,null,null,null,null,null,null,null,null,null,null,null,null,null,null,null,null,null,null,null,null,null,null,null,null,null,null,null,null,null,null,null,null,null,null,null,null,null,null,null,null,null,null,null,null,null,null,null,null,null,null,null,null,null,null,null,null,null,null,null,null,null,null,null,null,null,null,null,null,null,null,null,117,55]
[null,null,null,null,null,null,null,null,null,null,null,null,null,null,null,null,null,null,null,null,null,null,null,null,null,null,null,null,null,null,null,null,null,null,null,null,null,null,null,null,null,null,null,null,null,null,null,null,null,null,null,null,null,null,null,null,null,null,null,null,null,null,null,null,null,null,null,null,null,null,null,null,null,null,null,null,null,null,null,null,null,null,null,null,null,null,null,null,null,null,null,null,null,null,null,null,null,null,null,null,null,null,null,null,null,null,null,null,null,null,null,null,null,null,null,null,null,null,null,null,null,null,null,null,null,null,null,null,null,null,null,null,null,null,null,null,null,null,null,null,null,null,null,null,null,null,null,null,null,null,null,null,null,null,null,null,null,null,null,null,null,null,null,null,null,null,null,null,null,null,null,null,null,null,null,null,null,null,null,null,null,null,null,null,null,null,null,null,null,null,null,null,null,null,null,null,null,null,null,null,null,null,null,null,null,null,null,null,null,null,null,null,null,null,null,null,null,null,null,null,null,null,null,null,null,null,null,null,null,null,null,null,null,null,null,null,null,null,null,null,null,null,null,null,null,null,null,null,null,null,null,null,null,null,null,null,null,null,null,null,null,null,null,null,null,null,null,null,null,null,null,null,null,null,null,null,null,null,null,null,null,null,null,null,null,null,null,null,null,null,null,null,null,null,null,null,null,null,null,null,null,null,null,null,null,null,null,null,null,118,3]
[null,null,null,null,null,null,null,null,null,null,null,null,null,null,null,null,null,null,null,null,null,null,null,null,null,null,null,null,null,null,null,null,null,null,null,null,null,null,null,null,null,null,null,null,null,null,null,null,null,null,null,null,null,null,null,null,null,null,null,null,null,null,null,null,null,null,null,null,null,null,null,null,null,null,null,null,null,null,null,null,null,null,null,null,null,null,null,null,null,null,null,null,null,null,null,null,null,null,null,null,null,null,null,null,null,null,null,null,null,null,null,null,null,null,null,null,null,null,null,null,null,null,null,null,null,null,null,null,null,null,null,null,null,null,null,null,null,null,null,null,null,null,null,null,null,null,null,null,null,null,null,null,null,null,null,null,null,null,null,null,null,null,null,null,null,null,null,null,null,null,null,null,null,null,null,null,null,null,null,null,null,null,null,null,null,null,null,null,null,null,null,null,null,null,null,null,null,null,null,null,null,null,null,null,null,null,null,null,null,null,null,null,null,null,null,null,null,null,null,null,null,null,null,null,null,null,null,null,null,null,null,null,null,null,null,null,null,null,null,null,null,null,null,null,null,null,null,null,null,null,null,null,null,null,null,null,null,null,null,null,null,null,null,null,null,null,null,null,null,null,null,null,null,null,null,null,null,null,null,null,null,null,null,null,null,null,null,null,null,null,null,null,null,null,null,null,null,null,null,null,null,null,null,null,null,null,null,null,null,119,4]
[null,null,null,null,null,null,null,null,null,null,null,null,null,null,null,null,null,null,null,null,null,null,null,null,null,null,null,null,null,null,null,null,null,null,null,null,null,null,null,null,null,null,null,null,null,null,null,null,null,null,null,null,null,null,null,null,null,null,null,null,null,null,null,null,null,null,null,null,null,null,null,null,null,null,null,null,null,null,null,null,null,null,null,null,null,null,null,null,null,null,null,null,null,null,null,null,null,null,null,null,null,null,null,null,null,null,null,null,null,null,null,null,null,null,null,null,null,null,null,null,null,null,null,null,null,null,null,null,null,null,null,null,null,null,null,null,null,null,null,null,null,null,null,null,null,null,null,null,null,null,null,null,null,null,null,null,null,null,null,null,null,null,null,null,null,null,null,null,null,null,null,null,null,null,null,null,null,null,null,null,null,null,null,null,null,null,null,null,null,null,null,null,null,null,null,null,null,null,null,null,null,null,null,null,null,null,null,null,null,null,null,null,null,null,null,null,null,null,null,null,null,null,null,null,null,null,null,null,null,null,null,null,null,null,null,null,null,null,null,null,null,null,null,null,null,null,null,null,null,null,null,null,null,null,null,null,null,null,null,null,null,null,null,null,null,null,null,null,null,null,null,null,null,null,null,null,null,null,null,null,null,null,null,null,null,null,null,null,null,null,null,null,null,null,null,null,null,null,null,null,null,null,null,null,null,null,null,null,null,120,87]
[null,null,null,null,null,null,null,null,null,null,null,null,null,null,null,null,null,null,null,null,null,null,null,null,null,null,null,null,null,null,null,null,null,null,null,null,null,null,null,null,null,null,null,null,null,null,null,null,null,null,null,null,null,null,null,null,null,null,null,null,null,null,null,null,null,null,null,null,null,null,null,null,null,null,null,null,null,null,null,null,null,null,null,null,null,null,null,null,null,null,null,null,null,null,null,null,null,null,null,null,null,null,null,null,null,null,null,null,null,null,null,null,null,null,null,null,null,null,null,null,null,null,null,null,null,null,null,null,null,null,null,null,null,null,null,null,null,null,null,null,null,null,null,null,null,null,null,null,null,null,null,null,null,null,null,null,null,null,null,null,null,null,null,null,null,null,null,null,null,null,null,null,null,null,null,null,null,null,null,null,null,null,null,null,null,null,null,null,null,null,null,null,null,null,null,null,null,null,null,null,null,null,null,null,null,null,null,null,null,null,null,null,null,null,null,null,null,null,null,null,null,null,null,null,null,null,null,null,null,null,null,null,null,null,null,null,null,null,null,null,null,null,null,null,null,null,null,null,null,null,null,null,null,null,null,null,null,null,null,null,null,null,null,null,null,null,null,null,null,null,null,null,null,null,null,null,null,null,null,null,null,null,null,null,null,null,null,null,null,null,null,null,null,null,null,null,null,null,null,null,null,null,null,null,null,null,null,null,null,121,65]
[null,null,null,null,null,null,null,null,null,null,null,null,null,null,null,null,null,null,null,null,null,null,null,null,null,null,null,null,null,null,null,null,null,null,null,null,null,null,null,null,null,null,null,null,null,null,null,null,null,null,null,null,null,null,null,null,null,null,null,null,null,null,null,null,null,null,null,null,null,null,null,null,null,null,null,null,null,null,null,null,null,null,null,null,null,null,null,null,null,null,null,null,null,null,null,null,null,null,null,null,null,null,null,null,null,null,null,null,null,null,null,null,null,null,null,null,null,null,null,null,null,null,null,null,null,null,null,null,null,null,null,null,null,null,null,null,null,null,null,null,null,null,null,null,null,null,null,null,null,null,null,null,null,null,null,null,null,null,null,null,null,null,null,null,null,null,null,null,null,null,null,null,null,null,null,null,null,null,null,null,null,null,null,null,null,null,null,null,null,null,null,null,null,null,null,null,null,null,null,null,null,null,null,null,null,null,null,null,null,null,null,null,null,null,null,null,null,null,null,null,null,null,null,null,null,null,null,null,null,null,null,null,null,null,null,null,null,null,null,null,null,null,null,null,null,null,null,null,null,null,null,null,null,null,null,null,null,null,null,null,null,null,null,null,null,null,null,null,null,null,null,null,null,null,null,null,null,null,null,null,null,null,null,null,null,null,null,null,null,null,null,null,null,null,null,null,null,null,null,null,null,null,null,null,null,null,null,null,null,122,45]
[null,null,null,null,null,null,null,null,null,null,null,null,null,null,null,null,null,null,null,null,null,null,null,null,null,null,null,null,null,null,null,null,null,null,null,null,null,null,null,null,null,null,null,null,null,null,null,null,null,null,null,null,null,null,null,null,null,null,null,null,null,null,null,null,null,null,null,null,null,null,null,null,null,null,null,null,null,null,null,null,null,null,null,null,null,null,null,null,null,null,null,null,null,null,null,null,null,null,null,null,null,null,null,null,null,null,null,null,null,null,null,null,null,null,null,null,null,null,null,null,null,null,null,null,null,null,null,null,null,null,null,null,null,null,null,null,null,null,null,null,null,null,null,null,null,null,null,null,null,null,null,null,null,null,null,null,null,null,null,null,null,null,null,null,null,null,null,null,null,null,null,null,null,null,null,null,null,null,null,null,null,null,null,null,null,null,null,null,null,null,null,null,null,null,null,null,null,null,null,null,null,null,null,null,null,null,null,null,null,null,null,null,null,null,null,null,null,null,null,null,null,null,null,null,null,null,null,null,null,null,null,null,null,null,null,null,null,null,null,null,null,null,null,null,null,null,null,null,null,null,null,null,null,null,null,null,null,null,null,null,null,null,null,null,null,null,null,null,null,null,null,null,null,null,null,null,null,null,null,null,null,null,null,null,null,null,null,null,null,null,null,null,null,null,null,null,null,null,null,null,null,null,null,null,null,null,null,null,null,123,66]
[null,null,null,null,null,null,null,null,null,null,null,null,null,null,null,null,null,null,null,null,null,null,null,null,null,null,null,null,null,null,null,null,null,null,null,null,null,null,null,null,null,null,null,null,null,null,null,null,null,null,null,null,null,null,null,null,null,null,null,null,null,null,null,null,null,null,null,null,null,null,null,null,null,null,null,null,null,null,null,null,null,null,null,null,null,null,null,null,null,null,null,null,null,null,null,null,null,null,null,null,null,null,null,null,null,null,null,null,null,null,null,null,null,null,null,null,null,null,null,null,null,null,null,null,null,null,null,null,null,null,null,null,null,null,null,null,null,null,null,null,null,null,null,null,null,null,null,null,null,null,null,null,null,null,null,null,null,null,null,null,null,null,null,null,null,null,null,null,null,null,null,null,null,null,null,null,null,null,null,null,null,null,null,null,null,null,null,null,null,null,null,null,null,null,null,null,null,null,null,null,null,null,null,null,null,null,null,null,null,null,null,null,null,null,null,null,null,null,null,null,null,null,null,null,null,null,null,null,null,null,null,null,null,null,null,null,null,null,null,null,null,null,null,null,null,null,null,null,null,null,null,null,null,null,null,null,null,null,null,null,null,null,null,null,null,null,null,null,null,null,null,null,null,null,null,null,null,null,null,null,null,null,null,null,null,null,null,null,null,null,null,null,null,null,null,null,null,null,null,null,null,null,null,null,null,null,null,null,null,124,9]
[null,null,null,null,null,null,null,null,null,null,null,null,null,null,null,null,null,null,null,null,null,null,null,null,null,null,null,null,null,null,null,null,null,null,null,null,null,null,null,null,null,null,null,null,null,null,null,null,null,null,null,null,null,null,null,null,null,null,null,null,null,null,null,null,null,null,null,null,null,null,null,null,null,null,null,null,null,null,null,null,null,null,null,null,null,null,null,null,null,null,null,null,null,null,null,null,null,null,null,null,null,null,null,null,null,null,null,null,null,null,null,null,null,null,null,null,null,null,null,null,null,null,null,null,null,null,null,null,null,null,null,null,null,null,null,null,null,null,null,null,null,null,null,null,null,null,null,null,null,null,null,null,null,null,null,null,null,null,null,null,null,null,null,null,null,null,null,null,null,null,null,null,null,null,null,null,null,null,null,null,null,null,null,null,null,null,null,null,null,null,null,null,null,null,null,null,null,null,null,null,null,null,null,null,null,null,null,null,null,null,null,null,null,null,null,null,null,null,null,null,null,null,null,null,null,null,null,null,null,null,null,null,null,null,null,null,null,null,null,null,null,null,null,null,null,null,null,null,null,null,null,null,null,null,null,null,null,null,null,null,null,null,null,null,null,null,null,null,null,null,null,null,null,null,null,null,null,null,null,null,null,null,null,null,null,null,null,null,null,null,null,null,null,null,null,null,null,null,null,null,null,null,null,null,null,null,null,null,null,125,9]
[null,null,null,null,null,null,null,null,null,null,null,null,null,null,null,null,null,null,null,null,null,null,null,null,null,null,null,null,null,null,null,null,null,null,null,null,null,null,null,null,null,null,null,null,null,null,null,null,null,null,null,null,null,null,null,null,null,null,null,null,null,null,null,null,null,null,null,null,null,null,null,null,null,null,null,null,null,null,null,null,null,null,null,null,null,null,null,null,null,null,null,null,null,null,null,null,null,null,null,null,null,null,null,null,null,null,null,null,null,null,null,null,null,null,null,null,null,null,null,null,null,null,null,null,null,null,null,null,null,null,null,null,null,null,null,null,null,null,null,null,null,null,null,null,null,null,null,null,null,null,null,null,null,null,null,null,null,null,null,null,null,null,null,null,null,null,null,null,null,null,null,null,null,null,null,null,null,null,null,null,null,null,null,null,null,null,null,null,null,null,null,null,null,null,null,null,null,null,null,null,null,null,null,null,null,null,null,null,null,null,null,null,null,null,null,null,null,null,null,null,null,null,null,null,null,null,null,null,null,null,null,null,null,null,null,null,null,null,null,null,null,null,null,null,null,null,null,null,null,null,null,null,null,null,null,null,null,null,null,null,null,null,null,null,null,null,null,null,null,null,null,null,null,null,null,null,null,null,null,null,null,null,null,null,null,null,null,null,null,null,null,null,null,null,null,null,null,null,null,null,null,null,null,null,null,null,null,null,null,126,59]
[null,null,null,null,null,null,null,null,null,null,null,null,null,null,null,null,null,null,null,null,null,null,null,null,null,null,null,null,null,null,null,null,null,null,null,null,null,null,null,null,null,null,null,null,null,null,null,null,null,null,null,null,null,null,null,null,null,null,null,null,null,null,null,null,null,null,null,null,null,null,null,null,null,null,null,null,null,null,null,null,null,null,null,null,null,null,null,null,null,null,null,null,null,null,null,null,null,null,null,null,null,null,null,null,null,null,null,null,null,null,null,null,null,null,null,null,null,null,null,null,null,null,null,null,null,null,null,null,null,null,null,null,null,null,null,null,null,null,null,null,null,null,null,null,null,null,null,null,null,null,null,null,null,null,null,null,null,null,null,null,null,null,null,null,null,null,null,null,null,null,null,null,null,null,null,null,null,null,null,null,null,null,null,null,null,null,null,null,null,null,null,null,null,null,null,null,null,null,null,null,null,null,null,null,null,null,null,null,null,null,null,null,null,null,null,null,null,null,null,null,null,null,null,null,null,null,null,null,null,null,null,null,null,null,null,null,null,null,null,null,null,null,null,null,null,null,null,null,null,null,null,null,null,null,null,null,null,null,null,null,null,null,null,null,null,null,null,null,null,null,null,null,null,null,null,null,null,null,null,null,null,null,null,null,null,null,null,null,null,null,null,null,null,null,null,null,null,null,null,null,null,null,null,null,null,null,null,null,null,127,2]
[null,null,null,null,null,null,null,null,null,null,null,null,null,null,null,null,null,null,null,null,null,null,null,null,null,null,null,null,null,null,null,null,null,null,null,null,null,null,null,null,null,null,null,null,null,null,null,null,null,null,null,null,null,null,null,null,null,null,null,null,null,null,null,null,null,null,null,null,null,null,null,null,null,null,null,null,null,null,null,null,null,null,null,null,null,null,null,null,null,null,null,null,null,null,null,null,null,null,null,null,null,null,null,null,null,null,null,null,null,null,null,null,null,null,null,null,null,null,null,null,null,null,null,null,null,null,null,null,null,null,null,null,null,null,null,null,null,null,null,null,null,null,null,null,null,null,null,null,null,null,null,null,null,null,null,null,null,null,null,null,null,null,null,null,null,null,null,null,null,null,null,null,null,null,null,null,null,null,null,null,null,null,null,null,null,null,null,null,null,null,null,null,null,null,null,null,null,null,null,null,null,null,null,null,null,null,null,null,null,null,null,null,null,null,null,null,null,null,null,null,null,null,null,null,null,null,null,null,null,null,null,null,null,null,null,null,null,null,null,null,null,null,null,null,null,null,null,null,null,null,null,null,null,null,null,null,null,null,null,null,null,null,null,null,null,null,null,null,null,null,null,null,null,null,null,null,null,null,null,null,null,null,null,null,null,null,null,null,null,null,null,null,null,null,null,null,null,null,null,null,null,null,null,null,null,null,null,null,null,128,30]
[null,null,null,null,null,null,null,null,null,null,null,null,null,null,null,null,null,null,null,null,null,null,null,null,null,null,null,null,null,null,null,null,null,null,null,null,null,null,null,null,null,null,null,null,null,null,null,null,null,null,null,null,null,null,null,null,null,null,null,null,null,null,null,null,null,null,null,null,null,null,null,null,null,null,null,null,null,null,null,null,null,null,null,null,null,null,null,null,null,null,null,null,null,null,null,null,null,null,null,null,null,null,null,null,null,null,null,null,null,null,null,null,null,null,null,null,null,null,null,null,null,null,null,null,null,null,null,null,null,null,null,null,null,null,null,null,null,null,null,null,null,null,null,null,null,null,null,null,null,null,null,null,null,null,null,null,null,null,null,null,null,null,null,null,null,null,null,null,null,null,null,null,null,null,null,null,null,null,null,null,null,null,null,null,null,null,null,null,null,null,null,null,null,null,null,null,null,null,null,null,null,null,null,null,null,null,null,null,null,null,null,null,null,null,null,null,null,null,null,null,null,null,null,null,null,null,null,null,null,null,null,null,null,null,null,null,null,null,null,null,null,null,null,null,null,null,null,null,null,null,null,null,null,null,null,null,null,null,null,null,null,null,null,null,null,null,null,null,null,null,null,null,null,null,null,null,null,null,null,null,null,null,null,null,null,null,null,null,null,null,null,null,null,null,null,null,null,null,null,null,null,null,null,null,null,null,null,null,null,129,{"$f":"COUNTIF($HA$3:$KV$102, KX129)","v":40}]
[null,null,null,null,null,null,null,null,null,null,null,null,null,null,null,null,null,null,null,null,null,null,null,null,null,null,null,null,null,null,null,null,null,null,null,null,null,null,null,null,null,null,null,null,null,null,null,null,null,null,null,null,null,null,null,null,null,null,null,null,null,null,null,null,null,null,null,null,null,null,null,null,null,null,null,null,null,null,null,null,null,null,null,null,null,null,null,null,null,null,null,null,null,null,null,null,null,null,null,null,null,null,null,null,null,null,null,null,null,null,null,null,null,null,null,null,null,null,null,null,null,null,null,null,null,null,null,null,null,null,null,null,null,null,null,null,null,null,null,null,null,null,null,null,null,null,null,null,null,null,null,null,null,null,null,null,null,null,null,null,null,null,null,null,null,null,null,null,null,null,null,null,null,null,null,null,null,null,null,null,null,null,null,null,null,null,null,null,null,null,null,null,null,null,null,null,null,null,null,null,null,null,null,null,null,null,null,null,null,null,null,null,null,null,null,null,null,null,null,null,null,null,null,null,null,null,null,null,null,null,null,null,null,null,null,null,null,null,null,null,null,null,null,null,null,null,null,null,null,null,null,null,null,null,null,null,null,null,null,null,null,null,null,null,null,null,null,null,null,null,null,null,null,null,null,null,null,null,null,null,null,null,null,null,null,null,null,null,null,null,null,null,null,null,null,null,null,null,null,null,null,null,null,null,null,null,null,null,null,130,54]
[null,null,null,null,null,null,null,null,null,null,null,null,null,null,null,null,null,null,null,null,null,null,null,null,null,null,null,null,null,null,null,null,null,null,null,null,null,null,null,null,null,null,null,null,null,null,null,null,null,null,null,null,null,null,null,null,null,null,null,null,null,null,null,null,null,null,null,null,null,null,null,null,null,null,null,null,null,null,null,null,null,null,null,null,null,null,null,null,null,null,null,null,null,null,null,null,null,null,null,null,null,null,null,null,null,null,null,null,null,null,null,null,null,null,null,null,null,null,null,null,null,null,null,null,null,null,null,null,null,null,null,null,null,null,null,null,null,null,null,null,null,null,null,null,null,null,null,null,null,null,null,null,null,null,null,null,null,null,null,null,null,null,null,null,null,null,null,null,null,null,null,null,null,null,null,null,null,null,null,null,null,null,null,null,null,null,null,null,null,null,null,null,null,null,null,null,null,null,null,null,null,null,null,null,null,null,null,null,null,null,null,null,null,null,null,null,null,null,null,null,null,null,null,null,null,null,null,null,null,null,null,null,null,null,null,null,null,null,null,null,null,null,null,null,null,null,null,null,null,null,null,null,null,null,null,null,null,null,null,null,null,null,null,null,null,null,null,null,null,null,null,null,null,null,null,null,null,null,null,null,null,null,null,null,null,null,null,null,null,null,null,null,null,null,null,null,null,null,null,null,null,null,null,null,null,null,null,null,null,131,37]
[null,null,null,null,null,null,null,null,null,null,null,null,null,null,null,null,null,null,null,null,null,null,null,null,null,null,null,null,null,null,null,null,null,null,null,null,null,null,null,null,null,null,null,null,null,null,null,null,null,null,null,null,null,null,null,null,null,null,null,null,null,null,null,null,null,null,null,null,null,null,null,null,null,null,null,null,null,null,null,null,null,null,null,null,null,null,null,null,null,null,null,null,null,null,null,null,null,null,null,null,null,null,null,null,null,null,null,null,null,null,null,null,null,null,null,null,null,null,null,null,null,null,null,null,null,null,null,null,null,null,null,null,null,null,null,null,null,null,null,null,null,null,null,null,null,null,null,null,null,null,null,null,null,null,null,null,null,null,null,null,null,null,null,null,null,null,null,null,null,null,null,null,null,null,null,null,null,null,null,null,null,null,null,null,null,null,null,null,null,null,null,null,null,null,null,null,null,null,null,null,null,null,null,null,null,null,null,null,null,null,null,null,null,null,null,null,null,null,null,null,null,null,null,null,null,null,null,null,null,null,null,null,null,null,null,null,null,null,null,null,null,null,null,null,null,null,null,null,null,null,null,null,null,null,null,null,null,null,null,null,null,null,null,null,null,null,null,null,null,null,null,null,null,null,null,null,null,null,null,null,null,null,null,null,null,null,null,null,null,null,null,null,null,null,null,null,null,null,null,null,null,null,null,null,null,null,null,null,null,132,20]
[null,null,null,null,null,null,null,null,null,null,null,null,null,null,null,null,null,null,null,null,null,null,null,null,null,null,null,null,null,null,null,null,null,null,null,null,null,null,null,null,null,null,null,null,null,null,null,null,null,null,null,null,null,null,null,null,null,null,null,null,null,null,null,null,null,null,null,null,null,null,null,null,null,null,null,null,null,null,null,null,null,null,null,null,null,null,null,null,null,null,null,null,null,null,null,null,null,null,null,null,null,null,null,null,null,null,null,null,null,null,null,null,null,null,null,null,null,null,null,null,null,null,null,null,null,null,null,null,null,null,null,null,null,null,null,null,null,null,null,null,null,null,null,null,null,null,null,null,null,null,null,null,null,null,null,null,null,null,null,null,null,null,null,null,null,null,null,null,null,null,null,null,null,null,null,null,null,null,null,null,null,null,null,null,null,null,null,null,null,null,null,null,null,null,null,null,null,null,null,null,null,null,null,null,null,null,null,null,null,null,null,null,null,null,null,null,null,null,null,null,null,null,null,null,null,null,null,null,null,null,null,null,null,null,null,null,null,null,null,null,null,null,null,null,null,null,null,null,null,null,null,null,null,null,null,null,null,null,null,null,null,null,null,null,null,null,null,null,null,null,null,null,null,null,null,null,null,null,null,null,null,null,null,null,null,null,null,null,null,null,null,null,null,null,null,null,null,null,null,null,null,null,null,null,null,null,null,null,null,133,41]
[null,null,null,null,null,null,null,null,null,null,null,null,null,null,null,null,null,null,null,null,null,null,null,null,null,null,null,null,null,null,null,null,null,null,null,null,null,null,null,null,null,null,null,null,null,null,null,null,null,null,null,null,null,null,null,null,null,null,null,null,null,null,null,null,null,null,null,null,null,null,null,null,null,null,null,null,null,null,null,null,null,null,null,null,null,null,null,null,null,null,null,null,null,null,null,null,null,null,null,null,null,null,null,null,null,null,null,null,null,null,null,null,null,null,null,null,null,null,null,null,null,null,null,null,null,null,null,null,null,null,null,null,null,null,null,null,null,null,null,null,null,null,null,null,null,null,null,null,null,null,null,null,null,null,null,null,null,null,null,null,null,null,null,null,null,null,null,null,null,null,null,null,null,null,null,null,null,null,null,null,null,null,null,null,null,null,null,null,null,null,null,null,null,null,null,null,null,null,null,null,null,null,null,null,null,null,null,null,null,null,null,null,null,null,null,null,null,null,null,null,null,null,null,null,null,null,null,null,null,null,null,null,null,null,null,null,null,null,null,null,null,null,null,null,null,null,null,null,null,null,null,null,null,null,null,null,null,null,null,null,null,null,null,null,null,null,null,null,null,null,null,null,null,null,null,null,null,null,null,null,null,null,null,null,null,null,null,null,null,null,null,null,null,null,null,null,null,null,null,null,null,null,null,null,null,null,null,null,null,134,10]
[null,null,null,null,null,null,null,null,null,null,null,null,null,null,null,null,null,null,null,null,null,null,null,null,null,null,null,null,null,null,null,null,null,null,null,null,null,null,null,null,null,null,null,null,null,null,null,null,null,null,null,null,null,null,null,null,null,null,null,null,null,null,null,null,null,null,null,null,null,null,null,null,null,null,null,null,null,null,null,null,null,null,null,null,null,null,null,null,null,null,null,null,null,null,null,null,null,null,null,null,null,null,null,null,null,null,null,null,null,null,null,null,null,null,null,null,null,null,null,null,null,null,null,null,null,null,null,null,null,null,null,null,null,null,null,null,null,null,null,null,null,null,null,null,null,null,null,null,null,null,null,null,null,null,null,null,null,null,null,null,null,null,null,null,null,null,null,null,null,null,null,null,null,null,null,null,null,null,null,null,null,null,null,null,null,null,null,null,null,null,null,null,null,null,null,null,null,null,null,null,null,null,null,null,null,null,null,null,null,null,null,null,null,null,null,null,null,null,null,null,null,null,null,null,null,null,null,null,null,null,null,null,null,null,null,null,null,null,null,null,null,null,null,null,null,null,null,null,null,null,null,null,null,null,null,null,null,null,null,null,null,null,null,null,null,null,null,null,null,null,null,null,null,null,null,null,null,null,null,null,null,null,null,null,null,null,null,null,null,null,null,null,null,null,null,null,null,null,null,null,null,null,null,null,null,null,null,null,null,135,40]
[null,null,null,null,null,null,null,null,null,null,null,null,null,null,null,null,null,null,null,null,null,null,null,null,null,null,null,null,null,null,null,null,null,null,null,null,null,null,null,null,null,null,null,null,null,null,null,null,null,null,null,null,null,null,null,null,null,null,null,null,null,null,null,null,null,null,null,null,null,null,null,null,null,null,null,null,null,null,null,null,null,null,null,null,null,null,null,null,null,null,null,null,null,null,null,null,null,null,null,null,null,null,null,null,null,null,null,null,null,null,null,null,null,null,null,null,null,null,null,null,null,null,null,null,null,null,null,null,null,null,null,null,null,null,null,null,null,null,null,null,null,null,null,null,null,null,null,null,null,null,null,null,null,null,null,null,null,null,null,null,null,null,null,null,null,null,null,null,null,null,null,null,null,null,null,null,null,null,null,null,null,null,null,null,null,null,null,null,null,null,null,null,null,null,null,null,null,null,null,null,null,null,null,null,null,null,null,null,null,null,null,null,null,null,null,null,null,null,null,null,null,null,null,null,null,null,null,null,null,null,null,null,null,null,null,null,null,null,null,null,null,null,null,null,null,null,null,null,null,null,null,null,null,null,null,null,null,null,null,null,null,null,null,null,null,null,null,null,null,null,null,null,null,null,null,null,null,null,null,null,null,null,null,null,null,null,null,null,null,null,null,null,null,null,null,null,null,null,null,null,null,null,null,null,null,null,null,null,null,136,97]
[null,null,null,null,null,null,null,null,null,null,null,null,null,null,null,null,null,null,null,null,null,null,null,null,null,null,null,null,null,null,null,null,null,null,null,null,null,null,null,null,null,null,null,null,null,null,null,null,null,null,null,null,null,null,null,null,null,null,null,null,null,null,null,null,null,null,null,null,null,null,null,null,null,null,null,null,null,null,null,null,null,null,null,null,null,null,null,null,null,null,null,null,null,null,null,null,null,null,null,null,null,null,null,null,null,null,null,null,null,null,null,null,null,null,null,null,null,null,null,null,null,null,null,null,null,null,null,null,null,null,null,null,null,null,null,null,null,null,null,null,null,null,null,null,null,null,null,null,null,null,null,null,null,null,null,null,null,null,null,null,null,null,null,null,null,null,null,null,null,null,null,null,null,null,null,null,null,null,null,null,null,null,null,null,null,null,null,null,null,null,null,null,null,null,null,null,null,null,null,null,null,null,null,null,null,null,null,null,null,null,null,null,null,null,null,null,null,null,null,null,null,null,null,null,null,null,null,null,null,null,null,null,null,null,null,null,null,null,null,null,null,null,null,null,null,null,null,null,null,null,null,null,null,null,null,null,null,null,null,null,null,null,null,null,null,null,null,null,null,null,null,null,null,null,null,null,null,null,null,null,null,null,null,null,null,null,null,null,null,null,null,null,null,null,null,null,null,null,null,null,null,null,null,null,null,null,null,null,null,137,25]
[null,null,null,null,null,null,null,null,null,null,null,null,null,null,null,null,null,null,null,null,null,null,null,null,null,null,null,null,null,null,null,null,null,null,null,null,null,null,null,null,null,null,null,null,null,null,null,null,null,null,null,null,null,null,null,null,null,null,null,null,null,null,null,null,null,null,null,null,null,null,null,null,null,null,null,null,null,null,null,null,null,null,null,null,null,null,null,null,null,null,null,null,null,null,null,null,null,null,null,null,null,null,null,null,null,null,null,null,null,null,null,null,null,null,null,null,null,null,null,null,null,null,null,null,null,null,null,null,null,null,null,null,null,null,null,null,null,null,null,null,null,null,null,null,null,null,null,null,null,null,null,null,null,null,null,null,null,null,null,null,null,null,null,null,null,null,null,null,null,null,null,null,null,null,null,null,null,null,null,null,null,null,null,null,null,null,null,null,null,null,null,null,null,null,null,null,null,null,null,null,null,null,null,null,null,null,null,null,null,null,null,null,null,null,null,null,null,null,null,null,null,null,null,null,null,null,null,null,null,null,null,null,null,null,null,null,null,null,null,null,null,null,null,null,null,null,null,null,null,null,null,null,null,null,null,null,null,null,null,null,null,null,null,null,null,null,null,null,null,null,null,null,null,null,null,null,null,null,null,null,null,null,null,null,null,null,null,null,null,null,null,null,null,null,null,null,null,null,null,null,null,null,null,null,null,null,null,null,null,138,7]
[null,null,null,null,null,null,null,null,null,null,null,null,null,null,null,null,null,null,null,null,null,null,null,null,null,null,null,null,null,null,null,null,null,null,null,null,null,null,null,null,null,null,null,null,null,null,null,null,null,null,null,null,null,null,null,null,null,null,null,null,null,null,null,null,null,null,null,null,null,null,null,null,null,null,null,null,null,null,null,null,null,null,null,null,null,null,null,null,null,null,null,null,null,null,null,null,null,null,null,null,null,null,null,null,null,null,null,null,null,null,null,null,null,null,null,null,null,null,null,null,null,null,null,null,null,null,null,null,null,null,null,null,null,null,null,null,null,null,null,null,null,null,null,null,null,null,null,null,null,null,null,null,null,null,null,null,null,null,null,null,null,null,null,null,null,null,null,null,null,null,null,null,null,null,null,null,null,null,null,null,null,null,null,null,null,null,null,null,null,null,null,null,null,null,null,null,null,null,null,null,null,null,null,null,null,null,null,null,null,null,null,null,null,null,null,null,null,null,null,null,null,null,null,null,null,null,null,null,null,null,null,null,null,null,null,null,null,null,null,null,null,null,null,null,null,null,null,null,null,null,null,null,null,null,null,null,null,null,null,null,null,null,null,null,null,null,null,null,null,null,null,null,null,null,null,null,null,null,null,null,null,null,null,null,null,null,null,null,null,null,null,null,null,null,null,null,null,null,null,null,null,null,null,null,null,null,null,null,null,139,43]
[null,null,null,null,null,null,null,null,null,null,null,null,null,null,null,null,null,null,null,null,null,null,null,null,null,null,null,null,null,null,null,null,null,null,null,null,null,null,null,null,null,null,null,null,null,null,null,null,null,null,null,null,null,null,null,null,null,null,null,null,null,null,null,null,null,null,null,null,null,null,null,null,null,null,null,null,null,null,null,null,null,null,null,null,null,null,null,null,null,null,null,null,null,null,null,null,null,null,null,null,null,null,null,null,null,null,null,null,null,null,null,null,null,null,null,null,null,null,null,null,null,null,null,null,null,null,null,null,null,null,null,null,null,null,null,null,null,null,null,null,null,null,null,null,null,null,null,null,null,null,null,null,null,null,null,null,null,null,null,null,null,null,null,null,null,null,null,null,null,null,null,null,null,null,null,null,null,null,null,null,null,null,null,null,null,null,null,null,null,null,null,null,null,null,null,null,null,null,null,null,null,null,null,null,null,null,null,null,null,null,null,null,null,null,null,null,null,null,null,null,null,null,null,null,null,null,null,null,null,null,null,null,null,null,null,null,null,null,null,null,null,null,null,null,null,null,null,null,null,null,null,null,null,null,null,null,null,null,null,null,null,null,null,null,null,null,null,null,null,null,null,null,null,null,null,null,null,null,null,null,null,null,null,null,null,null,null,null,null,null,null,null,null,null,null,null,null,null,null,null,null,null,null,null,null,null,null,null,null,140,19]
[null,null,null,null,null,null,null,null,null,null,null,null,null,null,null,null,null,null,null,null,null,null,null,null,null,null,null,null,null,null,null,null,null,null,null,null,null,null,null,null,null,null,null,null,null,null,null,null,null,null,null,null,null,null,null,null,null,null,null,null,null,null,null,null,null,null,null,null,null,null,null,null,null,null,null,null,null,null,null,null,null,null,null,null,null,null,null,null,null,null,null,null,null,null,null,null,null,null,null,null,null,null,null,null,null,null,null,null,null,null,null,null,null,null,null,null,null,null,null,null,null,null,null,null,null,null,null,null,null,null,null,null,null,null,null,null,null,null,null,null,null,null,null,null,null,null,null,null,null,null,null,null,null,null,null,null,null,null,null,null,null,null,null,null,null,null,null,null,null,null,null,null,null,null,null,null,null,null,null,null,null,null,null,null,null,null,null,null,null,null,null,null,null,null,null,null,null,null,null,null,null,null,null,null,null,null,null,null,null,null,null,null,null,null,null,null,null,null,null,null,null,null,null,null,null,null,null,null,null,null,null,null,null,null,null,null,null,null,null,null,null,null,null,null,null,null,null,null,null,null,null,null,null,null,null,null,null,null,null,null,null,null,null,null,null,null,null,null,null,null,null,null,null,null,null,null,null,null,null,null,null,null,null,null,null,null,null,null,null,null,null,null,null,null,null,null,null,null,null,null,null,null,null,null,null,null,null,null,null,141,106]
[null,null,null,null,null,null,null,null,null,null,null,null,null,null,null,null,null,null,null,null,null,null,null,null,null,null,null,null,null,null,null,null,null,null,null,null,null,null,null,null,null,null,null,null,null,null,null,null,null,null,null,null,null,null,null,null,null,null,null,null,null,null,null,null,null,null,null,null,null,null,null,null,null,null,null,null,null,null,null,null,null,null,null,null,null,null,null,null,null,null,null,null,null,null,null,null,null,null,null,null,null,null,null,null,null,null,null,null,null,null,null,null,null,null,null,null,null,null,null,null,null,null,null,null,null,null,null,null,null,null,null,null,null,null,null,null,null,null,null,null,null,null,null,null,null,null,null,null,null,null,null,null,null,null,null,null,null,null,null,null,null,null,null,null,null,null,null,null,null,null,null,null,null,null,null,null,null,null,null,null,null,null,null,null,null,null,null,null,null,null,null,null,null,null,null,null,null,null,null,null,null,null,null,null,null,null,null,null,null,null,null,null,null,null,null,null,null,null,null,null,null,null,null,null,null,null,null,null,null,null,null,null,null,null,null,null,null,null,null,null,null,null,null,null,null,null,null,null,null,null,null,null,null,null,null,null,null,null,null,null,null,null,null,null,null,null,null,null,null,null,null,null,null,null,null,null,null,null,null,null,null,null,null,null,null,null,null,null,null,null,null,null,null,null,null,null,null,null,null,null,null,null,null,null,null,null,null,null,null,142,56]
[null,null,null,null,null,null,null,null,null,null,null,null,null,null,null,null,null,null,null,null,null,null,null,null,null,null,null,null,null,null,null,null,null,null,null,null,null,null,null,null,null,null,null,null,null,null,null,null,null,null,null,null,null,null,null,null,null,null,null,null,null,null,null,null,null,null,null,null,null,null,null,null,null,null,null,null,null,null,null,null,null,null,null,null,null,null,null,null,null,null,null,null,null,null,null,null,null,null,null,null,null,null,null,null,null,null,null,null,null,null,null,null,null,null,null,null,null,null,null,null,null,null,null,null,null,null,null,null,null,null,null,null,null,null,null,null,null,null,null,null,null,null,null,null,null,null,null,null,null,null,null,null,null,null,null,null,null,null,null,null,null,null,null,null,null,null,null,null,null,null,null,null,null,null,null,null,null,null,null,null,null,null,null,null,null,null,null,null,null,null,null,null,null,null,null,null,null,null,null,null,null,null,null,null,null,null,null,null,null,null,null,null,null,null,null,null,null,null,null,null,null,null,null,null,null,null,null,null,null,null,null,null,null,null,null,null,null,null,null,null,null,null,null,null,null,null,null,null,null,null,null,null,null,null,null,null,null,null,null,null,null,null,null,null,null,null,null,null,null,null,null,null,null,null,null,null,null,null,null,null,null,null,null,null,null,null,null,null,null,null,null,null,null,null,null,null,null,null,null,null,null,null,null,null,null,null,null,null,null,143,57]
[null,null,null,null,null,null,null,null,null,null,null,null,null,null,null,null,null,null,null,null,null,null,null,null,null,null,null,null,null,null,null,null,null,null,null,null,null,null,null,null,null,null,null,null,null,null,null,null,null,null,null,null,null,null,null,null,null,null,null,null,null,null,null,null,null,null,null,null,null,null,null,null,null,null,null,null,null,null,null,null,null,null,null,null,null,null,null,null,null,null,null,null,null,null,null,null,null,null,null,null,null,null,null,null,null,null,null,null,null,null,null,null,null,null,null,null,null,null,null,null,null,null,null,null,null,null,null,null,null,null,null,null,null,null,null,null,null,null,null,null,null,null,null,null,null,null,null,null,null,null,null,null,null,null,null,null,null,null,null,null,null,null,null,null,null,null,null,null,null,null,null,null,null,null,null,null,null,null,null,null,null,null,null,null,null,null,null,null,null,null,null,null,null,null,null,null,null,null,null,null,null,null,null,null,null,null,null,null,null,null,null,null,null,null,null,null,null,null,null,null,null,null,null,null,null,null,null,null,null,null,null,null,null,null,null,null,null,null,null,null,null,null,null,null,null,null,null,null,null,null,null,null,null,null,null,null,null,null,null,null,null,null,null,null,null,null,null,null,null,null,null,null,null,null,null,null,null,null,null,null,null,null,null,null,null,null,null,null,null,null,null,null,null,null,null,null,null,null,null,null,null,null,null,null,null,null,null,null,null,144,22]
[null,null,null,null,null,null,null,null,null,null,null,null,null,null,null,null,null,null,null,null,null,null,null,null,null,null,null,null,null,null,null,null,null,null,null,null,null,null,null,null,null,null,null,null,null,null,null,null,null,null,null,null,null,null,null,null,null,null,null,null,null,null,null,null,null,null,null,null,null,null,null,null,null,null,null,null,null,null,null,null,null,null,null,null,null,null,null,null,null,null,null,null,null,null,null,null,null,null,null,null,null,null,null,null,null,null,null,null,null,null,null,null,null,null,null,null,null,null,null,null,null,null,null,null,null,null,null,null,null,null,null,null,null,null,null,null,null,null,null,null,null,null,null,null,null,null,null,null,null,null,null,null,null,null,null,null,null,null,null,null,null,null,null,null,null,null,null,null,null,null,null,null,null,null,null,null,null,null,null,null,null,null,null,null,null,null,null,null,null,null,null,null,null,null,null,null,null,null,null,null,null,null,null,null,null,null,null,null,null,null,null,null,null,null,null,null,null,null,null,null,null,null,null,null,null,null,null,null,null,null,null,null,null,null,null,null,null,null,null,null,null,null,null,null,null,null,null,null,null,null,null,null,null,null,null,null,null,null,null,null,null,null,null,null,null,null,null,null,null,null,null,null,null,null,null,null,null,null,null,null,null,null,null,null,null,null,null,null,null,null,null,null,null,null,null,null,null,null,null,null,null,null,null,null,null,null,null,null,null,145,10]
[null,null,null,null,null,null,null,null,null,null,null,null,null,null,null,null,null,null,null,null,null,null,null,null,null,null,null,null,null,null,null,null,null,null,null,null,null,null,null,null,null,null,null,null,null,null,null,null,null,null,null,null,null,null,null,null,null,null,null,null,null,null,null,null,null,null,null,null,null,null,null,null,null,null,null,null,null,null,null,null,null,null,null,null,null,null,null,null,null,null,null,null,null,null,null,null,null,null,null,null,null,null,null,null,null,null,null,null,null,null,null,null,null,null,null,null,null,null,null,null,null,null,null,null,null,null,null,null,null,null,null,null,null,null,null,null,null,null,null,null,null,null,null,null,null,null,null,null,null,null,null,null,null,null,null,null,null,null,null,null,null,null,null,null,null,null,null,null,null,null,null,null,null,null,null,null,null,null,null,null,null,null,null,null,null,null,null,null,null,null,null,null,null,null,null,null,null,null,null,null,null,null,null,null,null,null,null,null,null,null,null,null,null,null,null,null,null,null,null,null,null,null,null,null,null,null,null,null,null,null,null,null,null,null,null,null,null,null,null,null,null,null,null,null,null,null,null,null,null,null,null,null,null,null,null,null,null,null,null,null,null,null,null,null,null,null,null,null,null,null,null,null,null,null,null,null,null,null,null,null,null,null,null,null,null,null,null,null,null,null,null,null,null,null,null,null,null,null,null,null,null,null,null,null,null,null,null,null,null,146,29]
[null,null,null,null,null,null,null,null,null,null,null,null,null,null,null,null,null,null,null,null,null,null,null,null,null,null,null,null,null,null,null,null,null,null,null,null,null,null,null,null,null,null,null,null,null,null,null,null,null,null,null,null,null,null,null,null,null,null,null,null,null,null,null,null,null,null,null,null,null,null,null,null,null,null,null,null,null,null,null,null,null,null,null,null,null,null,null,null,null,null,null,null,null,null,null,null,null,null,null,null,null,null,null,null,null,null,null,null,null,null,null,null,null,null,null,null,null,null,null,null,null,null,null,null,null,null,null,null,null,null,null,null,null,null,null,null,null,null,null,null,null,null,null,null,null,null,null,null,null,null,null,null,null,null,null,null,null,null,null,null,null,null,null,null,null,null,null,null,null,null,null,null,null,null,null,null,null,null,null,null,null,null,null,null,null,null,null,null,null,null,null,null,null,null,null,null,null,null,null,null,null,null,null,null,null,null,null,null,null,null,null,null,null,null,null,null,null,null,null,null,null,null,null,null,null,null,null,null,null,null,null,null,null,null,null,null,null,null,null,null,null,null,null,null,null,null,null,null,null,null,null,null,null,null,null,null,null,null,null,null,null,null,null,null,null,null,null,null,null,null,null,null,null,null,null,null,null,null,null,null,null,null,null,null,null,null,null,null,null,null,null,null,null,null,null,null,null,null,null,null,null,null,null,null,null,null,null,null,null,147,55]
[null,null,null,null,null,null,null,null,null,null,null,null,null,null,null,null,null,null,null,null,null,null,null,null,null,null,null,null,null,null,null,null,null,null,null,null,null,null,null,null,null,null,null,null,null,null,null,null,null,null,null,null,null,null,null,null,null,null,null,null,null,null,null,null,null,null,null,null,null,null,null,null,null,null,null,null,null,null,null,null,null,null,null,null,null,null,null,null,null,null,null,null,null,null,null,null,null,null,null,null,null,null,null,null,null,null,null,null,null,null,null,null,null,null,null,null,null,null,null,null,null,null,null,null,null,null,null,null,null,null,null,null,null,null,null,null,null,null,null,null,null,null,null,null,null,null,null,null,null,null,null,null,null,null,null,null,null,null,null,null,null,null,null,null,null,null,null,null,null,null,null,null,null,null,null,null,null,null,null,null,null,null,null,null,null,null,null,null,null,null,null,null,null,null,null,null,null,null,null,null,null,null,null,null,null,null,null,null,null,null,null,null,null,null,null,null,null,null,null,null,null,null,null,null,null,null,null,null,null,null,null,null,null,null,null,null,null,null,null,null,null,null,null,null,null,null,null,null,null,null,null,null,null,null,null,null,null,null,null,null,null,null,null,null,null,null,null,null,null,null,null,null,null,null,null,null,null,null,null,null,null,null,null,null,null,null,null,null,null,null,null,null,null,null,null,null,null,null,null,null,null,null,null,null,null,null,null,null,null,148,48]
[null,null,null,null,null,null,null,null,null,null,null,null,null,null,null,null,null,null,null,null,null,null,null,null,null,null,null,null,null,null,null,null,null,null,null,null,null,null,null,null,null,null,null,null,null,null,null,null,null,null,null,null,null,null,null,null,null,null,null,null,null,null,null,null,null,null,null,null,null,null,null,null,null,null,null,null,null,null,null,null,null,null,null,null,null,null,null,null,null,null,null,null,null,null,null,null,null,null,null,null,null,null,null,null,null,null,null,null,null,null,null,null,null,null,null,null,null,null,null,null,null,null,null,null,null,null,null,null,null,null,null,null,null,null,null,null,null,null,null,null,null,null,null,null,null,null,null,null,null,null,null,null,null,null,null,null,null,null,null,null,null,null,null,null,null,null,null,null,null,null,null,null,null,null,null,null,null,null,null,null,null,null,null,null,null,null,null,null,null,null,null,null,null,null,null,null,null,null,null,null,null,null,null,null,null,null,null,null,null,null,null,null,null,null,null,null,null,null,null,null,null,null,null,null,null,null,null,null,null,null,null,null,null,null,null,null,null,null,null,null,null,null,null,null,null,null,null,null,null,null,null,null,null,null,null,null,null,null,null,null,null,null,null,null,null,null,null,null,null,null,null,null,null,null,null,null,null,null,null,null,null,null,null,null,null,null,null,null,null,null,null,null,null,null,null,null,null,null,null,null,null,null,null,null,null,null,null,null,null,149,70]
[null,null,null,null,null,null,null,null,null,null,null,null,null,null,null,null,null,null,null,null,null,null,null,null,null,null,null,null,null,null,null,null,null,null,null,null,null,null,null,null,null,null,null,null,null,null,null,null,null,null,null,null,null,null,null,null,null,null,null,null,null,null,null,null,null,null,null,null,null,null,null,null,null,null,null,null,null,null,null,null,null,null,null,null,null,null,null,null,null,null,null,null,null,null,null,null,null,null,null,null,null,null,null,null,null,null,null,null,null,null,null,null,null,null,null,null,null,null,null,null,null,null,null,null,null,null,null,null,null,null,null,null,null,null,null,null,null,null,null,null,null,null,null,null,null,null,null,null,null,null,null,null,null,null,null,null,null,null,null,null,null,null,null,null,null,null,null,null,null,null,null,null,null,null,null,null,null,null,null,null,null,null,null,null,null,null,null,null,null,null,null,null,null,null,null,null,null,null,null,null,null,null,null,null,null,null,null,null,null,null,null,null,null,null,null,null,null,null,null,null,null,null,null,null,null,null,null,null,null,null,null,null,null,null,null,null,null,null,null,null,null,null,null,null,null,null,null,null,null,null,null,null,null,null,null,null,null,null,null,null,null,null,null,null,null,null,null,null,null,null,null,null,null,null,null,null,null,null,null,null,null,null,null,null,null,null,null,null,null,null,null,null,null,null,null,null,null,null,null,null,null,null,null,null,null,null,null,null,null,150,11]
[null,null,null,null,null,null,null,null,null,null,null,null,null,null,null,null,null,null,null,null,null,null,null,null,null,null,null,null,null,null,null,null,null,null,null,null,null,null,null,null,null,null,null,null,null,null,null,null,null,null,null,null,null,null,null,null,null,null,null,null,null,null,null,null,null,null,null,null,null,null,null,null,null,null,null,null,null,null,null,null,null,null,null,null,null,null,null,null,null,null,null,null,null,null,null,null,null,null,null,null,null,null,null,null,null,null,null,null,null,null,null,null,null,null,null,null,null,null,null,null,null,null,null,null,null,null,null,null,null,null,null,null,null,null,null,null,null,null,null,null,null,null,null,null,null,null,null,null,null,null,null,null,null,null,null,null,null,null,null,null,null,null,null,null,null,null,null,null,null,null,null,null,null,null,null,null,null,null,null,null,null,null,null,null,null,null,null,null,null,null,null,null,null,null,null,null,null,null,null,null,null,null,null,null,null,null,null,null,null,null,null,null,null,null,null,null,null,null,null,null,null,null,null,null,null,null,null,null,null,null,null,null,null,null,null,null,null,null,null,null,null,null,null,null,null,null,null,null,null,null,null,null,null,null,null,null,null,null,null,null,null,null,null,null,null,null,null,null,null,null,null,null,null,null,null,null,null,null,null,null,null,null,null,null,null,null,null,null,null,null,null,null,null,null,null,null,null,null,null,null,null,null,null,null,null,null,null,null,null,151,4]
[null,null,null,null,null,null,null,null,null,null,null,null,null,null,null,null,null,null,null,null,null,null,null,null,null,null,null,null,null,null,null,null,null,null,null,null,null,null,null,null,null,null,null,null,null,null,null,null,null,null,null,null,null,null,null,null,null,null,null,null,null,null,null,null,null,null,null,null,null,null,null,null,null,null,null,null,null,null,null,null,null,null,null,null,null,null,null,null,null,null,null,null,null,null,null,null,null,null,null,null,null,null,null,null,null,null,null,null,null,null,null,null,null,null,null,null,null,null,null,null,null,null,null,null,null,null,null,null,null,null,null,null,null,null,null,null,null,null,null,null,null,null,null,null,null,null,null,null,null,null,null,null,null,null,null,null,null,null,null,null,null,null,null,null,null,null,null,null,null,null,null,null,null,null,null,null,null,null,null,null,null,null,null,null,null,null,null,null,null,null,null,null,null,null,null,null,null,null,null,null,null,null,null,null,null,null,null,null,null,null,null,null,null,null,null,null,null,null,null,null,null,null,null,null,null,null,null,null,null,null,null,null,null,null,null,null,null,null,null,null,null,null,null,null,null,null,null,null,null,null,null,null,null,null,null,null,null,null,null,null,null,null,null,null,null,null,null,null,null,null,null,null,null,null,null,null,null,null,null,null,null,null,null,null,null,null,null,null,null,null,null,null,null,null,null,null,null,null,null,null,null,null,null,null,null,null,null,null,null,152,95]
[null,null,null,null,null,null,null,null,null,null,null,null,null,null,null,null,null,null,null,null,null,null,null,null,null,null,null,null,null,null,null,null,null,null,null,null,null,null,null,null,null,null,null,null,null,null,null,null,null,null,null,null,null,null,null,null,null,null,null,null,null,null,null,null,null,null,null,null,null,null,null,null,null,null,null,null,null,null,null,null,null,null,null,null,null,null,null,null,null,null,null,null,null,null,null,null,null,null,null,null,null,null,null,null,null,null,null,null,null,null,null,null,null,null,null,null,null,null,null,null,null,null,null,null,null,null,null,null,null,null,null,null,null,null,null,null,null,null,null,null,null,null,null,null,null,null,null,null,null,null,null,null,null,null,null,null,null,null,null,null,null,null,null,null,null,null,null,null,null,null,null,null,null,null,null,null,null,null,null,null,null,null,null,null,null,null,null,null,null,null,null,null,null,null,null,null,null,null,null,null,null,null,null,null,null,null,null,null,null,null,null,null,null,null,null,null,null,null,null,null,null,null,null,null,null,null,null,null,null,null,null,null,null,null,null,null,null,null,null,null,null,null,null,null,null,null,null,null,null,null,null,null,null,null,null,null,null,null,null,null,null,null,null,null,null,null,null,null,null,null,null,null,null,null,null,null,null,null,null,null,null,null,null,null,null,null,null,null,null,null,null,null,null,null,null,null,null,null,null,null,null,null,null,null,null,null,null,null,null,153,6]
[null,null,null,null,null,null,null,null,null,null,null,null,null,null,null,null,null,null,null,null,null,null,null,null,null,null,null,null,null,null,null,null,null,null,null,null,null,null,null,null,null,null,null,null,null,null,null,null,null,null,null,null,null,null,null,null,null,null,null,null,null,null,null,null,null,null,null,null,null,null,null,null,null,null,null,null,null,null,null,null,null,null,null,null,null,null,null,null,null,null,null,null,null,null,null,null,null,null,null,null,null,null,null,null,null,null,null,null,null,null,null,null,null,null,null,null,null,null,null,null,null,null,null,null,null,null,null,null,null,null,null,null,null,null,null,null,null,null,null,null,null,null,null,null,null,null,null,null,null,null,null,null,null,null,null,null,null,null,null,null,null,null,null,null,null,null,null,null,null,null,null,null,null,null,null,null,null,null,null,null,null,null,null,null,null,null,null,null,null,null,null,null,null,null,null,null,null,null,null,null,null,null,null,null,null,null,null,null,null,null,null,null,null,null,null,null,null,null,null,null,null,null,null,null,null,null,null,null,null,null,null,null,null,null,null,null,null,null,null,null,null,null,null,null,null,null,null,null,null,null,null,null,null,null,null,null,null,null,null,null,null,null,null,null,null,null,null,null,null,null,null,null,null,null,null,null,null,null,null,null,null,null,null,null,null,null,null,null,null,null,null,null,null,null,null,null,null,null,null,null,null,null,null,null,null,null,null,null,null,154,20]
[null,null,null,null,null,null,null,null,null,null,null,null,null,null,null,null,null,null,null,null,null,null,null,null,null,null,null,null,null,null,null,null,null,null,null,null,null,null,null,null,null,null,null,null,null,null,null,null,null,null,null,null,null,null,null,null,null,null,null,null,null,null,null,null,null,null,null,null,null,null,null,null,null,null,null,null,null,null,null,null,null,null,null,null,null,null,null,null,null,null,null,null,null,null,null,null,null,null,null,null,null,null,null,null,null,null,null,null,null,null,null,null,null,null,null,null,null,null,null,null,null,null,null,null,null,null,null,null,null,null,null,null,null,null,null,null,null,null,null,null,null,null,null,null,null,null,null,null,null,null,null,null,null,null,null,null,null,null,null,null,null,null,null,null,null,null,null,null,null,null,null,null,null,null,null,null,null,null,null,null,null,null,null,null,null,null,null,null,null,null,null,null,null,null,null,null,null,null,null,null,null,null,null,null,null,null,null,null,null,null,null,null,null,null,null,null,null,null,null,null,null,null,null,null,null,null,null,null,null,null,null,null,null,null,null,null,null,null,null,null,null,null,null,null,null,null,null,null,null,null,null,null,null,null,null,null,null,null,null,null,null,null,null,null,null,null,null,null,null,null,null,null,null,null,null,null,null,null,null,null,null,null,null,null,null,null,null,null,null,null,null,null,null,null,null,null,null,null,null,null,null,null,null,null,null,null,null,null,null,155,6]
[null,null,null,null,null,null,null,null,null,null,null,null,null,null,null,null,null,null,null,null,null,null,null,null,null,null,null,null,null,null,null,null,null,null,null,null,null,null,null,null,null,null,null,null,null,null,null,null,null,null,null,null,null,null,null,null,null,null,null,null,null,null,null,null,null,null,null,null,null,null,null,null,null,null,null,null,null,null,null,null,null,null,null,null,null,null,null,null,null,null,null,null,null,null,null,null,null,null,null,null,null,null,null,null,null,null,null,null,null,null,null,null,null,null,null,null,null,null,null,null,null,null,null,null,null,null,null,null,null,null,null,null,null,null,null,null,null,null,null,null,null,null,null,null,null,null,null,null,null,null,null,null,null,null,null,null,null,null,null,null,null,null,null,null,null,null,null,null,null,null,null,null,null,null,null,null,null,null,null,null,null,null,null,null,null,null,null,null,null,null,null,null,null,null,null,null,null,null,null,null,null,null,null,null,null,null,null,null,null,null,null,null,null,null,null,null,null,null,null,null,null,null,null,null,null,null,null,null,null,null,null,null,null,null,null,null,null,null,null,null,null,null,null,null,null,null,null,null,null,null,null,null,null,null,null,null,null,null,null,null,null,null,null,null,null,null,null,null,null,null,null,null,null,null,null,null,null,null,null,null,null,null,null,null,null,null,null,null,null,null,null,null,null,null,null,null,null,null,null,null,null,null,null,null,null,null,null,null,null,156,3]
[null,null,null,null,null,null,null,null,null,null,null,null,null,null,null,null,null,null,null,null,null,null,null,null,null,null,null,null,null,null,null,null,null,null,null,null,null,null,null,null,null,null,null,null,null,null,null,null,null,null,null,null,null,null,null,null,null,null,null,null,null,null,null,null,null,null,null,null,null,null,null,null,null,null,null,null,null,null,null,null,null,null,null,null,null,null,null,null,null,null,null,null,null,null,null,null,null,null,null,null,null,null,null,null,null,null,null,null,null,null,null,null,null,null,null,null,null,null,null,null,null,null,null,null,null,null,null,null,null,null,null,null,null,null,null,null,null,null,null,null,null,null,null,null,null,null,null,null,null,null,null,null,null,null,null,null,null,null,null,null,null,null,null,null,null,null,null,null,null,null,null,null,null,null,null,null,null,null,null,null,null,null,null,null,null,null,null,null,null,null,null,null,null,null,null,null,null,null,null,null,null,null,null,null,null,null,null,null,null,null,null,null,null,null,null,null,null,null,null,null,null,null,null,null,null,null,null,null,null,null,null,null,null,null,null,null,null,null,null,null,null,null,null,null,null,null,null,null,null,null,null,null,null,null,null,null,null,null,null,null,null,null,null,null,null,null,null,null,null,null,null,null,null,null,null,null,null,null,null,null,null,null,null,null,null,null,null,null,null,null,null,null,null,null,null,null,null,null,null,null,null,null,null,null,null,null,null,null,null,157,60]
[null,null,null,null,null,null,null,null,null,null,null,null,null,null,null,null,null,null,null,null,null,null,null,null,null,null,null,null,null,null,null,null,null,null,null,null,null,null,null,null,null,null,null,null,null,null,null,null,null,null,null,null,null,null,null,null,null,null,null,null,null,null,null,null,null,null,null,null,null,null,null,null,null,null,null,null,null,null,null,null,null,null,null,null,null,null,null,null,null,null,null,null,null,null,null,null,null,null,null,null,null,null,null,null,null,null,null,null,null,null,null,null,null,null,null,null,null,null,null,null,null,null,null,null,null,null,null,null,null,null,null,null,null,null,null,null,null,null,null,null,null,null,null,null,null,null,null,null,null,null,null,null,null,null,null,null,null,null,null,null,null,null,null,null,null,null,null,null,null,null,null,null,null,null,null,null,null,null,null,null,null,null,null,null,null,null,null,null,null,null,null,null,null,null,null,null,null,null,null,null,null,null,null,null,null,null,null,null,null,null,null,null,null,null,null,null,null,null,null,null,null,null,null,null,null,null,null,null,null,null,null,null,null,null,null,null,null,null,null,null,null,null,null,null,null,null,null,null,null,null,null,null,null,null,null,null,null,null,null,null,null,null,null,null,null,null,null,null,null,null,null,null,null,null,null,null,null,null,null,null,null,null,null,null,null,null,null,null,null,null,null,null,null,null,null,null,null,null,null,null,null,null,null,null,null,null,null,null,null,158,37]
[null,null,null,null,null,null,null,null,null,null,null,null,null,null,null,null,null,null,null,null,null,null,null,null,null,null,null,null,null,null,null,null,null,null,null,null,null,null,null,null,null,null,null,null,null,null,null,null,null,null,null,null,null,null,null,null,null,null,null,null,null,null,null,null,null,null,null,null,null,null,null,null,null,null,null,null,null,null,null,null,null,null,null,null,null,null,null,null,null,null,null,null,null,null,null,null,null,null,null,null,null,null,null,null,null,null,null,null,null,null,null,null,null,null,null,null,null,null,null,null,null,null,null,null,null,null,null,null,null,null,null,null,null,null,null,null,null,null,null,null,null,null,null,null,null,null,null,null,null,null,null,null,null,null,null,null,null,null,null,null,null,null,null,null,null,null,null,null,null,null,null,null,null,null,null,null,null,null,null,null,null,null,null,null,null,null,null,null,null,null,null,null,null,null,null,null,null,null,null,null,null,null,null,null,null,null,null,null,null,null,null,null,null,null,null,null,null,null,null,null,null,null,null,null,null,null,null,null,null,null,null,null,null,null,null,null,null,null,null,null,null,null,null,null,null,null,null,null,null,null,null,null,null,null,null,null,null,null,null,null,null,null,null,null,null,null,null,null,null,null,null,null,null,null,null,null,null,null,null,null,null,null,null,null,null,null,null,null,null,null,null,null,null,null,null,null,null,null,null,null,null,null,null,null,null,null,null,null,null,159,98]
[null,null,null,null,null,null,null,null,null,null,null,null,null,null,null,null,null,null,null,null,null,null,null,null,null,null,null,null,null,null,null,null,null,null,null,null,null,null,null,null,null,null,null,null,null,null,null,null,null,null,null,null,null,null,null,null,null,null,null,null,null,null,null,null,null,null,null,null,null,null,null,null,null,null,null,null,null,null,null,null,null,null,null,null,null,null,null,null,null,null,null,null,null,null,null,null,null,null,null,null,null,null,null,null,null,null,null,null,null,null,null,null,null,null,null,null,null,null,null,null,null,null,null,null,null,null,null,null,null,null,null,null,null,null,null,null,null,null,null,null,null,null,null,null,null,null,null,null,null,null,null,null,null,null,null,null,null,null,null,null,null,null,null,null,null,null,null,null,null,null,null,null,null,null,null,null,null,null,null,null,null,null,null,null,null,null,null,null,null,null,null,null,null,null,null,null,null,null,null,null,null,null,null,null,null,null,null,null,null,null,null,null,null,null,null,null,null,null,null,null,null,null,null,null,null,null,null,null,null,null,null,null,null,null,null,null,null,null,null,null,null,null,null,null,null,null,null,null,null,null,null,null,null,null,null,null,null,null,null,null,null,null,null,null,null,null,null,null,null,null,null,null,null,null,null,null,null,null,null,null,null,null,null,null,null,null,null,null,null,null,null,null,null,null,null,null,null,null,null,null,null,null,null,null,null,null,null,null,null,160,3]
[null,null,null,null,null,null,null,null,null,null,null,null,null,null,null,null,null,null,null,null,null,null,null,null,null,null,null,null,null,null,null,null,null,null,null,null,null,null,null,null,null,null,null,null,null,null,null,null,null,null,null,null,null,null,null,null,null,null,null,null,null,null,null,null,null,null,null,null,null,null,null,null,null,null,null,null,null,null,null,null,null,null,null,null,null,null,null,null,null,null,null,null,null,null,null,null,null,null,null,null,null,null,null,null,null,null,null,null,null,null,null,null,null,null,null,null,null,null,null,null,null,null,null,null,null,null,null,null,null,null,null,null,null,null,null,null,null,null,null,null,null,null,null,null,null,null,null,null,null,null,null,null,null,null,null,null,null,null,null,null,null,null,null,null,null,null,null,null,null,null,null,null,null,null,null,null,null,null,null,null,null,null,null,null,null,null,null,null,null,null,null,null,null,null,null,null,null,null,null,null,null,null,null,null,null,null,null,null,null,null,null,null,null,null,null,null,null,null,null,null,null,null,null,null,null,null,null,null,null,null,null,null,null,null,null,null,null,null,null,null,null,null,null,null,null,null,null,null,null,null,null,null,null,null,null,null,null,null,null,null,null,null,null,null,null,null,null,null,null,null,null,null,null,null,null,null,null,null,null,null,null,null,null,null,null,null,null,null,null,null,null,null,null,null,null,null,null,null,null,null,null,null,null,null,null,null,null,null,null,161,20]
[null,null,null,null,null,null,null,null,null,null,null,null,null,null,null,null,null,null,null,null,null,null,null,null,null,null,null,null,null,null,null,null,null,null,null,null,null,null,null,null,null,null,null,null,null,null,null,null,null,null,null,null,null,null,null,null,null,null,null,null,null,null,null,null,null,null,null,null,null,null,null,null,null,null,null,null,null,null,null,null,null,null,null,null,null,null,null,null,null,null,null,null,null,null,null,null,null,null,null,null,null,null,null,null,null,null,null,null,null,null,null,null,null,null,null,null,null,null,null,null,null,null,null,null,null,null,null,null,null,null,null,null,null,null,null,null,null,null,null,null,null,null,null,null,null,null,null,null,null,null,null,null,null,null,null,null,null,null,null,null,null,null,null,null,null,null,null,null,null,null,null,null,null,null,null,null,null,null,null,null,null,null,null,null,null,null,null,null,null,null,null,null,null,null,null,null,null,null,null,null,null,null,null,null,null,null,null,null,null,null,null,null,null,null,null,null,null,null,null,null,null,null,null,null,null,null,null,null,null,null,null,null,null,null,null,null,null,null,null,null,null,null,null,null,null,null,null,null,null,null,null,null,null,null,null,null,null,null,null,null,null,null,null,null,null,null,null,null,null,null,null,null,null,null,null,null,null,null,null,null,null,null,null,null,null,null,null,null,null,null,null,null,null,null,null,null,null,null,null,null,null,null,null,null,null,null,null,null,null,162,2]
[null,null,null,null,null,null,null,null,null,null,null,null,null,null,null,null,null,null,null,null,null,null,null,null,null,null,null,null,null,null,null,null,null,null,null,null,null,null,null,null,null,null,null,null,null,null,null,null,null,null,null,null,null,null,null,null,null,null,null,null,null,null,null,null,null,null,null,null,null,null,null,null,null,null,null,null,null,null,null,null,null,null,null,null,null,null,null,null,null,null,null,null,null,null,null,null,null,null,null,null,null,null,null,null,null,null,null,null,null,null,null,null,null,null,null,null,null,null,null,null,null,null,null,null,null,null,null,null,null,null,null,null,null,null,null,null,null,null,null,null,null,null,null,null,null,null,null,null,null,null,null,null,null,null,null,null,null,null,null,null,null,null,null,null,null,null,null,null,null,null,null,null,null,null,null,null,null,null,null,null,null,null,null,null,null,null,null,null,null,null,null,null,null,null,null,null,null,null,null,null,null,null,null,null,null,null,null,null,null,null,null,null,null,null,null,null,null,null,null,null,null,null,null,null,null,null,null,null,null,null,null,null,null,null,null,null,null,null,null,null,null,null,null,null,null,null,null,null,null,null,null,null,null,null,null,null,null,null,null,null,null,null,null,null,null,null,null,null,null,null,null,null,null,null,null,null,null,null,null,null,null,null,null,null,null,null,null,null,null,null,null,null,null,null,null,null,null,null,null,null,null,null,null,null,null,null,null,null,null,163,26]
[null,null,null,null,null,null,null,null,null,null,null,null,null,null,null,null,null,null,null,null,null,null,null,null,null,null,null,null,null,null,null,null,null,null,null,null,null,null,null,null,null,null,null,null,null,null,null,null,null,null,null,null,null,null,null,null,null,null,null,null,null,null,null,null,null,null,null,null,null,null,null,null,null,null,null,null,null,null,null,null,null,null,null,null,null,null,null,null,null,null,null,null,null,null,null,null,null,null,null,null,null,null,null,null,null,null,null,null,null,null,null,null,null,null,null,null,null,null,null,null,null,null,null,null,null,null,null,null,null,null,null,null,null,null,null,null,null,null,null,null,null,null,null,null,null,null,null,null,null,null,null,null,null,null,null,null,null,null,null,null,null,null,null,null,null,null,null,null,null,null,null,null,null,null,null,null,null,null,null,null,null,null,null,null,null,null,null,null,null,null,null,null,null,null,null,null,null,null,null,null,null,null,null,null,null,null,null,null,null,null,null,null,null,null,null,null,null,null,null,null,null,null,null,null,null,null,null,null,null,null,null,null,null,null,null,null,null,null,null,null,null,null,null,null,null,null,null,null,null,null,null,null,null,null,null,null,null,null,null,null,null,null,null,null,null,null,null,null,null,null,null,null,null,null,null,null,null,null,null,null,null,null,null,null,null,null,null,null,null,null,null,null,null,null,null,null,null,null,null,null,null,null,null,null,null,null,null,null,null,164,88]
[null,null,null,null,null,null,null,null,null,null,null,null,null,null,null,null,null,null,null,null,null,null,null,null,null,null,null,null,null,null,null,null,null,null,null,null,null,null,null,null,null,null,null,null,null,null,null,null,null,null,null,null,null,null,null,null,null,null,null,null,null,null,null,null,null,null,null,null,null,null,null,null,null,null,null,null,null,null,null,null,null,null,null,null,null,null,null,null,null,null,null,null,null,null,null,null,null,null,null,null,null,null,null,null,null,null,null,null,null,null,null,null,null,null,null,null,null,null,null,null,null,null,null,null,null,null,null,null,null,null,null,null,null,null,null,null,null,null,null,null,null,null,null,null,null,null,null,null,null,null,null,null,null,null,null,null,null,null,null,null,null,null,null,null,null,null,null,null,null,null,null,null,null,null,null,null,null,null,null,null,null,null,null,null,null,null,null,null,null,null,null,null,null,null,null,null,null,null,null,null,null,null,null,null,null,null,null,null,null,null,null,null,null,null,null,null,null,null,null,null,null,null,null,null,null,null,null,null,null,null,null,null,null,null,null,null,null,null,null,null,null,null,null,null,null,null,null,null,null,null,null,null,null,null,null,null,null,null,null,null,null,null,null,null,null,null,null,null,null,null,null,null,null,null,null,null,null,null,null,null,null,null,null,null,null,null,null,null,null,null,null,null,null,null,null,null,null,null,null,null,null,null,null,null,null,null,null,null,null,165,3]
[null,null,null,null,null,null,null,null,null,null,null,null,null,null,null,null,null,null,null,null,null,null,null,null,null,null,null,null,null,null,null,null,null,null,null,null,null,null,null,null,null,null,null,null,null,null,null,null,null,null,null,null,null,null,null,null,null,null,null,null,null,null,null,null,null,null,null,null,null,null,null,null,null,null,null,null,null,null,null,null,null,null,null,null,null,null,null,null,null,null,null,null,null,null,null,null,null,null,null,null,null,null,null,null,null,null,null,null,null,null,null,null,null,null,null,null,null,null,null,null,null,null,null,null,null,null,null,null,null,null,null,null,null,null,null,null,null,null,null,null,null,null,null,null,null,null,null,null,null,null,null,null,null,null,null,null,null,null,null,null,null,null,null,null,null,null,null,null,null,null,null,null,null,null,null,null,null,null,null,null,null,null,null,null,null,null,null,null,null,null,null,null,null,null,null,null,null,null,null,null,null,null,null,null,null,null,null,null,null,null,null,null,null,null,null,null,null,null,null,null,null,null,null,null,null,null,null,null,null,null,null,null,null,null,null,null,null,null,null,null,null,null,null,null,null,null,null,null,null,null,null,null,null,null,null,null,null,null,null,null,null,null,null,null,null,null,null,null,null,null,null,null,null,null,null,null,null,null,null,null,null,null,null,null,null,null,null,null,null,null,null,null,null,null,null,null,null,null,null,null,null,null,null,null,null,null,null,null,null,166,3]
[null,null,null,null,null,null,null,null,null,null,null,null,null,null,null,null,null,null,null,null,null,null,null,null,null,null,null,null,null,null,null,null,null,null,null,null,null,null,null,null,null,null,null,null,null,null,null,null,null,null,null,null,null,null,null,null,null,null,null,null,null,null,null,null,null,null,null,null,null,null,null,null,null,null,null,null,null,null,null,null,null,null,null,null,null,null,null,null,null,null,null,null,null,null,null,null,null,null,null,null,null,null,null,null,null,null,null,null,null,null,null,null,null,null,null,null,null,null,null,null,null,null,null,null,null,null,null,null,null,null,null,null,null,null,null,null,null,null,null,null,null,null,null,null,null,null,null,null,null,null,null,null,null,null,null,null,null,null,null,null,null,null,null,null,null,null,null,null,null,null,null,null,null,null,null,null,null,null,null,null,null,null,null,null,null,null,null,null,null,null,null,null,null,null,null,null,null,null,null,null,null,null,null,null,null,null,null,null,null,null,null,null,null,null,null,null,null,null,null,null,null,null,null,null,null,null,null,null,null,null,null,null,null,null,null,null,null,null,null,null,null,null,null,null,null,null,null,null,null,null,null,null,null,null,null,null,null,null,null,null,null,null,null,null,null,null,null,null,null,null,null,null,null,null,null,null,null,null,null,null,null,null,null,null,null,null,null,null,null,null,null,null,null,null,null,null,null,null,null,null,null,null,null,null,null,null,null,null,null,167,21]
[null,null,null,null,null,null,null,null,null,null,null,null,null,null,null,null,null,null,null,null,null,null,null,null,null,null,null,null,null,null,null,null,null,null,null,null,null,null,null,null,null,null,null,null,null,null,null,null,null,null,null,null,null,null,null,null,null,null,null,null,null,null,null,null,null,null,null,null,null,null,null,null,null,null,null,null,null,null,null,null,null,null,null,null,null,null,null,null,null,null,null,null,null,null,null,null,null,null,null,null,null,null,null,null,null,null,null,null,null,null,null,null,null,null,null,null,null,null,null,null,null,null,null,null,null,null,null,null,null,null,null,null,null,null,null,null,null,null,null,null,null,null,null,null,null,null,null,null,null,null,null,null,null,null,null,null,null,null,null,null,null,null,null,null,null,null,null,null,null,null,null,null,null,null,null,null,null,null,null,null,null,null,null,null,null,null,null,null,null,null,null,null,null,null,null,null,null,null,null,null,null,null,null,null,null,null,null,null,null,null,null,null,null,null,null,null,null,null,null,null,null,null,null,null,null,null,null,null,null,null,null,null,null,null,null,null,null,null,null,null,null,null,null,null,null,null,null,null,null,null,null,null,null,null,null,null,null,null,null,null,null,null,null,null,null,null,null,null,null,null,null,null,null,null,null,null,null,null,null,null,null,null,null,null,null,null,null,null,null,null,null,null,null,null,null,null,null,null,null,null,null,null,null,null,null,null,null,null,null,168,14]
[null,null,null,null,null,null,null,null,null,null,null,null,null,null,null,null,null,null,null,null,null,null,null,null,null,null,null,null,null,null,null,null,null,null,null,null,null,null,null,null,null,null,null,null,null,null,null,null,null,null,null,null,null,null,null,null,null,null,null,null,null,null,null,null,null,null,null,null,null,null,null,null,null,null,null,null,null,null,null,null,null,null,null,null,null,null,null,null,null,null,null,null,null,null,null,null,null,null,null,null,null,null,null,null,null,null,null,null,null,null,null,null,null,null,null,null,null,null,null,null,null,null,null,null,null,null,null,null,null,null,null,null,null,null,null,null,null,null,null,null,null,null,null,null,null,null,null,null,null,null,null,null,null,null,null,null,null,null,null,null,null,null,null,null,null,null,null,null,null,null,null,null,null,null,null,null,null,null,null,null,null,null,null,null,null,null,null,null,null,null,null,null,null,null,null,null,null,null,null,null,null,null,null,null,null,null,null,null,null,null,null,null,null,null,null,null,null,null,null,null,null,null,null,null,null,null,null,null,null,null,null,null,null,null,null,null,null,null,null,null,null,null,null,null,null,null,null,null,null,null,null,null,null,null,null,null,null,null,null,null,null,null,null,null,null,null,null,null,null,null,null,null,null,null,null,null,null,null,null,null,null,null,null,null,null,null,null,null,null,null,null,null,null,null,null,null,null,null,null,null,null,null,null,null,null,null,null,null,null,169,56]
[null,null,null,null,null,null,null,null,null,null,null,null,null,null,null,null,null,null,null,null,null,null,null,null,null,null,null,null,null,null,null,null,null,null,null,null,null,null,null,null,null,null,null,null,null,null,null,null,null,null,null,null,null,null,null,null,null,null,null,null,null,null,null,null,null,null,null,null,null,null,null,null,null,null,null,null,null,null,null,null,null,null,null,null,null,null,null,null,null,null,null,null,null,null,null,null,null,null,null,null,null,null,null,null,null,null,null,null,null,null,null,null,null,null,null,null,null,null,null,null,null,null,null,null,null,null,null,null,null,null,null,null,null,null,null,null,null,null,null,null,null,null,null,null,null,null,null,null,null,null,null,null,null,null,null,null,null,null,null,null,null,null,null,null,null,null,null,null,null,null,null,null,null,null,null,null,null,null,null,null,null,null,null,null,null,null,null,null,null,null,null,null,null,null,null,null,null,null,null,null,null,null,null,null,null,null,null,null,null,null,null,null,null,null,null,null,null,null,null,null,null,null,null,null,null,null,null,null,null,null,null,null,null,null,null,null,null,null,null,null,null,null,null,null,null,null,null,null,null,null,null,null,null,null,null,null,null,null,null,null,null,null,null,null,null,null,null,null,null,null,null,null,null,null,null,null,null,null,null,null,null,null,null,null,null,null,null,null,null,null,null,null,null,null,null,null,null,null,null,null,null,null,null,null,null,null,null,null,null,170,7]
[null,null,null,null,null,null,null,null,null,null,null,null,null,null,null,null,null,null,null,null,null,null,null,null,null,null,null,null,null,null,null,null,null,null,null,null,null,null,null,null,null,null,null,null,null,null,null,null,null,null,null,null,null,null,null,null,null,null,null,null,null,null,null,null,null,null,null,null,null,null,null,null,null,null,null,null,null,null,null,null,null,null,null,null,null,null,null,null,null,null,null,null,null,null,null,null,null,null,null,null,null,null,null,null,null,null,null,null,null,null,null,null,null,null,null,null,null,null,null,null,null,null,null,null,null,null,null,null,null,null,null,null,null,null,null,null,null,null,null,null,null,null,null,null,null,null,null,null,null,null,null,null,null,null,null,null,null,null,null,null,null,null,null,null,null,null,null,null,null,null,null,null,null,null,null,null,null,null,null,null,null,null,null,null,null,null,null,null,null,null,null,null,null,null,null,null,null,null,null,null,null,null,null,null,null,null,null,null,null,null,null,null,null,null,null,null,null,null,null,null,null,null,null,null,null,null,null,null,null,null,null,null,null,null,null,null,null,null,null,null,null,null,null,null,null,null,null,null,null,null,null,null,null,null,null,null,null,null,null,null,null,null,null,null,null,null,null,null,null,null,null,null,null,null,null,null,null,null,null,null,null,null,null,null,null,null,null,null,null,null,null,null,null,null,null,null,null,null,null,null,null,null,null,null,null,null,null,null,null,171,29]
[null,null,null,null,null,null,null,null,null,null,null,null,null,null,null,null,null,null,null,null,null,null,null,null,null,null,null,null,null,null,null,null,null,null,null,null,null,null,null,null,null,null,null,null,null,null,null,null,null,null,null,null,null,null,null,null,null,null,null,null,null,null,null,null,null,null,null,null,null,null,null,null,null,null,null,null,null,null,null,null,null,null,null,null,null,null,null,null,null,null,null,null,null,null,null,null,null,null,null,null,null,null,null,null,null,null,null,null,null,null,null,null,null,null,null,null,null,null,null,null,null,null,null,null,null,null,null,null,null,null,null,null,null,null,null,null,null,null,null,null,null,null,null,null,null,null,null,null,null,null,null,null,null,null,null,null,null,null,null,null,null,null,null,null,null,null,null,null,null,null,null,null,null,null,null,null,null,null,null,null,null,null,null,null,null,null,null,null,null,null,null,null,null,null,null,null,null,null,null,null,null,null,null,null,null,null,null,null,null,null,null,null,null,null,null,null,null,null,null,null,null,null,null,null,null,null,null,null,null,null,null,null,null,null,null,null,null,null,null,null,null,null,null,null,null,null,null,null,null,null,null,null,null,null,null,null,null,null,null,null,null,null,null,null,null,null,null,null,null,null,null,null,null,null,null,null,null,null,null,null,null,null,null,null,null,null,null,null,null,null,null,null,null,null,null,null,null,null,null,null,null,null,null,null,null,null,null,null,null,172,5]
[null,null,null,null,null,null,null,null,null,null,null,null,null,null,null,null,null,null,null,null,null,null,null,null,null,null,null,null,null,null,null,null,null,null,null,null,null,null,null,null,null,null,null,null,null,null,null,null,null,null,null,null,null,null,null,null,null,null,null,null,null,null,null,null,null,null,null,null,null,null,null,null,null,null,null,null,null,null,null,null,null,null,null,null,null,null,null,null,null,null,null,null,null,null,null,null,null,null,null,null,null,null,null,null,null,null,null,null,null,null,null,null,null,null,null,null,null,null,null,null,null,null,null,null,null,null,null,null,null,null,null,null,null,null,null,null,null,null,null,null,null,null,null,null,null,null,null,null,null,null,null,null,null,null,null,null,null,null,null,null,null,null,null,null,null,null,null,null,null,null,null,null,null,null,null,null,null,null,null,null,null,null,null,null,null,null,null,null,null,null,null,null,null,null,null,null,null,null,null,null,null,null,null,null,null,null,null,null,null,null,null,null,null,null,null,null,null,null,null,null,null,null,null,null,null,null,null,null,null,null,null,null,null,null,null,null,null,null,null,null,null,null,null,null,null,null,null,null,null,null,null,null,null,null,null,null,null,null,null,null,null,null,null,null,null,null,null,null,null,null,null,null,null,null,null,null,null,null,null,null,null,null,null,null,null,null,null,null,null,null,null,null,null,null,null,null,null,null,null,null,null,null,null,null,null,null,null,null,null,173,79]
[null,null,null,null,null,null,null,null,null,null,null,null,null,null,null,null,null,null,null,null,null,null,null,null,null,null,null,null,null,null,null,null,null,null,null,null,null,null,null,null,null,null,null,null,null,null,null,null,null,null,null,null,null,null,null,null,null,null,null,null,null,null,null,null,null,null,null,null,null,null,null,null,null,null,null,null,null,null,null,null,null,null,null,null,null,null,null,null,null,null,null,null,null,null,null,null,null,null,null,null,null,null,null,null,null,null,null,null,null,null,null,null,null,null,null,null,null,null,null,null,null,null,null,null,null,null,null,null,null,null,null,null,null,null,null,null,null,null,null,null,null,null,null,null,null,null,null,null,null,null,null,null,null,null,null,null,null,null,null,null,null,null,null,null,null,null,null,null,null,null,null,null,null,null,null,null,null,null,null,null,null,null,null,null,null,null,null,null,null,null,null,null,null,null,null,null,null,null,null,null,null,null,null,null,null,null,null,null,null,null,null,null,null,null,null,null,null,null,null,null,null,null,null,null,null,null,null,null,null,null,null,null,null,null,null,null,null,null,null,null,null,null,null,null,null,null,null,null,null,null,null,null,null,null,null,null,null,null,null,null,null,null,null,null,null,null,null,null,null,null,null,null,null,null,null,null,null,null,null,null,null,null,null,null,null,null,null,null,null,null,null,null,null,null,null,null,null,null,null,null,null,null,null,null,null,null,null,null,null,174,33]
[null,null,null,null,null,null,null,null,null,null,null,null,null,null,null,null,null,null,null,null,null,null,null,null,null,null,null,null,null,null,null,null,null,null,null,null,null,null,null,null,null,null,null,null,null,null,null,null,null,null,null,null,null,null,null,null,null,null,null,null,null,null,null,null,null,null,null,null,null,null,null,null,null,null,null,null,null,null,null,null,null,null,null,null,null,null,null,null,null,null,null,null,null,null,null,null,null,null,null,null,null,null,null,null,null,null,null,null,null,null,null,null,null,null,null,null,null,null,null,null,null,null,null,null,null,null,null,null,null,null,null,null,null,null,null,null,null,null,null,null,null,null,null,null,null,null,null,null,null,null,null,null,null,null,null,null,null,null,null,null,null,null,null,null,null,null,null,null,null,null,null,null,null,null,null,null,null,null,null,null,null,null,null,null,null,null,null,null,null,null,null,null,null,null,null,null,null,null,null,null,null,null,null,null,null,null,null,null,null,null,null,null,null,null,null,null,null,null,null,null,null,null,null,null,null,null,null,null,null,null,null,null,null,null,null,null,null,null,null,null,null,null,null,null,null,null,null,null,null,null,null,null,null,null,null,null,null,null,null,null,null,null,null,null,null,null,null,null,null,null,null,null,null,null,null,null,null,null,null,null,null,null,null,null,null,null,null,null,null,null,null,null,null,null,null,null,null,null,null,null,null,null,null,null,null,null,null,null,null,175,19]
[null,null,null,null,null,null,null,null,null,null,null,null,null,null,null,null,null,null,null,null,null,null,null,null,null,null,null,null,null,null,null,null,null,null,null,null,null,null,null,null,null,null,null,null,null,null,null,null,null,null,null,null,null,null,null,null,null,null,null,null,null,null,null,null,null,null,null,null,null,null,null,null,null,null,null,null,null,null,null,null,null,null,null,null,null,null,null,null,null,null,null,null,null,null,null,null,null,null,null,null,null,null,null,null,null,null,null,null,null,null,null,null,null,null,null,null,null,null,null,null,null,null,null,null,null,null,null,null,null,null,null,null,null,null,null,null,null,null,null,null,null,null,null,null,null,null,null,null,null,null,null,null,null,null,null,null,null,null,null,null,null,null,null,null,null,null,null,null,null,null,null,null,null,null,null,null,null,null,null,null,null,null,null,null,null,null,null,null,null,null,null,null,null,null,null,null,null,null,null,null,null,null,null,null,null,null,null,null,null,null,null,null,null,null,null,null,null,null,null,null,null,null,null,null,null,null,null,null,null,null,null,null,null,null,null,null,null,null,null,null,null,null,null,null,null,null,null,null,null,null,null,null,null,null,null,null,null,null,null,null,null,null,null,null,null,null,null,null,null,null,null,null,null,null,null,null,null,null,null,null,null,null,null,null,null,null,null,null,null,null,null,null,null,null,null,null,null,null,null,null,null,null,null,null,null,null,null,null,null,176,44]
[null,null,null,null,null,null,null,null,null,null,null,null,null,null,null,null,null,null,null,null,null,null,null,null,null,null,null,null,null,null,null,null,null,null,null,null,null,null,null,null,null,null,null,null,null,null,null,null,null,null,null,null,null,null,null,null,null,null,null,null,null,null,null,null,null,null,null,null,null,null,null,null,null,null,null,null,null,null,null,null,null,null,null,null,null,null,null,null,null,null,null,null,null,null,null,null,null,null,null,null,null,null,null,null,null,null,null,null,null,null,null,null,null,null,null,null,null,null,null,null,null,null,null,null,null,null,null,null,null,null,null,null,null,null,null,null,null,null,null,null,null,null,null,null,null,null,null,null,null,null,null,null,null,null,null,null,null,null,null,null,null,null,null,null,null,null,null,null,null,null,null,null,null,null,null,null,null,null,null,null,null,null,null,null,null,null,null,null,null,null,null,null,null,null,null,null,null,null,null,null,null,null,null,null,null,null,null,null,null,null,null,null,null,null,null,null,null,null,null,null,null,null,null,null,null,null,null,null,null,null,null,null,null,null,null,null,null,null,null,null,null,null,null,null,null,null,null,null,null,null,null,null,null,null,null,null,null,null,null,null,null,null,null,null,null,null,null,null,null,null,null,null,null,null,null,null,null,null,null,null,null,null,null,null,null,null,null,null,null,null,null,null,null,null,null,null,null,null,null,null,null,null,null,null,null,null,null,null,null,177,70]
[null,null,null,null,null,null,null,null,null,null,null,null,null,null,null,null,null,null,null,null,null,null,null,null,null,null,null,null,null,null,null,null,null,null,null,null,null,null,null,null,null,null,null,null,null,null,null,null,null,null,null,null,null,null,null,null,null,null,null,null,null,null,null,null,null,null,null,null,null,null,null,null,null,null,null,null,null,null,null,null,null,null,null,null,null,null,null,null,null,null,null,null,null,null,null,null,null,null,null,null,null,null,null,null,null,null,null,null,null,null,null,null,null,null,null,null,null,null,null,null,null,null,null,null,null,null,null,null,null,null,null,null,null,null,null,null,null,null,null,null,null,null,null,null,null,null,null,null,null,null,null,null,null,null,null,null,null,null,null,null,null,null,null,null,null,null,null,null,null,null,null,null,null,null,null,null,null,null,null,null,null,null,null,null,null,null,null,null,null,null,null,null,null,null,null,null,null,null,null,null,null,null,null,null,null,null,null,null,null,null,null,null,null,null,null,null,null,null,null,null,null,null,null,null,null,null,null,null,null,null,null,null,null,null,null,null,null,null,null,null,null,null,null,null,null,null,null,null,null,null,null,null,null,null,null,null,null,null,null,null,null,null,null,null,null,null,null,null,null,null,null,null,null,null,null,null,null,null,null,null,null,null,null,null,null,null,null,null,null,null,null,null,null,null,null,null,null,null,null,null,null,null,null,null,null,null,null,null,null,178,34]
[null,null,null,null,null,null,null,null,null,null,null,null,null,null,null,null,null,null,null,null,null,null,null,null,null,null,null,null,null,null,null,null,null,null,null,null,null,null,null,null,null,null,null,null,null,null,null,null,null,null,null,null,null,null,null,null,null,null,null,null,null,null,null,null,null,null,null,null,null,null,null,null,null,null,null,null,null,null,null,null,null,null,null,null,null,null,null,null,null,null,null,null,null,null,null,null,null,null,null,null,null,null,null,null,null,null,null,null,null,null,null,null,null,null,null,null,null,null,null,null,null,null,null,null,null,null,null,null,null,null,null,null,null,null,null,null,null,null,null,null,null,null,null,null,null,null,null,null,null,null,null,null,null,null,null,null,null,null,null,null,null,null,null,null,null,null,null,null,null,null,null,null,null,null,null,null,null,null,null,null,null,null,null,null,null,null,null,null,null,null,null,null,null,null,null,null,null,null,null,null,null,null,null,null,null,null,null,null,null,null,null,null,null,null,null,null,null,null,null,null,null,null,null,null,null,null,null,null,null,null,null,null,null,null,null,null,null,null,null,null,null,null,null,null,null,null,null,null,null,null,null,null,null,null,null,null,null,null,null,null,null,null,null,null,null,null,null,null,null,null,null,null,null,null,null,null,null,null,null,null,null,null,null,null,null,null,null,null,null,null,null,null,null,null,null,null,null,null,null,null,null,null,null,null,null,null,null,null,null,179,39]
[null,null,null,null,null,null,null,null,null,null,null,null,null,null,null,null,null,null,null,null,null,null,null,null,null,null,null,null,null,null,null,null,null,null,null,null,null,null,null,null,null,null,null,null,null,null,null,null,null,null,null,null,null,null,null,null,null,null,null,null,null,null,null,null,null,null,null,null,null,null,null,null,null,null,null,null,null,null,null,null,null,null,null,null,null,null,null,null,null,null,null,null,null,null,null,null,null,null,null,null,null,null,null,null,null,null,null,null,null,null,null,null,null,null,null,null,null,null,null,null,null,null,null,null,null,null,null,null,null,null,null,null,null,null,null,null,null,null,null,null,null,null,null,null,null,null,null,null,null,null,null,null,null,null,null,null,null,null,null,null,null,null,null,null,null,null,null,null,null,null,null,null,null,null,null,null,null,null,null,null,null,null,null,null,null,null,null,null,null,null,null,null,null,null,null,null,null,null,null,null,null,null,null,null,null,null,null,null,null,null,null,null,null,null,null,null,null,null,null,null,null,null,null,null,null,null,null,null,null,null,null,null,null,null,null,null,null,null,null,null,null,null,null,null,null,null,null,null,null,null,null,null,null,null,null,null,null,null,null,null,null,null,null,null,null,null,null,null,null,null,null,null,null,null,null,null,null,null,null,null,null,null,null,null,null,null,null,null,null,null,null,null,null,null,null,null,null,null,null,null,null,null,null,null,null,null,null,null,null,180,83]
[null,null,null,null,null,null,null,null,null,null,null,null,null,null,null,null,null,null,null,null,null,null,null,null,null,null,null,null,null,null,null,null,null,null,null,null,null,null,null,null,null,null,null,null,null,null,null,null,null,null,null,null,null,null,null,null,null,null,null,null,null,null,null,null,null,null,null,null,null,null,null,null,null,null,null,null,null,null,null,null,null,null,null,null,null,null,null,null,null,null,null,null,null,null,null,null,null,null,null,null,null,null,null,null,null,null,null,null,null,null,null,null,null,null,null,null,null,null,null,null,null,null,null,null,null,null,null,null,null,null,null,null,null,null,null,null,null,null,null,null,null,null,null,null,null,null,null,null,null,null,null,null,null,null,null,null,null,null,null,null,null,null,null,null,null,null,null,null,null,null,null,null,null,null,null,null,null,null,null,null,null,null,null,null,null,null,null,null,null,null,null,null,null,null,null,null,null,null,null,null,null,null,null,null,null,null,null,null,null,null,null,null,null,null,null,null,null,null,null,null,null,null,null,null,null,null,null,null,null,null,null,null,null,null,null,null,null,null,null,null,null,null,null,null,null,null,null,null,null,null,null,null,null,null,null,null,null,null,null,null,null,null,null,null,null,null,null,null,null,null,null,null,null,null,null,null,null,null,null,null,null,null,null,null,null,null,null,null,null,null,null,null,null,null,null,null,null,null,null,null,null,null,null,null,null,null,null,null,null,181,112]
[null,null,null,null,null,null,null,null,null,null,null,null,null,null,null,null,null,null,null,null,null,null,null,null,null,null,null,null,null,null,null,null,null,null,null,null,null,null,null,null,null,null,null,null,null,null,null,null,null,null,null,null,null,null,null,null,null,null,null,null,null,null,null,null,null,null,null,null,null,null,null,null,null,null,null,null,null,null,null,null,null,null,null,null,null,null,null,null,null,null,null,null,null,null,null,null,null,null,null,null,null,null,null,null,null,null,null,null,null,null,null,null,null,null,null,null,null,null,null,null,null,null,null,null,null,null,null,null,null,null,null,null,null,null,null,null,null,null,null,null,null,null,null,null,null,null,null,null,null,null,null,null,null,null,null,null,null,null,null,null,null,null,null,null,null,null,null,null,null,null,null,null,null,null,null,null,null,null,null,null,null,null,null,null,null,null,null,null,null,null,null,null,null,null,null,null,null,null,null,null,null,null,null,null,null,null,null,null,null,null,null,null,null,null,null,null,null,null,null,null,null,null,null,null,null,null,null,null,null,null,null,null,null,null,null,null,null,null,null,null,null,null,null,null,null,null,null,null,null,null,null,null,null,null,null,null,null,null,null,null,null,null,null,null,null,null,null,null,null,null,null,null,null,null,null,null,null,null,null,null,null,null,null,null,null,null,null,null,null,null,null,null,null,null,null,null,null,null,null,null,null,null,null,null,null,null,null,null,null,182,3]
[null,null,null,null,null,null,null,null,null,null,null,null,null,null,null,null,null,null,null,null,null,null,null,null,null,null,null,null,null,null,null,null,null,null,null,null,null,null,null,null,null,null,null,null,null,null,null,null,null,null,null,null,null,null,null,null,null,null,null,null,null,null,null,null,null,null,null,null,null,null,null,null,null,null,null,null,null,null,null,null,null,null,null,null,null,null,null,null,null,null,null,null,null,null,null,null,null,null,null,null,null,null,null,null,null,null,null,null,null,null,null,null,null,null,null,null,null,null,null,null,null,null,null,null,null,null,null,null,null,null,null,null,null,null,null,null,null,null,null,null,null,null,null,null,null,null,null,null,null,null,null,null,null,null,null,null,null,null,null,null,null,null,null,null,null,null,null,null,null,null,null,null,null,null,null,null,null,null,null,null,null,null,null,null,null,null,null,null,null,null,null,null,null,null,null,null,null,null,null,null,null,null,null,null,null,null,null,null,null,null,null,null,null,null,null,null,null,null,null,null,null,null,null,null,null,null,null,null,null,null,null,null,null,null,null,null,null,null,null,null,null,null,null,null,null,null,null,null,null,null,null,null,null,null,null,null,null,null,null,null,null,null,null,null,null,null,null,null,null,null,null,null,null,null,null,null,null,null,null,null,null,null,null,null,null,null,null,null,null,null,null,null,null,null,null,null,null,null,null,null,null,null,null,null,null,null,null,null,null,183,68]
[null,null,null,null,null,null,null,null,null,null,null,null,null,null,null,null,null,null,null,null,null,null,null,null,null,null,null,null,null,null,null,null,null,null,null,null,null,null,null,null,null,null,null,null,null,null,null,null,null,null,null,null,null,null,null,null,null,null,null,null,null,null,null,null,null,null,null,null,null,null,null,null,null,null,null,null,null,null,null,null,null,null,null,null,null,null,null,null,null,null,null,null,null,null,null,null,null,null,null,null,null,null,null,null,null,null,null,null,null,null,null,null,null,null,null,null,null,null,null,null,null,null,null,null,null,null,null,null,null,null,null,null,null,null,null,null,null,null,null,null,null,null,null,null,null,null,null,null,null,null,null,null,null,null,null,null,null,null,null,null,null,null,null,null,null,null,null,null,null,null,null,null,null,null,null,null,null,null,null,null,null,null,null,null,null,null,null,null,null,null,null,null,null,null,null,null,null,null,null,null,null,null,null,null,null,null,null,null,null,null,null,null,null,null,null,null,null,null,null,null,null,null,null,null,null,null,null,null,null,null,null,null,null,null,null,null,null,null,null,null,null,null,null,null,null,null,null,null,null,null,null,null,null,null,null,null,null,null,null,null,null,null,null,null,null,null,null,null,null,null,null,null,null,null,null,null,null,null,null,null,null,null,null,null,null,null,null,null,null,null,null,null,null,null,null,null,null,null,null,null,null,null,null,null,null,null,null,null,null,184,21]
[null,null,null,null,null,null,null,null,null,null,null,null,null,null,null,null,null,null,null,null,null,null,null,null,null,null,null,null,null,null,null,null,null,null,null,null,null,null,null,null,null,null,null,null,null,null,null,null,null,null,null,null,null,null,null,null,null,null,null,null,null,null,null,null,null,null,null,null,null,null,null,null,null,null,null,null,null,null,null,null,null,null,null,null,null,null,null,null,null,null,null,null,null,null,null,null,null,null,null,null,null,null,null,null,null,null,null,null,null,null,null,null,null,null,null,null,null,null,null,null,null,null,null,null,null,null,null,null,null,null,null,null,null,null,null,null,null,null,null,null,null,null,null,null,null,null,null,null,null,null,null,null,null,null,null,null,null,null,null,null,null,null,null,null,null,null,null,null,null,null,null,null,null,null,null,null,null,null,null,null,null,null,null,null,null,null,null,null,null,null,null,null,null,null,null,null,null,null,null,null,null,null,null,null,null,null,null,null,null,null,null,null,null,null,null,null,null,null,null,null,null,null,null,null,null,null,null,null,null,null,null,null,null,null,null,null,null,null,null,null,null,null,null,null,null,null,null,null,null,null,null,null,null,null,null,null,null,null,null,null,null,null,null,null,null,null,null,null,null,null,null,null,null,null,null,null,null,null,null,null,null,null,null,null,null,null,null,null,null,null,null,null,null,null,null,null,null,null,null,null,null,null,null,null,null,null,null,null,null,185,96]
[null,null,null,null,null,null,null,null,null,null,null,null,null,null,null,null,null,null,null,null,null,null,null,null,null,null,null,null,null,null,null,null,null,null,null,null,null,null,null,null,null,null,null,null,null,null,null,null,null,null,null,null,null,null,null,null,null,null,null,null,null,null,null,null,null,null,null,null,null,null,null,null,null,null,null,null,null,null,null,null,null,null,null,null,null,null,null,null,null,null,null,null,null,null,null,null,null,null,null,null,null,null,null,null,null,null,null,null,null,null,null,null,null,null,null,null,null,null,null,null,null,null,null,null,null,null,null,null,null,null,null,null,null,null,null,null,null,null,null,null,null,null,null,null,null,null,null,null,null,null,null,null,null,null,null,null,null,null,null,null,null,null,null,null,null,null,null,null,null,null,null,null,null,null,null,null,null,null,null,null,null,null,null,null,null,null,null,null,null,null,null,null,null,null,null,null,null,null,null,null,null,null,null,null,null,null,null,null,null,null,null,null,null,null,null,null,null,null,null,null,null,null,null,null,null,null,null,null,null,null,null,null,null,null,null,null,null,null,null,null,null,null,null,null,null,null,null,null,null,null,null,null,null,null,null,null,null,null,null,null,null,null,null,null,null,null,null,null,null,null,null,null,null,null,null,null,null,null,null,null,null,null,null,null,null,null,null,null,null,null,null,null,null,null,null,null,null,null,null,null,null,null,null,null,null,null,null,null,null,186,7]
[null,null,null,null,null,null,null,null,null,null,null,null,null,null,null,null,null,null,null,null,null,null,null,null,null,null,null,null,null,null,null,null,null,null,null,null,null,null,null,null,null,null,null,null,null,null,null,null,null,null,null,null,null,null,null,null,null,null,null,null,null,null,null,null,null,null,null,null,null,null,null,null,null,null,null,null,null,null,null,null,null,null,null,null,null,null,null,null,null,null,null,null,null,null,null,null,null,null,null,null,null,null,null,null,null,null,null,null,null,null,null,null,null,null,null,null,null,null,null,null,null,null,null,null,null,null,null,null,null,null,null,null,null,null,null,null,null,null,null,null,null,null,null,null,null,null,null,null,null,null,null,null,null,null,null,null,null,null,null,null,null,null,null,null,null,null,null,null,null,null,null,null,null,null,null,null,null,null,null,null,null,null,null,null,null,null,null,null,null,null,null,null,null,null,null,null,null,null,null,null,null,null,null,null,null,null,null,null,null,null,null,null,null,null,null,null,null,null,null,null,null,null,null,null,null,null,null,null,null,null,null,null,null,null,null,null,null,null,null,null,null,null,null,null,null,null,null,null,null,null,null,null,null,null,null,null,null,null,null,null,null,null,null,null,null,null,null,null,null,null,null,null,null,null,null,null,null,null,null,null,null,null,null,null,null,null,null,null,null,null,null,null,null,null,null,null,null,null,null,null,null,null,null,null,null,null,null,null,null,187,11]
[null,null,null,null,null,null,null,null,null,null,null,null,null,null,null,null,null,null,null,null,null,null,null,null,null,null,null,null,null,null,null,null,null,null,null,null,null,null,null,null,null,null,null,null,null,null,null,null,null,null,null,null,null,null,null,null,null,null,null,null,null,null,null,null,null,null,null,null,null,null,null,null,null,null,null,null,null,null,null,null,null,null,null,null,null,null,null,null,null,null,null,null,null,null,null,null,null,null,null,null,null,null,null,null,null,null,null,null,null,null,null,null,null,null,null,null,null,null,null,null,null,null,null,null,null,null,null,null,null,null,null,null,null,null,null,null,null,null,null,null,null,null,null,null,null,null,null,null,null,null,null,null,null,null,null,null,null,null,null,null,null,null,null,null,null,null,null,null,null,null,null,null,null,null,null,null,null,null,null,null,null,null,null,null,null,null,null,null,null,null,null,null,null,null,null,null,null,null,null,null,null,null,null,null,null,null,null,null,null,null,null,null,null,null,null,null,null,null,null,null,null,null,null,null,null,null,null,null,null,null,null,null,null,null,null,null,null,null,null,null,null,null,null,null,null,null,null,null,null,null,null,null,null,null,null,null,null,null,null,null,null,null,null,null,null,null,null,null,null,null,null,null,null,null,null,null,null,null,null,null,null,null,null,null,null,null,null,null,null,null,null,null,null,null,null,null,null,null,null,null,null,null,null,null,null,null,null,null,null,188,88]
[null,null,null,null,null,null,null,null,null,null,null,null,null,null,null,null,null,null,null,null,null,null,null,null,null,null,null,null,null,null,null,null,null,null,null,null,null,null,null,null,null,null,null,null,null,null,null,null,null,null,null,null,null,null,null,null,null,null,null,null,null,null,null,null,null,null,null,null,null,null,null,null,null,null,null,null,null,null,null,null,null,null,null,null,null,null,null,null,null,null,null,null,null,null,null,null,null,null,null,null,null,null,null,null,null,null,null,null,null,null,null,null,null,null,null,null,null,null,null,null,null,null,null,null,null,null,null,null,null,null,null,null,null,null,null,null,null,null,null,null,null,null,null,null,null,null,null,null,null,null,null,null,null,null,null,null,null,null,null,null,null,null,null,null,null,null,null,null,null,null,null,null,null,null,null,null,null,null,null,null,null,null,null,null,null,null,null,null,null,null,null,null,null,null,null,null,null,null,null,null,null,null,null,null,null,null,null,null,null,null,null,null,null,null,null,null,null,null,null,null,null,null,null,null,null,null,null,null,null,null,null,null,null,null,null,null,null,null,null,null,null,null,null,null,null,null,null,null,null,null,null,null,null,null,null,null,null,null,null,null,null,null,null,null,null,null,null,null,null,null,null,null,null,null,null,null,null,null,null,null,null,null,null,null,null,null,null,null,null,null,null,null,null,null,null,null,null,null,null,null,null,null,null,null,null,null,null,null,null,189,7]
[null,null,null,null,null,null,null,null,null,null,null,null,null,null,null,null,null,null,null,null,null,null,null,null,null,null,null,null,null,null,null,null,null,null,null,null,null,null,null,null,null,null,null,null,null,null,null,null,null,null,null,null,null,null,null,null,null,null,null,null,null,null,null,null,null,null,null,null,null,null,null,null,null,null,null,null,null,null,null,null,null,null,null,null,null,null,null,null,null,null,null,null,null,null,null,null,null,null,null,null,null,null,null,null,null,null,null,null,null,null,null,null,null,null,null,null,null,null,null,null,null,null,null,null,null,null,null,null,null,null,null,null,null,null,null,null,null,null,null,null,null,null,null,null,null,null,null,null,null,null,null,null,null,null,null,null,null,null,null,null,null,null,null,null,null,null,null,null,null,null,null,null,null,null,null,null,null,null,null,null,null,null,null,null,null,null,null,null,null,null,null,null,null,null,null,null,null,null,null,null,null,null,null,null,null,null,null,null,null,null,null,null,null,null,null,null,null,null,null,null,null,null,null,null,null,null,null,null,null,null,null,null,null,null,null,null,null,null,null,null,null,null,null,null,null,null,null,null,null,null,null,null,null,null,null,null,null,null,null,null,null,null,null,null,null,null,null,null,null,null,null,null,null,null,null,null,null,null,null,null,null,null,null,null,null,null,null,null,null,null,null,null,null,null,null,null,null,null,null,null,null,null,null,null,null,null,null,null,null,190,20]
[null,null,null,null,null,null,null,null,null,null,null,null,null,null,null,null,null,null,null,null,null,null,null,null,null,null,null,null,null,null,null,null,null,null,null,null,null,null,null,null,null,null,null,null,null,null,null,null,null,null,null,null,null,null,null,null,null,null,null,null,null,null,null,null,null,null,null,null,null,null,null,null,null,null,null,null,null,null,null,null,null,null,null,null,null,null,null,null,null,null,null,null,null,null,null,null,null,null,null,null,null,null,null,null,null,null,null,null,null,null,null,null,null,null,null,null,null,null,null,null,null,null,null,null,null,null,null,null,null,null,null,null,null,null,null,null,null,null,null,null,null,null,null,null,null,null,null,null,null,null,null,null,null,null,null,null,null,null,null,null,null,null,null,null,null,null,null,null,null,null,null,null,null,null,null,null,null,null,null,null,null,null,null,null,null,null,null,null,null,null,null,null,null,null,null,null,null,null,null,null,null,null,null,null,null,null,null,null,null,null,null,null,null,null,null,null,null,null,null,null,null,null,null,null,null,null,null,null,null,null,null,null,null,null,null,null,null,null,null,null,null,null,null,null,null,null,null,null,null,null,null,null,null,null,null,null,null,null,null,null,null,null,null,null,null,null,null,null,null,null,null,null,null,null,null,null,null,null,null,null,null,null,null,null,null,null,null,null,null,null,null,null,null,null,null,null,null,null,null,null,null,null,null,null,null,null,null,null,null,191,60]
[null,null,null,null,null,null,null,null,null,null,null,null,null,null,null,null,null,null,null,null,null,null,null,null,null,null,null,null,null,null,null,null,null,null,null,null,null,null,null,null,null,null,null,null,null,null,null,null,null,null,null,null,null,null,null,null,null,null,null,null,null,null,null,null,null,null,null,null,null,null,null,null,null,null,null,null,null,null,null,null,null,null,null,null,null,null,null,null,null,null,null,null,null,null,null,null,null,null,null,null,null,null,null,null,null,null,null,null,null,null,null,null,null,null,null,null,null,null,null,null,null,null,null,null,null,null,null,null,null,null,null,null,null,null,null,null,null,null,null,null,null,null,null,null,null,null,null,null,null,null,null,null,null,null,null,null,null,null,null,null,null,null,null,null,null,null,null,null,null,null,null,null,null,null,null,null,null,null,null,null,null,null,null,null,null,null,null,null,null,null,null,null,null,null,null,null,null,null,null,null,null,null,null,null,null,null,null,null,null,null,null,null,null,null,null,null,null,null,null,null,null,null,null,null,null,null,null,null,null,null,null,null,null,null,null,null,null,null,null,null,null,null,null,null,null,null,null,null,null,null,null,null,null,null,null,null,null,null,null,null,null,null,null,null,null,null,null,null,null,null,null,null,null,null,null,null,null,null,null,null,null,null,null,null,null,null,null,null,null,null,null,null,null,null,null,null,null,null,null,null,null,null,null,null,null,null,null,null,null,192,97]
[null,null,null,null,null,null,null,null,null,null,null,null,null,null,null,null,null,null,null,null,null,null,null,null,null,null,null,null,null,null,null,null,null,null,null,null,null,null,null,null,null,null,null,null,null,null,null,null,null,null,null,null,null,null,null,null,null,null,null,null,null,null,null,null,null,null,null,null,null,null,null,null,null,null,null,null,null,null,null,null,null,null,null,null,null,null,null,null,null,null,null,null,null,null,null,null,null,null,null,null,null,null,null,null,null,null,null,null,null,null,null,null,null,null,null,null,null,null,null,null,null,null,null,null,null,null,null,null,null,null,null,null,null,null,null,null,null,null,null,null,null,null,null,null,null,null,null,null,null,null,null,null,null,null,null,null,null,null,null,null,null,null,null,null,null,null,null,null,null,null,null,null,null,null,null,null,null,null,null,null,null,null,null,null,null,null,null,null,null,null,null,null,null,null,null,null,null,null,null,null,null,null,null,null,null,null,null,null,null,null,null,null,null,null,null,null,null,null,null,null,null,null,null,null,null,null,null,null,null,null,null,null,null,null,null,null,null,null,null,null,null,null,null,null,null,null,null,null,null,null,null,null,null,null,null,null,null,null,null,null,null,null,null,null,null,null,null,null,null,null,null,null,null,null,null,null,null,null,null,null,null,null,null,null,null,null,null,null,null,null,null,null,null,null,null,null,null,null,null,null,null,null,null,null,null,null,null,null,null,193,{"$f":"COUNTIF($HA$3:$KV$102, KX193)","v":27}]
[null,null,null,null,null,null,null,null,null,null,null,null,null,null,null,null,null,null,null,null,null,null,null,null,null,null,null,null,null,null,null,null,null,null,null,null,null,null,null,null,null,null,null,null,null,null,null,null,null,null,null,null,null,null,null,null,null,null,null,null,null,null,null,null,null,null,null,null,null,null,null,null,null,null,null,null,null,null,null,null,null,null,null,null,null,null,null,null,null,null,null,null,null,null,null,null,null,null,null,null,null,null,null,null,null,null,null,null,null,null,null,null,null,null,null,null,null,null,null,null,null,null,null,null,null,null,null,null,null,null,null,null,null,null,null,null,null,null,null,null,null,null,null,null,null,null,null,null,null,null,null,null,null,null,null,null,null,null,null,null,null,null,null,null,null,null,null,null,null,null,null,null,null,null,null,null,null,null,null,null,null,null,null,null,null,null,null,null,null,null,null,null,null,null,null,null,null,null,null,null,null,null,null,null,null,null,null,null,null,null,null,null,null,null,null,null,null,null,null,null,null,null,null,null,null,null,null,null,null,null,null,null,null,null,null,null,null,null,null,null,null,null,null,null,null,null,null,null,null,null,null,null,null,null,null,null,null,null,null,null,null,null,null,null,null,null,null,null,null,null,null,null,null,null,null,null,null,null,null,null,null,null,null,null,null,null,null,null,null,null,null,null,null,null,null,null,null,null,null,null,null,null,null,null,null,null,null,null,null,194,11]
[null,null,null,null,null,null,null,null,null,null,null,null,null,null,null,null,null,null,null,null,null,null,null,null,null,null,null,null,null,null,null,null,null,null,null,null,null,null,null,null,null,null,null,null,null,null,null,null,null,null,null,null,null,null,null,null,null,null,null,null,null,null,null,null,null,null,null,null,null,null,null,null,null,null,null,null,null,null,null,null,null,null,null,null,null,null,null,null,null,null,null,null,null,null,null,null,null,null,null,null,null,null,null,null,null,null,null,null,null,null,null,null,null,null,null,null,null,null,null,null,null,null,null,null,null,null,null,null,null,null,null,null,null,null,null,null,null,null,null,null,null,null,null,null,null,null,null,null,null,null,null,null,null,null,null,null,null,null,null,null,null,null,null,null,null,null,null,null,null,null,null,null,null,null,null,null,null,null,null,null,null,null,null,null,null,null,null,null,null,null,null,null,null,null,null,null,null,null,null,null,null,null,null,null,null,null,null,null,null,null,null,null,null,null,null,null,null,null,null,null,null,null,null,null,null,null,null,null,null,null,null,null,null,null,null,null,null,null,null,null,null,null,null,null,null,null,null,null,null,null,null,null,null,null,null,null,null,null,null,null,null,null,null,null,null,null,null,null,null,null,null,null,null,null,null,null,null,null,null,null,null,null,null,null,null,null,null,null,null,null,null,null,null,null,null,null,null,null,null,null,null,null,null,null,null,null,null,null,null,195,65]
[null,null,null,null,null,null,null,null,null,null,null,null,null,null,null,null,null,null,null,null,null,null,null,null,null,null,null,null,null,null,null,null,null,null,null,null,null,null,null,null,null,null,null,null,null,null,null,null,null,null,null,null,null,null,null,null,null,null,null,null,null,null,null,null,null,null,null,null,null,null,null,null,null,null,null,null,null,null,null,null,null,null,null,null,null,null,null,null,null,null,null,null,null,null,null,null,null,null,null,null,null,null,null,null,null,null,null,null,null,null,null,null,null,null,null,null,null,null,null,null,null,null,null,null,null,null,null,null,null,null,null,null,null,null,null,null,null,null,null,null,null,null,null,null,null,null,null,null,null,null,null,null,null,null,null,null,null,null,null,null,null,null,null,null,null,null,null,null,null,null,null,null,null,null,null,null,null,null,null,null,null,null,null,null,null,null,null,null,null,null,null,null,null,null,null,null,null,null,null,null,null,null,null,null,null,null,null,null,null,null,null,null,null,null,null,null,null,null,null,null,null,null,null,null,null,null,null,null,null,null,null,null,null,null,null,null,null,null,null,null,null,null,null,null,null,null,null,null,null,null,null,null,null,null,null,null,null,null,null,null,null,null,null,null,null,null,null,null,null,null,null,null,null,null,null,null,null,null,null,null,null,null,null,null,null,null,null,null,null,null,null,null,null,null,null,null,null,null,null,null,null,null,null,null,null,null,null,null,null,196,47]
[null,null,null,null,null,null,null,null,null,null,null,null,null,null,null,null,null,null,null,null,null,null,null,null,null,null,null,null,null,null,null,null,null,null,null,null,null,null,null,null,null,null,null,null,null,null,null,null,null,null,null,null,null,null,null,null,null,null,null,null,null,null,null,null,null,null,null,null,null,null,null,null,null,null,null,null,null,null,null,null,null,null,null,null,null,null,null,null,null,null,null,null,null,null,null,null,null,null,null,null,null,null,null,null,null,null,null,null,null,null,null,null,null,null,null,null,null,null,null,null,null,null,null,null,null,null,null,null,null,null,null,null,null,null,null,null,null,null,null,null,null,null,null,null,null,null,null,null,null,null,null,null,null,null,null,null,null,null,null,null,null,null,null,null,null,null,null,null,null,null,null,null,null,null,null,null,null,null,null,null,null,null,null,null,null,null,null,null,null,null,null,null,null,null,null,null,null,null,null,null,null,null,null,null,null,null,null,null,null,null,null,null,null,null,null,null,null,null,null,null,null,null,null,null,null,null,null,null,null,null,null,null,null,null,null,null,null,null,null,null,null,null,null,null,null,null,null,null,null,null,null,null,null,null,null,null,null,null,null,null,null,null,null,null,null,null,null,null,null,null,null,null,null,null,null,null,null,null,null,null,null,null,null,null,null,null,null,null,null,null,null,null,null,null,null,null,null,null,null,null,null,null,null,null,null,null,null,null,null,197,12]
[null,null,null,null,null,null,null,null,null,null,null,null,null,null,null,null,null,null,null,null,null,null,null,null,null,null,null,null,null,null,null,null,null,null,null,null,null,null,null,null,null,null,null,null,null,null,null,null,null,null,null,null,null,null,null,null,null,null,null,null,null,null,null,null,null,null,null,null,null,null,null,null,null,null,null,null,null,null,null,null,null,null,null,null,null,null,null,null,null,null,null,null,null,null,null,null,null,null,null,null,null,null,null,null,null,null,null,null,null,null,null,null,null,null,null,null,null,null,null,null,null,null,null,null,null,null,null,null,null,null,null,null,null,null,null,null,null,null,null,null,null,null,null,null,null,null,null,null,null,null,null,null,null,null,null,null,null,null,null,null,null,null,null,null,null,null,null,null,null,null,null,null,null,null,null,null,null,null,null,null,null,null,null,null,null,null,null,null,null,null,null,null,null,null,null,null,null,null,null,null,null,null,null,null,null,null,null,null,null,null,null,null,null,null,null,null,null,null,null,null,null,null,null,null,null,null,null,null,null,null,null,null,null,null,null,null,null,null,null,null,null,null,null,null,null,null,null,null,null,null,null,null,null,null,null,null,null,null,null,null,null,null,null,null,null,null,null,null,null,null,null,null,null,null,null,null,null,null,null,null,null,null,null,null,null,null,null,null,null,null,null,null,null,null,null,null,null,null,null,null,null,null,null,null,null,null,null,null,null,198,9]
[null,null,null,null,null,null,null,null,null,null,null,null,null,null,null,null,null,null,null,null,null,null,null,null,null,null,null,null,null,null,null,null,null,null,null,null,null,null,null,null,null,null,null,null,null,null,null,null,null,null,null,null,null,null,null,null,null,null,null,null,null,null,null,null,null,null,null,null,null,null,null,null,null,null,null,null,null,null,null,null,null,null,null,null,null,null,null,null,null,null,null,null,null,null,null,null,null,null,null,null,null,null,null,null,null,null,null,null,null,null,null,null,null,null,null,null,null,null,null,null,null,null,null,null,null,null,null,null,null,null,null,null,null,null,null,null,null,null,null,null,null,null,null,null,null,null,null,null,null,null,null,null,null,null,null,null,null,null,null,null,null,null,null,null,null,null,null,null,null,null,null,null,null,null,null,null,null,null,null,null,null,null,null,null,null,null,null,null,null,null,null,null,null,null,null,null,null,null,null,null,null,null,null,null,null,null,null,null,null,null,null,null,null,null,null,null,null,null,null,null,null,null,null,null,null,null,null,null,null,null,null,null,null,null,null,null,null,null,null,null,null,null,null,null,null,null,null,null,null,null,null,null,null,null,null,null,null,null,null,null,null,null,null,null,null,null,null,null,null,null,null,null,null,null,null,null,null,null,null,null,null,null,null,null,null,null,null,null,null,null,null,null,null,null,null,null,null,null,null,null,null,null,null,null,null,null,null,null,null,199,8]
[null,null,null,null,null,null,null,null,null,null,null,null,null,null,null,null,null,null,null,null,null,null,null,null,null,null,null,null,null,null,null,null,null,null,null,null,null,null,null,null,null,null,null,null,null,null,null,null,null,null,null,null,null,null,null,null,null,null,null,null,null,null,null,null,null,null,null,null,null,null,null,null,null,null,null,null,null,null,null,null,null,null,null,null,null,null,null,null,null,null,null,null,null,null,null,null,null,null,null,null,null,null,null,null,null,null,null,null,null,null,null,null,null,null,null,null,null,null,null,null,null,null,null,null,null,null,null,null,null,null,null,null,null,null,null,null,null,null,null,null,null,null,null,null,null,null,null,null,null,null,null,null,null,null,null,null,null,null,null,null,null,null,null,null,null,null,null,null,null,null,null,null,null,null,null,null,null,null,null,null,null,null,null,null,null,null,null,null,null,null,null,null,null,null,null,null,null,null,null,null,null,null,null,null,null,null,null,null,null,null,null,null,null,null,null,null,null,null,null,null,null,null,null,null,null,null,null,null,null,null,null,null,null,null,null,null,null,null,null,null,null,null,null,null,null,null,null,null,null,null,null,null,null,null,null,null,null,null,null,null,null,null,null,null,null,null,null,null,null,null,null,null,null,null,null,null,null,null,null,null,null,null,null,null,null,null,null,null,null,null,null,null,null,null,null,null,null,null,null,null,null,null,null,null,null,null,null,null,null,200,41]
[null,null,null,null,null,null,null,null,null,null,null,null,null,null,null,null,null,null,null,null,null,null,null,null,null,null,null,null,null,null,null,null,null,null,null,null,null,null,null,null,null,null,null,null,null,null,null,null,null,null,null,null,null,null,null,null,null,null,null,null,null,null,null,null,null,null,null,null,null,null,null,null,null,null,null,null,null,null,null,null,null,null,null,null,null,null,null,null,null,null,null,null,null,null,null,null,null,null,null,null,null,null,null,null,null,null,null,null,null,null,null,null,null,null,null,null,null,null,null,null,null,null,null,null,null,null,null,null,null,null,null,null,null,null,null,null,null,null,null,null,null,null,null,null,null,null,null,null,null,null,null,null,null,null,null,null,null,null,null,null,null,null,null,null,null,null,null,null,null,null,null,null,null,null,null,null,null,null,null,null,null,null,null,null,null,null,null,null,null,null,null,null,null,null,null,null,null,null,null,null,null,null,null,null,null,null,null,null,null,null,null,null,null,null,null,null,null,null,null,null,null,null,null,null,null,null,null,null,null,null,null,null,null,null,null,null,null,null,null,null,null,null,null,null,null,null,null,null,null,null,null,null,null,null,null,null,null,null,null,null,null,null,null,null,null,null,null,null,null,null,null,null,null,null,null,null,null,null,null,null,null,null,null,null,null,null,null,null,null,null,null,null,null,null,null,null,null,null,null,null,null,null,null,null,null,null,null,null,null,201,33]
[null,null,null,null,null,null,null,null,null,null,null,null,null,null,null,null,null,null,null,null,null,null,null,null,null,null,null,null,null,null,null,null,null,null,null,null,null,null,null,null,null,null,null,null,null,null,null,null,null,null,null,null,null,null,null,null,null,null,null,null,null,null,null,null,null,null,null,null,null,null,null,null,null,null,null,null,null,null,null,null,null,null,null,null,null,null,null,null,null,null,null,null,null,null,null,null,null,null,null,null,null,null,null,null,null,null,null,null,null,null,null,null,null,null,null,null,null,null,null,null,null,null,null,null,null,null,null,null,null,null,null,null,null,null,null,null,null,null,null,null,null,null,null,null,null,null,null,null,null,null,null,null,null,null,null,null,null,null,null,null,null,null,null,null,null,null,null,null,null,null,null,null,null,null,null,null,null,null,null,null,null,null,null,null,null,null,null,null,null,null,null,null,null,null,null,null,null,null,null,null,null,null,null,null,null,null,null,null,null,null,null,null,null,null,null,null,null,null,null,null,null,null,null,null,null,null,null,null,null,null,null,null,null,null,null,null,null,null,null,null,null,null,null,null,null,null,null,null,null,null,null,null,null,null,null,null,null,null,null,null,null,null,null,null,null,null,null,null,null,null,null,null,null,null,null,null,null,null,null,null,null,null,null,null,null,null,null,null,null,null,null,null,null,null,null,null,null,null,null,null,null,null,null,null,null,null,null,null,null,202,10]
[null,null,null,null,null,null,null,null,null,null,null,null,null,null,null,null,null,null,null,null,null,null,null,null,null,null,null,null,null,null,null,null,null,null,null,null,null,null,null,null,null,null,null,null,null,null,null,null,null,null,null,null,null,null,null,null,null,null,null,null,null,null,null,null,null,null,null,null,null,null,null,null,null,null,null,null,null,null,null,null,null,null,null,null,null,null,null,null,null,null,null,null,null,null,null,null,null,null,null,null,null,null,null,null,null,null,null,null,null,null,null,null,null,null,null,null,null,null,null,null,null,null,null,null,null,null,null,null,null,null,null,null,null,null,null,null,null,null,null,null,null,null,null,null,null,null,null,null,null,null,null,null,null,null,null,null,null,null,null,null,null,null,null,null,null,null,null,null,null,null,null,null,null,null,null,null,null,null,null,null,null,null,null,null,null,null,null,null,null,null,null,null,null,null,null,null,null,null,null,null,null,null,null,null,null,null,null,null,null,null,null,null,null,null,null,null,null,null,null,null,null,null,null,null,null,null,null,null,null,null,null,null,null,null,null,null,null,null,null,null,null,null,null,null,null,null,null,null,null,null,null,null,null,null,null,null,null,null,null,null,null,null,null,null,null,null,null,null,null,null,null,null,null,null,null,null,null,null,null,null,null,null,null,null,null,null,null,null,null,null,null,null,null,null,null,null,null,null,null,null,null,null,null,null,null,null,null,null,null,203,47]
[null,null,null,null,null,null,null,null,null,null,null,null,null,null,null,null,null,null,null,null,null,null,null,null,null,null,null,null,null,null,null,null,null,null,null,null,null,null,null,null,null,null,null,null,null,null,null,null,null,null,null,null,null,null,null,null,null,null,null,null,null,null,null,null,null,null,null,null,null,null,null,null,null,null,null,null,null,null,null,null,null,null,null,null,null,null,null,null,null,null,null,null,null,null,null,null,null,null,null,null,null,null,null,null,null,null,null,null,null,null,null,null,null,null,null,null,null,null,null,null,null,null,null,null,null,null,null,null,null,null,null,null,null,null,null,null,null,null,null,null,null,null,null,null,null,null,null,null,null,null,null,null,null,null,null,null,null,null,null,null,null,null,null,null,null,null,null,null,null,null,null,null,null,null,null,null,null,null,null,null,null,null,null,null,null,null,null,null,null,null,null,null,null,null,null,null,null,null,null,null,null,null,null,null,null,null,null,null,null,null,null,null,null,null,null,null,null,null,null,null,null,null,null,null,null,null,null,null,null,null,null,null,null,null,null,null,null,null,null,null,null,null,null,null,null,null,null,null,null,null,null,null,null,null,null,null,null,null,null,null,null,null,null,null,null,null,null,null,null,null,null,null,null,null,null,null,null,null,null,null,null,null,null,null,null,null,null,null,null,null,null,null,null,null,null,null,null,null,null,null,null,null,null,null,null,null,null,null,null,204,32]
[null,null,null,null,null,null,null,null,null,null,null,null,null,null,null,null,null,null,null,null,null,null,null,null,null,null,null,null,null,null,null,null,null,null,null,null,null,null,null,null,null,null,null,null,null,null,null,null,null,null,null,null,null,null,null,null,null,null,null,null,null,null,null,null,null,null,null,null,null,null,null,null,null,null,null,null,null,null,null,null,null,null,null,null,null,null,null,null,null,null,null,null,null,null,null,null,null,null,null,null,null,null,null,null,null,null,null,null,null,null,null,null,null,null,null,null,null,null,null,null,null,null,null,null,null,null,null,null,null,null,null,null,null,null,null,null,null,null,null,null,null,null,null,null,null,null,null,null,null,null,null,null,null,null,null,null,null,null,null,null,null,null,null,null,null,null,null,null,null,null,null,null,null,null,null,null,null,null,null,null,null,null,null,null,null,null,null,null,null,null,null,null,null,null,null,null,null,null,null,null,null,null,null,null,null,null,null,null,null,null,null,null,null,null,null,null,null,null,null,null,null,null,null,null,null,null,null,null,null,null,null,null,null,null,null,null,null,null,null,null,null,null,null,null,null,null,null,null,null,null,null,null,null,null,null,null,null,null,null,null,null,null,null,null,null,null,null,null,null,null,null,null,null,null,null,null,null,null,null,null,null,null,null,null,null,null,null,null,null,null,null,null,null,null,null,null,null,null,null,null,null,null,null,null,null,null,null,null,null,205,3]
[null,null,null,null,null,null,null,null,null,null,null,null,null,null,null,null,null,null,null,null,null,null,null,null,null,null,null,null,null,null,null,null,null,null,null,null,null,null,null,null,null,null,null,null,null,null,null,null,null,null,null,null,null,null,null,null,null,null,null,null,null,null,null,null,null,null,null,null,null,null,null,null,null,null,null,null,null,null,null,null,null,null,null,null,null,null,null,null,null,null,null,null,null,null,null,null,null,null,null,null,null,null,null,null,null,null,null,null,null,null,null,null,null,null,null,null,null,null,null,null,null,null,null,null,null,null,null,null,null,null,null,null,null,null,null,null,null,null,null,null,null,null,null,null,null,null,null,null,null,null,null,null,null,null,null,null,null,null,null,null,null,null,null,null,null,null,null,null,null,null,null,null,null,null,null,null,null,null,null,null,null,null,null,null,null,null,null,null,null,null,null,null,null,null,null,null,null,null,null,null,null,null,null,null,null,null,null,null,null,null,null,null,null,null,null,null,null,null,null,null,null,null,null,null,null,null,null,null,null,null,null,null,null,null,null,null,null,null,null,null,null,null,null,null,null,null,null,null,null,null,null,null,null,null,null,null,null,null,null,null,null,null,null,null,null,null,null,null,null,null,null,null,null,null,null,null,null,null,null,null,null,null,null,null,null,null,null,null,null,null,null,null,null,null,null,null,null,null,null,null,null,null,null,null,null,null,null,null,null,206,28]
[null,null,null,null,null,null,null,null,null,null,null,null,null,null,null,null,null,null,null,null,null,null,null,null,null,null,null,null,null,null,null,null,null,null,null,null,null,null,null,null,null,null,null,null,null,null,null,null,null,null,null,null,null,null,null,null,null,null,null,null,null,null,null,null,null,null,null,null,null,null,null,null,null,null,null,null,null,null,null,null,null,null,null,null,null,null,null,null,null,null,null,null,null,null,null,null,null,null,null,null,null,null,null,null,null,null,null,null,null,null,null,null,null,null,null,null,null,null,null,null,null,null,null,null,null,null,null,null,null,null,null,null,null,null,null,null,null,null,null,null,null,null,null,null,null,null,null,null,null,null,null,null,null,null,null,null,null,null,null,null,null,null,null,null,null,null,null,null,null,null,null,null,null,null,null,null,null,null,null,null,null,null,null,null,null,null,null,null,null,null,null,null,null,null,null,null,null,null,null,null,null,null,null,null,null,null,null,null,null,null,null,null,null,null,null,null,null,null,null,null,null,null,null,null,null,null,null,null,null,null,null,null,null,null,null,null,null,null,null,null,null,null,null,null,null,null,null,null,null,null,null,null,null,null,null,null,null,null,null,null,null,null,null,null,null,null,null,null,null,null,null,null,null,null,null,null,null,null,null,null,null,null,null,null,null,null,null,null,null,null,null,null,null,null,null,null,null,null,null,null,null,null,null,null,null,null,null,null,null,207,2]
[null,null,null,null,null,null,null,null,null,null,null,null,null,null,null,null,null,null,null,null,null,null,null,null,null,null,null,null,null,null,null,null,null,null,null,null,null,null,null,null,null,null,null,null,null,null,null,null,null,null,null,null,null,null,null,null,null,null,null,null,null,null,null,null,null,null,null,null,null,null,null,null,null,null,null,null,null,null,null,null,null,null,null,null,null,null,null,null,null,null,null,null,null,null,null,null,null,null,null,null,null,null,null,null,null,null,null,null,null,null,null,null,null,null,null,null,null,null,null,null,null,null,null,null,null,null,null,null,null,null,null,null,null,null,null,null,null,null,null,null,null,null,null,null,null,null,null,null,null,null,null,null,null,null,null,null,null,null,null,null,null,null,null,null,null,null,null,null,null,null,null,null,null,null,null,null,null,null,null,null,null,null,null,null,null,null,null,null,null,null,null,null,null,null,null,null,null,null,null,null,null,null,null,null,null,null,null,null,null,null,null,null,null,null,null,null,null,null,null,null,null,null,null,null,null,null,null,null,null,null,null,null,null,null,null,null,null,null,null,null,null,null,null,null,null,null,null,null,null,null,null,null,null,null,null,null,null,null,null,null,null,null,null,null,null,null,null,null,null,null,null,null,null,null,null,null,null,null,null,null,null,null,null,null,null,null,null,null,null,null,null,null,null,null,null,null,null,null,null,null,null,null,null,null,null,null,null,null,null,208,18]
[null,null,null,null,null,null,null,null,null,null,null,null,null,null,null,null,null,null,null,null,null,null,null,null,null,null,null,null,null,null,null,null,null,null,null,null,null,null,null,null,null,null,null,null,null,null,null,null,null,null,null,null,null,null,null,null,null,null,null,null,null,null,null,null,null,null,null,null,null,null,null,null,null,null,null,null,null,null,null,null,null,null,null,null,null,null,null,null,null,null,null,null,null,null,null,null,null,null,null,null,null,null,null,null,null,null,null,null,null,null,null,null,null,null,null,null,null,null,null,null,null,null,null,null,null,null,null,null,null,null,null,null,null,null,null,null,null,null,null,null,null,null,null,null,null,null,null,null,null,null,null,null,null,null,null,null,null,null,null,null,null,null,null,null,null,null,null,null,null,null,null,null,null,null,null,null,null,null,null,null,null,null,null,null,null,null,null,null,null,null,null,null,null,null,null,null,null,null,null,null,null,null,null,null,null,null,null,null,null,null,null,null,null,null,null,null,null,null,null,null,null,null,null,null,null,null,null,null,null,null,null,null,null,null,null,null,null,null,null,null,null,null,null,null,null,null,null,null,null,null,null,null,null,null,null,null,null,null,null,null,null,null,null,null,null,null,null,null,null,null,null,null,null,null,null,null,null,null,null,null,null,null,null,null,null,null,null,null,null,null,null,null,null,null,null,null,null,null,null,null,null,null,null,null,null,null,null,null,null,209,10]
[null,null,null,null,null,null,null,null,null,null,null,null,null,null,null,null,null,null,null,null,null,null,null,null,null,null,null,null,null,null,null,null,null,null,null,null,null,null,null,null,null,null,null,null,null,null,null,null,null,null,null,null,null,null,null,null,null,null,null,null,null,null,null,null,null,null,null,null,null,null,null,null,null,null,null,null,null,null,null,null,null,null,null,null,null,null,null,null,null,null,null,null,null,null,null,null,null,null,null,null,null,null,null,null,null,null,null,null,null,null,null,null,null,null,null,null,null,null,null,null,null,null,null,null,null,null,null,null,null,null,null,null,null,null,null,null,null,null,null,null,null,null,null,null,null,null,null,null,null,null,null,null,null,null,null,null,null,null,null,null,null,null,null,null,null,null,null,null,null,null,null,null,null,null,null,null,null,null,null,null,null,null,null,null,null,null,null,null,null,null,null,null,null,null,null,null,null,null,null,null,null,null,null,null,null,null,null,null,null,null,null,null,null,null,null,null,null,null,null,null,null,null,null,null,null,null,null,null,null,null,null,null,null,null,null,null,null,null,null,null,null,null,null,null,null,null,null,null,null,null,null,null,null,null,null,null,null,null,null,null,null,null,null,null,null,null,null,null,null,null,null,null,null,null,null,null,null,null,null,null,null,null,null,null,null,null,null,null,null,null,null,null,null,null,null,null,null,null,null,null,null,null,null,null,null,null,null,null,null,210,11]
[null,null,null,null,null,null,null,null,null,null,null,null,null,null,null,null,null,null,null,null,null,null,null,null,null,null,null,null,null,null,null,null,null,null,null,null,null,null,null,null,null,null,null,null,null,null,null,null,null,null,null,null,null,null,null,null,null,null,null,null,null,null,null,null,null,null,null,null,null,null,null,null,null,null,null,null,null,null,null,null,null,null,null,null,null,null,null,null,null,null,null,null,null,null,null,null,null,null,null,null,null,null,null,null,null,null,null,null,null,null,null,null,null,null,null,null,null,null,null,null,null,null,null,null,null,null,null,null,null,null,null,null,null,null,null,null,null,null,null,null,null,null,null,null,null,null,null,null,null,null,null,null,null,null,null,null,null,null,null,null,null,null,null,null,null,null,null,null,null,null,null,null,null,null,null,null,null,null,null,null,null,null,null,null,null,null,null,null,null,null,null,null,null,null,null,null,null,null,null,null,null,null,null,null,null,null,null,null,null,null,null,null,null,null,null,null,null,null,null,null,null,null,null,null,null,null,null,null,null,null,null,null,null,null,null,null,null,null,null,null,null,null,null,null,null,null,null,null,null,null,null,null,null,null,null,null,null,null,null,null,null,null,null,null,null,null,null,null,null,null,null,null,null,null,null,null,null,null,null,null,null,null,null,null,null,null,null,null,null,null,null,null,null,null,null,null,null,null,null,null,null,null,null,null,null,null,null,null,null,211,2]
[null,null,null,null,null,null,null,null,null,null,null,null,null,null,null,null,null,null,null,null,null,null,null,null,null,null,null,null,null,null,null,null,null,null,null,null,null,null,null,null,null,null,null,null,null,null,null,null,null,null,null,null,null,null,null,null,null,null,null,null,null,null,null,null,null,null,null,null,null,null,null,null,null,null,null,null,null,null,null,null,null,null,null,null,null,null,null,null,null,null,null,null,null,null,null,null,null,null,null,null,null,null,null,null,null,null,null,null,null,null,null,null,null,null,null,null,null,null,null,null,null,null,null,null,null,null,null,null,null,null,null,null,null,null,null,null,null,null,null,null,null,null,null,null,null,null,null,null,null,null,null,null,null,null,null,null,null,null,null,null,null,null,null,null,null,null,null,null,null,null,null,null,null,null,null,null,null,null,null,null,null,null,null,null,null,null,null,null,null,null,null,null,null,null,null,null,null,null,null,null,null,null,null,null,null,null,null,null,null,null,null,null,null,null,null,null,null,null,null,null,null,null,null,null,null,null,null,null,null,null,null,null,null,null,null,null,null,null,null,null,null,null,null,null,null,null,null,null,null,null,null,null,null,null,null,null,null,null,null,null,null,null,null,null,null,null,null,null,null,null,null,null,null,null,null,null,null,null,null,null,null,null,null,null,null,null,null,null,null,null,null,null,null,null,null,null,null,null,null,null,null,null,null,null,null,null,null,null,null,212,19]
[null,null,null,null,null,null,null,null,null,null,null,null,null,null,null,null,null,null,null,null,null,null,null,null,null,null,null,null,null,null,null,null,null,null,null,null,null,null,null,null,null,null,null,null,null,null,null,null,null,null,null,null,null,null,null,null,null,null,null,null,null,null,null,null,null,null,null,null,null,null,null,null,null,null,null,null,null,null,null,null,null,null,null,null,null,null,null,null,null,null,null,null,null,null,null,null,null,null,null,null,null,null,null,null,null,null,null,null,null,null,null,null,null,null,null,null,null,null,null,null,null,null,null,null,null,null,null,null,null,null,null,null,null,null,null,null,null,null,null,null,null,null,null,null,null,null,null,null,null,null,null,null,null,null,null,null,null,null,null,null,null,null,null,null,null,null,null,null,null,null,null,null,null,null,null,null,null,null,null,null,null,null,null,null,null,null,null,null,null,null,null,null,null,null,null,null,null,null,null,null,null,null,null,null,null,null,null,null,null,null,null,null,null,null,null,null,null,null,null,null,null,null,null,null,null,null,null,null,null,null,null,null,null,null,null,null,null,null,null,null,null,null,null,null,null,null,null,null,null,null,null,null,null,null,null,null,null,null,null,null,null,null,null,null,null,null,null,null,null,null,null,null,null,null,null,null,null,null,null,null,null,null,null,null,null,null,null,null,null,null,null,null,null,null,null,null,null,null,null,null,null,null,null,null,null,null,null,null,null,213,2]
[null,null,null,null,null,null,null,null,null,null,null,null,null,null,null,null,null,null,null,null,null,null,null,null,null,null,null,null,null,null,null,null,null,null,null,null,null,null,null,null,null,null,null,null,null,null,null,null,null,null,null,null,null,null,null,null,null,null,null,null,null,null,null,null,null,null,null,null,null,null,null,null,null,null,null,null,null,null,null,null,null,null,null,null,null,null,null,null,null,null,null,null,null,null,null,null,null,null,null,null,null,null,null,null,null,null,null,null,null,null,null,null,null,null,null,null,null,null,null,null,null,null,null,null,null,null,null,null,null,null,null,null,null,null,null,null,null,null,null,null,null,null,null,null,null,null,null,null,null,null,null,null,null,null,null,null,null,null,null,null,null,null,null,null,null,null,null,null,null,null,null,null,null,null,null,null,null,null,null,null,null,null,null,null,null,null,null,null,null,null,null,null,null,null,null,null,null,null,null,null,null,null,null,null,null,null,null,null,null,null,null,null,null,null,null,null,null,null,null,null,null,null,null,null,null,null,null,null,null,null,null,null,null,null,null,null,null,null,null,null,null,null,null,null,null,null,null,null,null,null,null,null,null,null,null,null,null,null,null,null,null,null,null,null,null,null,null,null,null,null,null,null,null,null,null,null,null,null,null,null,null,null,null,null,null,null,null,null,null,null,null,null,null,null,null,null,null,null,null,null,null,null,null,null,null,null,null,null,null,214,2]